Report Type,Report Period,Body Name,Service Label,Service Code,Service Divison Label,Service Divison Code,Supplier Name,Expenditure Category,Expenditure Code,Date,Transaction Number,Net Amount,Merchant Category,Merchant Category Code
Expenditure - Over 500,2015 12,Worcestershire County Council,Resources,CS-PROFIT,Broadband - 1516 Expenditure,C40087,INSIGHT DIRECT (UK) LTD,Computing Hardware,50307,23/03/2016,4101538160,666.24,,
Expenditure - Over 500,2015 12,Worcestershire County Council,Children's Services,CH-PROFIT,Early Years - Other Providers,E21205,ABBERLEY PRESCHOOL,Third Party Pymts 4Yr Old Nursery Education Grant,53657,07/03/2016,7200024593,1621.81,,
Expenditure - Over 500,2015 12,Worcestershire County Council,Children's Services,CH-PROFIT,Early Years - Other Providers,E21205,ABBERLEY HALL PRE-PREP AND NURSERY,Third Party Pymts 4Yr Old Nursery Education Grant,53657,07/03/2016,7200024591,16083.21,,
Expenditure - Over 500,2015 12,Worcestershire County Council,Children's Services,CH-PROFIT,Early Years - 2 year old funding,E23050,ABACUS NURSERY SCHOOL,Third Party Pymts 4Yr Old Nursery Education Grant,53657,23/03/2016,7200024954,1453.5,,
Expenditure - Over 500,2015 12,Worcestershire County Council,Children's Services,CH-PROFIT,Early Years - Other Providers,E21205,ABACUS NURSERY SCHOOL,Third Party Pymts 4Yr Old Nursery Education Grant,53657,07/03/2016,7200024590,8507.81,,
Expenditure - Over 500,2015 12,Worcestershire County Council,Adult Services & Health,AC-PROFIT,Domiciliary Spot - OP,S33414,A & M BEWDLEY CARE SERVICES LTD,Third Party Payments Dom Care Frm Independent Prov,53669,14/03/2016,7320472089,563.6,,
Expenditure - Over 500,2015 12,Worcestershire County Council,Adult Services & Health,AC-PROFIT,Domiciliary Spot - OP,S33414,A & M BEWDLEY CARE SERVICES LTD,Third Party Payments Dom Care Frm Independent Prov,53669,14/03/2016,7320472082,547.4,,
Expenditure - Over 500,2015 12,Worcestershire County Council,Adult Services & Health,AC-PROFIT,Domiciliary Spot - OP,S33414,A & M BEWDLEY CARE SERVICES LTD,Third Party Payments Dom Care Frm Independent Prov,53669,10/03/2016,7320470876,563.6,,
Expenditure - Over 500,2015 12,Worcestershire County Council,Adult Services & Health,AC-PROFIT,Domiciliary Spot - OP,S33414,A & M BEWDLEY CARE SERVICES LTD,Third Party Payments Dom Care Frm Independent Prov,53669,10/03/2016,7320470869,547.4,,
Expenditure - Over 500,2015 12,Worcestershire County Council,Children's Services,CH-PROFIT,Green Hill Lodge,E31761,ACTIVE TOY COMPANY LTD,Equipment,48601,31/03/2016,4101541037,1391.63,,
Expenditure - Over 500,2015 12,Worcestershire County Council,Children's Services,CH-PROFIT,Post Order Team,E37800,ADOPTION UK,Subscriptions,51001,17/03/2016,4101535211,2616.25,,
Expenditure - Over 500,2015 12,Worcestershire County Council,Adult Services & Health,AC-PROFIT,Domiciliary Spot - OP,S33414,A & M BEWDLEY CARE SERVICES LTD,Third Party Payments Dom Care Frm Independent Prov,53669,23/03/2016,7320474684,563.6,,
Expenditure - Over 500,2015 12,Worcestershire County Council,Children's Services,CH-PROFIT,Short Breaks on framework,E31529,AIRSHUTTLE COACHES,PTG - Transport Tendered / Cont. Services,46021,10/03/2016,7190128618,3112,,
Expenditure - Over 500,2015 12,Worcestershire County Council,Adult Services & Health,AC-PROFIT,LT Residential - OP,S35341,ALBION LODGE RESIDENTIAL HOME,Receipts Sales Long Term Residents,67047,21/03/2016,7310396351,1101.76,,
Expenditure - Over 500,2015 12,Worcestershire County Council,Adult Services & Health,AC-PROFIT,Property Charge Temporary Code,S35398,ALBION LODGE RESIDENTIAL HOME,Receipts Sales Long Term Residents,67047,21/03/2016,7310396371,1491.96,,
Expenditure - Over 500,2015 12,Worcestershire County Council,Adult Services & Health,AC-PROFIT,South Worcester Residential LD,S35551,ALPHAGRANGE LTD,Receipts Sales Long Term Residents,67047,21/03/2016,7310395507,1859.32,,
Expenditure - Over 500,2015 12,Worcestershire County Council,Adult Services & Health,AC-PROFIT,South Worcester Residential LD,S35551,ALPHAGRANGE LTD,Third Party Payments Purchase of Long Term Care,53667,21/03/2016,7310395509,2260.48,,
Expenditure - Over 500,2015 12,Worcestershire County Council,Adult Services & Health,AC-PROFIT,South Worcester Residential LD,S35551,ALPHAGRANGE LTD,Third Party Payments Purchase of Long Term Care,53667,21/03/2016,7310395511,2260.48,,
Expenditure - Over 500,2015 12,Worcestershire County Council,Adult Services & Health,AC-PROFIT,LT Residential - OP,S35341,ANCHOR,Third Party Payments Purchase of Long Term Care,53667,21/03/2016,7310396225,1304.32,,
Expenditure - Over 500,2015 12,Worcestershire County Council,Children's Services,CH-PROFIT,"Green Fingers, Healthy Care in Action Pr",E24044,AQA,Training Employee Related,39048,03/03/2016,4101529927,860,,
Expenditure - Over 500,2015 12,Worcestershire County Council,Adult Services & Health,AC-PROFIT,North Supported Living Scheme,S31367,ADVANCE HOUSING AND SUPPORT LTD,Third Party Payments Purchase of Long Term Care,53667,21/03/2016,7310395731,3022.72,,
Expenditure - Over 500,2015 12,Worcestershire County Council,Adult Services & Health,AC-PROFIT,North Supported Living Scheme,S31367,ADVANCE HOUSING AND SUPPORT LTD,Third Party Payments Purchase of Long Term Care,53667,21/03/2016,7310395735,3022.72,,
Expenditure - Over 500,2015 12,Worcestershire County Council,Adult Services & Health,AC-PROFIT,North Supported Living Scheme,S31367,ADVANCE HOUSING AND SUPPORT LTD,Third Party Payments Purchase of Long Term Care,53667,21/03/2016,7310395743,3022.72,,
Expenditure - Over 500,2015 12,Worcestershire County Council,Adult Services & Health,AC-PROFIT,Adults Housing Related Support,S42082,ADVANCE HOUSING AND SUPPORT LTD,Third Party Payments External Provider,54044,21/03/2016,7360016054,3224.38,,
Expenditure - Procurement Card,2015 12,Worcestershire County Council,Children's Services,CH-PROFIT,Orchardene Residential Unit,E31764,ARGOS RETAIL GROUP,Equipment,48601,17/03/2016,4600115217,116.62,DISCOUNT STORES,5310
Expenditure - Procurement Card,2015 12,Worcestershire County Council,Children's Services,CH-PROFIT,S20 Bromsgrove,E35505,ARGOS LTD,Misc Other Expenses,51619,11/03/2016,4600114261,56.99,DISCOUNT STORES,5310
Expenditure - Procurement Card,2015 12,Worcestershire County Council,Children's Services,CH-PROFIT,Team 5,E37505,ARGOS LTD,Equipment,48601,11/03/2016,4600114262,44.99,DISCOUNT STORES,5310
Expenditure - Procurement Card,2015 12,Worcestershire County Council,Children's Services,CH-PROFIT,Downsell Road Redditch,E31361,ARGOS LTD,Equipment & Furniture,49001,15/03/2016,4600114582,4.99,DISCOUNT STORES,5310
Expenditure - Procurement Card,2015 12,Worcestershire County Council,Children's Services,CH-PROFIT,"S17 Warndon, Tolladine, W Villages",E36516,ARGOS LTD,Services Other Fees,50035,15/03/2016,4600114738,14.16,DISCOUNT STORES,5310
Expenditure - Procurement Card,2015 12,Worcestershire County Council,Children's Services,CH-PROFIT,Downsell Road Redditch,E31361,ARGOS LTD,Equipment,48601,15/03/2016,4600114592,49.97,DISCOUNT STORES,5310
Expenditure - Procurement Card,2015 12,Worcestershire County Council,"Business, Environment & Community",EN-PROFIT,Scientific Services Laboratory,V40110,ARGOS RETAIL GROUP,Materials Chemical & Apparatus,49055,16/03/2016,4600115057,129.99,DISCOUNT STORES,5310
Expenditure - Procurement Card,2015 12,Worcestershire County Council,Children's Services,CH-PROFIT,Oak House EBD Unit,E31765,ARGOS LTD,Equipment,48601,17/03/2016,4600115095,12.49,DISCOUNT STORES,5310
Expenditure - Procurement Card,2015 12,Worcestershire County Council,Children's Services,CH-PROFIT,Old Hollow Malvern,E31766,ARGOS,Equipment,48601,23/03/2016,4600115706,11.66,DISCOUNT STORES,5310
Expenditure - Procurement Card,2015 12,Worcestershire County Council,Children's Services,CH-PROFIT,Old Hollow Malvern,E31766,ARGOS,Equipment,48601,23/03/2016,4600115708,-11.66,DISCOUNT STORES,5310
Expenditure - Procurement Card,2015 12,Worcestershire County Council,Adult Services & Health,AC-LDDAYC,Wyre Forest Resource Centre,S31693,ARGOS LTD,Equipment & Furniture,49001,23/03/2016,4600115714,24.15,DISCOUNT STORES,5310
Expenditure - Procurement Card,2015 12,Worcestershire County Council,Children's Services,CH-PROFIT,Green Hill Lodge,E31761,ARGOS LTD,Equipment,48601,24/03/2016,4600115969,8.33,DISCOUNT STORES,5310
Expenditure - Procurement Card,2015 12,Worcestershire County Council,Children's Services,CH-PROFIT,S17 Care Leavers Team,E36604,ARGOS LTD,Care Grants,51006,24/03/2016,4600115952,129.92,DISCOUNT STORES,5310
Expenditure - Procurement Card,2015 12,Worcestershire County Council,Children's Services,CH-PROFIT,Green Hill Lodge,E31761,ARGOS LTD,Equipment,48601,24/03/2016,4600115971,108.33,DISCOUNT STORES,5310
Expenditure - Procurement Card,2015 12,Worcestershire County Council,Children's Services,CH-PROFIT,S17 Care Leavers Team,E36604,ARGOS LTD,Care Grants,51006,25/03/2016,4600116086,15.81,DISCOUNT STORES,5310
Expenditure - Procurement Card,2015 12,Worcestershire County Council,Children's Services,CH-PROFIT,S17 Care Leavers Team,E36604,ARGOS LTD,Care Grants,51006,25/03/2016,4600116065,101.02,DISCOUNT STORES,5310
Expenditure - Procurement Card,2015 12,Worcestershire County Council,Children's Services,CH-PROFIT,S17 Care Leavers Team,E36604,ARGOS LTD,Care Grants,51006,25/03/2016,4600116066,134.51,DISCOUNT STORES,5310
Expenditure - Procurement Card,2015 12,Worcestershire County Council,Children's Services,CH-PROFIT,S17 Care Leavers Team,E36604,ARGOS RETAIL GROUP,Care Grants,51006,29/03/2016,4600116341,49.99,DISCOUNT STORES,5310
Expenditure - Procurement Card,2015 12,Worcestershire County Council,Children's Services,CH-PROFIT,S17 Care Leavers Team,E36604,ARGOS LTD,Care Grants,51006,30/03/2016,4600116342,20.82,DISCOUNT STORES,5310
Expenditure - Procurement Card,2015 12,Worcestershire County Council,Children's Services,CH-PROFIT,S17 Care Leavers Team,E36604,ARGOS LTD,Care Grants,51006,30/03/2016,4600116398,8.33,DISCOUNT STORES,5310
Expenditure - Procurement Card,2015 12,Worcestershire County Council,Adult Services & Health,AC-PROFIT,Blakenhurst Brockhill  Hewell Libraries,S80494,ARGOS LTD,Equipment Office Equipment Purchase,49066,05/03/2016,4600113433,16.66,DISCOUNT STORES,5310
Expenditure - Procurement Card,2015 12,Worcestershire County Council,Children's Services,CH-PROFIT,Downsell Road Redditch,E31361,ARGOS LTD,Services Birthday & Christmas Gifts,50058,30/03/2016,4600116323,4.99,DISCOUNT STORES,5310
Expenditure - Procurement Card,2015 12,Worcestershire County Council,Children's Services,CH-PROFIT,126 Barnards Green Road,E31760,ARGOS,Equipment,48601,30/03/2016,4600116481,45.82,DISCOUNT STORES,5310
Expenditure - Procurement Card,2015 12,Worcestershire County Council,Children's Services,CH-PROFIT,Green Hill Lodge,E31761,ARGOS LTD,Equipment,48601,30/03/2016,4600116375,14.16,DISCOUNT STORES,5310
Expenditure - Procurement Card,2015 12,Worcestershire County Council,Children's Services,CH-PROFIT,Green Hill Lodge,E31761,ARGOS LTD,Equipment,48601,30/03/2016,4600116376,5.83,DISCOUNT STORES,5310
Expenditure - Procurement Card,2015 12,Worcestershire County Council,Children's Services,CH-PROFIT,S20 LAC Permanancy North West,E35602,ARGOS RETAIL GROUP,Misc Other Expenses,51619,30/03/2016,4600116665,291.66,DISCOUNT STORES,5310
Expenditure - Procurement Card,2015 12,Worcestershire County Council,Children's Services,CH-PROFIT,Oak House EBD Unit,E31765,ARGOS LTD,Equipment & Furniture,49001,31/03/2016,4600116580,27.06,DISCOUNT STORES,5310
Expenditure - Procurement Card,2015 12,Worcestershire County Council,Children's Services,CH-PROFIT,Early Help Team 1,E29204,ARGOS RETAIL GROUP,Care Grants,51006,07/03/2016,4600113667,54.98,DISCOUNT STORES,5310
Expenditure - Procurement Card,2015 12,Worcestershire County Council,Children's Services,CH-PROFIT,126 Barnards Green Road,E31760,ARGOS,Services Out Of School Activities,50060,08/03/2016,4600113691,14.16,DISCOUNT STORES,5310
Expenditure - Procurement Card,2015 12,Worcestershire County Council,Children's Services,CH-PROFIT,Stronger Families programme,E36026,ARGOS RETAIL GROUP,Equipment,48601,01/03/2016,4600112966,10.62,DISCOUNT STORES,5310
Expenditure - Over 500,2015 12,Worcestershire County Council,Adult Services & Health,AC-PROFIT,South Worcester Residential LD,S35551,ARDEN HOUSE,Receipts Sales Long Term Residents,67047,21/03/2016,7310394989,1531.32,,
Expenditure - Over 500,2015 12,Worcestershire County Council,Adult Services & Health,AC-PROFIT,North Worcs Residential LD (Wyre Forest),S35511,ARDEN HOUSE,Third Party Payments Purchase of Long Term Care,53667,21/03/2016,7310394997,1888.04,,
Expenditure - Over 500,2015 12,Worcestershire County Council,Adult Services & Health,AC-PROFIT,LT Residential - PD,S35441,ARDEN HOUSE,Third Party Payments Purchase of Long Term Care,53667,21/03/2016,7310395033,4034.08,,
Expenditure - Over 500,2015 12,Worcestershire County Council,Adult Services & Health,AC-PROFIT,North Worcs Residential LD (Wyre Forest),S35511,ARDEN HOUSE,Receipts Sales Long Term Residents,67047,21/03/2016,7310395101,2094.8,,
Expenditure - Over 500,2015 12,Worcestershire County Council,Adult Services & Health,AC-PROFIT,North Worcs Residential LD (Wyre Forest),S35511,ARDEN HOUSE,Receipts Sales Long Term Residents,67047,21/03/2016,7310395103,2094.8,,
Expenditure - Over 500,2015 12,Worcestershire County Council,Adult Services & Health,AC-PROFIT,North Worcs Residential LD (Wyre Forest),S35511,ARDEN HOUSE,Third Party Payments Purchase of Long Term Care,53667,21/03/2016,7310395155,2457.08,,
Expenditure - Over 500,2015 12,Worcestershire County Council,Adult Services & Health,AC-PROFIT,LT Residential - OP,S35341,ARDEN HOUSE,Receipts Sales Long Term Residents,67047,21/03/2016,7310395313,-506.32,,
Expenditure - Over 500,2015 12,Worcestershire County Council,Adult Services & Health,AC-PROFIT,South Worcester Residential LD,S35551,ARDEN HOUSE,Third Party Payments Purchase of Long Term Care,53667,21/03/2016,7310395331,3800,,
Expenditure - Procurement Card,2015 12,Worcestershire County Council,Children's Services,CH-PROFIT,S17 Care Leavers Team,E36604,ARGOS LTD,Care Grants,51006,01/03/2016,4600112745,300.77,DISCOUNT STORES,5310
Expenditure - Procurement Card,2015 12,Worcestershire County Council,Children's Services,CH-PROFIT,S17 Care Leavers Team,E36604,ARGOS LTD,Care Grants,51006,01/03/2016,4600112746,11.66,DISCOUNT STORES,5310
Expenditure - Procurement Card,2015 12,Worcestershire County Council,Children's Services,CH-PROFIT,Orchardene Residential Unit,E31764,ARGOS,Equipment,48601,01/03/2016,4600112618,66.65,DISCOUNT STORES,5310
Expenditure - Procurement Card,2015 12,Worcestershire County Council,Children's Services,CH-PROFIT,126 Barnards Green Road,E31760,ARGOS,Equipment,48601,08/03/2016,4600113673,6.58,DISCOUNT STORES,5310
Expenditure - Procurement Card,2015 12,Worcestershire County Council,Children's Services,CH-PROFIT,126 Barnards Green Road,E31760,ARGOS LTD,Equipment,48601,08/03/2016,4600113624,35.64,DISCOUNT STORES,5310
Expenditure - Procurement Card,2015 12,Worcestershire County Council,Children's Services,CH-PROFIT,Oak House EBD Unit,E31765,ARGOS LTD,Equipment,48601,02/03/2016,4600112996,14.99,DISCOUNT STORES,5310
Expenditure - Procurement Card,2015 12,Worcestershire County Council,Children's Services,CH-PROFIT,Fostering Placements,E34926,ARGOS RETAIL GROUP,Equipment Cleaning & Domestic Equipment,49072,02/03/2016,4600113144,54.12,DISCOUNT STORES,5310
Expenditure - Procurement Card,2015 12,Worcestershire County Council,Children's Services,CH-PROFIT,Fostering Placements,E34926,ARGOS RETAIL GROUP,Equipment Cleaning & Domestic Equipment,49072,02/03/2016,4600113145,168.49,DISCOUNT STORES,5310
Expenditure - Procurement Card,2015 12,Worcestershire County Council,Children's Services,CH-PROFIT,Rivendell Residential Unit,E31767,ARGOS LTD,Equipment,48601,03/03/2016,4600113269,14.99,DISCOUNT STORES,5310
Expenditure - Procurement Card,2015 12,Worcestershire County Council,Children's Services,CH-PROFIT,126 Barnards Green Road,E31760,ARGOS,Equipment,48601,08/03/2016,4600113683,16.67,DISCOUNT STORES,5310
Expenditure - Procurement Card,2015 12,Worcestershire County Council,Children's Services,CH-PROFIT,Downsell Road Redditch,E31361,ARGOS LTD,Equipment & Furniture,49001,09/03/2016,4600113994,29.16,DISCOUNT STORES,5310
Expenditure - Procurement Card,2015 12,Worcestershire County Council,Children's Services,CH-PROFIT,Downsell Road Redditch,E31361,ARGOS LTD,Services Birthday & Christmas Gifts,50058,09/03/2016,4600113993,20.83,DISCOUNT STORES,5310
Expenditure - Procurement Card,2015 12,Worcestershire County Council,Children's Services,CH-PROFIT,Green Hill Lodge,E31761,ARGOS LTD,Services Personal Needs,50062,09/03/2016,4600113854,35.4,DISCOUNT STORES,5310
Expenditure - Procurement Card,2015 12,Worcestershire County Council,Children's Services,CH-PROFIT,Green Hill Lodge,E31761,ARGOS LTD,Equipment,48601,09/03/2016,4600113853,12.49,DISCOUNT STORES,5310
Expenditure - Procurement Card,2015 12,Worcestershire County Council,Children's Services,CH-PROFIT,"S17 Redditch (Matchb'gh, Winyates,&Churc",E36509,ARGOS RETAIL GROUP,Services Personal Needs,50062,09/03/2016,4600114120,59.98,DISCOUNT STORES,5310
Expenditure - Procurement Card,2015 12,Worcestershire County Council,Adult Services & Health,AC-PROFIT,Howbury Pickersleigh Rd Malvern,S31764,ARGOS,Bedding & Linen,49506,10/03/2016,4600114119,39.35,DISCOUNT STORES,5310
Expenditure - Procurement Card,2015 12,Worcestershire County Council,Adult Services & Health,AC-LDDAYC,Bromsgrove Resource Centre,S31691,ARGOS RETAIL GROUP,Catering Supplies/Provisions,49251,10/03/2016,4600114283,115.95,DISCOUNT STORES,5310
Expenditure - Procurement Card,2015 12,Worcestershire County Council,Children's Services,CH-PROFIT,Team 5,E37505,ARGOS LTD,Equipment,48601,11/03/2016,4600114260,39.99,DISCOUNT STORES,5310
Expenditure - Over 500,2015 12,Worcestershire County Council,Adult Services & Health,AC-PROFIT,Timberdine Nursing & Rehab Unit,S31562,ARJOHUNTLEIGH UK,Repairs & Maintenance Buildings General Expen,42001,14/03/2016,4101532196,848.5,,
Expenditure - Over 500,2015 12,Worcestershire County Council,Adult Services & Health,AC-PROFIT,Equipment - Pooled Budgets,S31526,ARJOHUNTLEIGH UK,Equipment Adults Special SSD,49086,17/03/2016,4101535744,2700,,
Expenditure - Over 500,2015 12,Worcestershire County Council,Children's Services,CH-PROFIT,Short Breaks on framework,E31529,ARMCHAIR MINIBUSES,PTG - Transport Tendered / Cont. Services,46021,07/03/2016,7190128383,1755,,
Expenditure - Over 500,2015 12,Worcestershire County Council,Adult Services & Health,AC-PROFIT,LD Transport (PTG) North,S34844,ARMCHAIR MINIBUSES,PTG - Transport Tendered / Cont. Services,46021,07/03/2016,7190128385,2478,,
Expenditure - Over 500,2015 12,Worcestershire County Council,Children's Services,CH-PROFIT,Short Breaks on framework,E31529,ARMCHAIR MINIBUSES,PTG - Transport Tendered / Cont. Services,46021,07/03/2016,7190128394,3232,,
Expenditure - Over 500,2015 12,Worcestershire County Council,Children's Services,CH-PROFIT,Short Breaks on framework,E31529,ARMCHAIR MINIBUSES,PTG - Transport Tendered / Cont. Services,46021,07/03/2016,7190128397,3184,,
Expenditure - Over 500,2015 12,Worcestershire County Council,"Business, Environment & Community",EN-DIR,Concessionary Fares Administration,V21015,ASTONS COACHES LTD,Third Party Pymnts Public Transport Operators,54005,17/03/2016,7190128835,1068.18,,
Expenditure - Over 500,2015 12,Worcestershire County Council,"Business, Environment & Community",EN-DIR,Local Bus WCC Services,V21020,ASTONS COACHES LTD,Third Party Pymnts Other Hired & Contracted Servs,53986,17/03/2016,7190128857,13442.6,,
Expenditure - Over 500,2015 12,Worcestershire County Council,"Business, Environment & Community",EN-DIR,Local Bus WCC Services,V21020,ASTONS COACHES LTD,Third Party Pymnts Other Hired & Contracted Servs,53986,17/03/2016,7190128858,16882.7,,
Expenditure - Over 500,2015 12,Worcestershire County Council,"Business, Environment & Community",EN-DIR,Local Bus WCC Services,V21020,ASTONS COACHES LTD,Third Party Pymnts Other Hired & Contracted Servs,53986,17/03/2016,7190128859,20305.76,,
Expenditure - Over 500,2015 12,Worcestershire County Council,Children's Services,CH-PROFIT,Primary Home/School Transport,E10037,ASTONS COACHES LTD,PTG - Transport Tendered / Cont. Services,46021,17/03/2016,7190128961,2378.4,,
Expenditure - Over 500,2015 12,Worcestershire County Council,Children's Services,CH-PROFIT,Primary Home/School Transport,E10037,ASTONS COACHES LTD,PTG - Transport Tendered / Cont. Services,46021,17/03/2016,7190128962,3022.56,,
Expenditure - Over 500,2015 12,Worcestershire County Council,Children's Services,CH-PROFIT,Primary Home/School Transport,E10037,ASTONS COACHES LTD,PTG - Transport Tendered / Cont. Services,46021,17/03/2016,7190128963,2355.84,,
Expenditure - Over 500,2015 12,Worcestershire County Council,Children's Services,CH-PROFIT,Secondary Home/School Transport,E10707,ASTONS COACHES LTD,PTG - Transport Tendered / Cont. Services,46021,17/03/2016,7190128964,4608.64,,
Expenditure - Over 500,2015 12,Worcestershire County Council,Adult Services & Health,AC-PROFIT,Equipment - Pooled Budgets,S31526,ARJOHUNTLEIGH UK,Equipment Adults SDD,49084,21/03/2016,4101536818,6770,,
Expenditure - Over 500,2015 12,Worcestershire County Council,Adult Services & Health,AC-PROFIT,Equipment - Pooled Budgets,S31526,ARJOHUNTLEIGH UK,Electro Biomedical Engineering Costs,51713,22/03/2016,4101536698,1888.31,,
Expenditure - Over 500,2015 12,Worcestershire County Council,Resources,CS-DIR,Health & Safety - NTS,C36415,ARJOHUNTLEIGH UK,Training Expenses,51665,29/03/2016,4101539662,10275,,
Expenditure - Over 500,2015 12,Worcestershire County Council,Resources,CS-DIR,Health & Safety - NTS,C36415,ARJOHUNTLEIGH UK,Training Expenses,51665,29/03/2016,4101539664,6850,,
Expenditure - Over 500,2015 12,Worcestershire County Council,Children's Services,CH-PROFIT,Early Years - Other Providers,E21205,ASCENSION NURSERY,Third Party Pymts 4Yr Old Nursery Education Grant,53657,07/03/2016,7200024800,4264.06,,
Expenditure - Over 500,2015 12,Worcestershire County Council,Children's Services,CH-PROFIT,Early Years - 2 year old funding,E23050,ASCENSION NURSERY,Third Party Pymts 4Yr Old Nursery Education Grant,53657,23/03/2016,7200025096,2557.5,,
Expenditure - Over 500,2015 12,Worcestershire County Council,"Business, Environment & Community",EN-PROFIT,Bishopswood Environmental Educat Centre,V82002,ASKEWS POWER-TRAC,Repairs & Maintenance Grounds  Routine Mainte,42014,03/03/2016,4101530416,1598.73,,
Expenditure - Over 500,2015 12,Worcestershire County Council,Adult Services & Health,AC-PROFIT,Residential - MH,S35641,ASTON HOUSE,Third Party Payments Purchase of Long Term Care,53667,21/03/2016,7310395981,3000,,
Expenditure - Over 500,2015 12,Worcestershire County Council,Adult Services & Health,AC-PROFIT,Residential - MH,S35641,ASTON HOUSE,Third Party Payments Purchase of Long Term Care,53667,21/03/2016,7310396017,1228.88,,
Expenditure - Over 500,2015 12,Worcestershire County Council,Children's Services,CH-PROFIT,FE Home/College Transport,E20227,ASTONS COACHES LTD,PTG - Public Transport Bus,47514,07/03/2016,7190128147,2482,,
Expenditure - Over 500,2015 12,Worcestershire County Council,Children's Services,CH-PROFIT,Primary Home/School Transport,E10037,ASTONS COACHES LTD,PTG - Transport Tendered / Cont. Services,46021,07/03/2016,7190128424,2824.35,,
Expenditure - Over 500,2015 12,Worcestershire County Council,Children's Services,CH-PROFIT,Secondary Home/School Transport,E10707,ASTONS COACHES LTD,PTG - Transport Tendered / Cont. Services,46021,07/03/2016,7190128429,3600,,
Expenditure - Over 500,2015 12,Worcestershire County Council,Children's Services,CH-PROFIT,Secondary Home/School Transport,E10707,ASTONS COACHES LTD,PTG - Transport Tendered / Cont. Services,46021,07/03/2016,7190128437,1891.36,,
Expenditure - Over 500,2015 12,Worcestershire County Council,Children's Services,CH-PROFIT,Secondary Home/School Transport,E10707,ASTONS COACHES LTD,PTG - Transport Tendered / Cont. Services,46021,07/03/2016,7190128438,1891.37,,
Expenditure - Over 500,2015 12,Worcestershire County Council,Children's Services,CH-PROFIT,Secondary Home/School Transport,E10707,ASTONS COACHES LTD,PTG - Transport Tendered / Cont. Services,46021,07/03/2016,7190128461,1644.86,,
Expenditure - Over 500,2015 12,Worcestershire County Council,Children's Services,CH-PROFIT,Secondary Home/School Transport,E10707,ASTONS COACHES LTD,PTG - Transport Tendered / Cont. Services,46021,07/03/2016,7190128462,1644.86,,
Expenditure - Over 500,2015 12,Worcestershire County Council,Children's Services,CH-PROFIT,Secondary Home/School Transport,E10707,ASTONS COACHES LTD,PTG - Transport Tendered / Cont. Services,46021,07/03/2016,7190128463,2038.18,,
Expenditure - Over 500,2015 12,Worcestershire County Council,Children's Services,CH-PROFIT,Early Years - Other Providers,E21205,ASTWOOD BANK PRE- SCHOOL,Third Party Pymts 4Yr Old Nursery Education Grant,53657,07/03/2016,7200024605,2996.51,,
Expenditure - Over 500,2015 12,Worcestershire County Council,Children's Services,CH-PROFIT,Secondary Home/School Transport,E10707,ASTONS COACHES LTD,PTG - Transport Tendered / Cont. Services,46021,07/03/2016,7190128511,4567.74,,
Expenditure - Over 500,2015 12,Worcestershire County Council,Children's Services,CH-PROFIT,Secondary Home/School Transport,E10707,ASTONS COACHES LTD,PTG - Transport Tendered / Cont. Services,46021,07/03/2016,7190128512,3216.72,,
Expenditure - Over 500,2015 12,Worcestershire County Council,Children's Services,CH-PROFIT,Secondary Home/School Transport,E10707,ASTONS COACHES LTD,PTG - Transport Tendered / Cont. Services,46021,07/03/2016,7190128464,2038.18,,
Expenditure - Over 500,2015 12,Worcestershire County Council,Children's Services,CH-PROFIT,Primary Home/School Transport,E10037,ASTONS COACHES LTD,PTG - Transport Tendered / Cont. Services,46021,07/03/2016,7190128476,4425.44,,
Expenditure - Over 500,2015 12,Worcestershire County Council,Children's Services,CH-PROFIT,Primary Home/School Transport,E10037,ASTONS COACHES LTD,PTG - Transport Tendered / Cont. Services,46021,07/03/2016,7190128477,1872.3,,
Expenditure - Over 500,2015 12,Worcestershire County Council,Children's Services,CH-PROFIT,Secondary Home/School Transport,E10707,ASTONS COACHES LTD,PTG - Transport Tendered / Cont. Services,46021,07/03/2016,7190128478,2163.79,,
Expenditure - Over 500,2015 12,Worcestershire County Council,Children's Services,CH-PROFIT,Trans't to Non WCC Primary Schools,E10027,ASTONS COACHES LTD,PTG - Transport Tendered / Cont. Services,46021,07/03/2016,7190128479,2163.79,,
Expenditure - Over 500,2015 12,Worcestershire County Council,Children's Services,CH-PROFIT,Secondary Home/School Transport,E10707,ASTONS COACHES LTD,PTG - Transport Tendered / Cont. Services,46021,07/03/2016,7190128497,4454.06,,
Expenditure - Over 500,2015 12,Worcestershire County Council,Children's Services,CH-PROFIT,Secondary Home/School Transport,E10707,ASTONS COACHES LTD,PTG - Transport Tendered / Cont. Services,46021,07/03/2016,7190128498,2941.37,,
Expenditure - Over 500,2015 12,Worcestershire County Council,Children's Services,CH-PROFIT,Secondary Home/School Transport,E10707,ASTONS COACHES LTD,PTG - Transport Tendered / Cont. Services,46021,07/03/2016,7190128499,2941.37,,
Expenditure - Over 500,2015 12,Worcestershire County Council,Children's Services,CH-PROFIT,Secondary Home/School Transport,E10707,ASTONS COACHES LTD,PTG - Transport Tendered / Cont. Services,46021,07/03/2016,7190128500,2773.29,,
Expenditure - Over 500,2015 12,Worcestershire County Council,Children's Services,CH-PROFIT,Primary Home/School Transport,E10037,ASTONS COACHES LTD,PTG - Transport Tendered / Cont. Services,46021,07/03/2016,7190128506,2001.73,,
Expenditure - Over 500,2015 12,Worcestershire County Council,Children's Services,CH-PROFIT,Primary Home/School Transport,E10037,ASTONS COACHES LTD,PTG - Transport Tendered / Cont. Services,46021,07/03/2016,7190128507,3297.17,,
Expenditure - Over 500,2015 12,Worcestershire County Council,Children's Services,CH-PROFIT,Secondary Home/School Transport,E10707,ASTONS COACHES LTD,PTG - Transport Tendered / Cont. Services,46021,07/03/2016,7190128510,10229.19,,
Expenditure - Over 500,2015 12,Worcestershire County Council,Children's Services,CH-PROFIT,Secondary Home/School Transport,E10707,ASTONS COACHES LTD,PTG - Transport Tendered / Cont. Services,46021,07/03/2016,7190128513,3474.05,,
Expenditure - Over 500,2015 12,Worcestershire County Council,Children's Services,CH-PROFIT,Secondary Home/School Transport,E10707,ASTONS COACHES LTD,PTG - Transport Tendered / Cont. Services,46021,07/03/2016,7190128514,3216.72,,
Expenditure - Over 500,2015 12,Worcestershire County Council,Children's Services,CH-PROFIT,Secondary Home/School Transport,E10707,ASTONS COACHES LTD,PTG - Transport Tendered / Cont. Services,46021,07/03/2016,7190128515,3731.4,,
Expenditure - Over 500,2015 12,Worcestershire County Council,Children's Services,CH-PROFIT,Secondary Home/School Transport,E10707,ASTONS COACHES LTD,PTG - Transport Tendered / Cont. Services,46021,07/03/2016,7190128516,3731.4,,
Expenditure - Over 500,2015 12,Worcestershire County Council,Children's Services,CH-PROFIT,Early Help Wyre Forest District,E21509,BARNARDO SERVICES LTD,Third Party Payments New Arrangements,53663,03/03/2016,4101530522,106853.67,,
Expenditure - Over 500,2015 12,Worcestershire County Council,Children's Services,CH-PROFIT,Short Breaks on Framework,E31531,BARNARDO SERVICES LTD,Third Party Pymts Voluntary Associations-General,53656,29/03/2016,4101540675,10957.5,,
Expenditure - Over 500,2015 12,Worcestershire County Council,Children's Services,CH-PROFIT,Short Breaks on Framework,E31531,BARNARDO SERVICES LTD,Third Party Pymts Voluntary Associations-General,53656,29/03/2016,4101540676,17362.5,,
Expenditure - Over 500,2015 12,Worcestershire County Council,Children's Services,CH-PROFIT,Short Breaks on Framework,E31531,BARNARDO SERVICES LTD,Third Party Pymts Voluntary Associations-General,53656,29/03/2016,4101540680,16867.5,,
Expenditure - Over 500,2015 12,Worcestershire County Council,Children's Services,CH-PROFIT,Section 17 Team 20,E32015,BARNARDO'S MIDLANDS,Third Party Pymts Indepentent Fostering Agency,54059,03/03/2016,7220017373,3973,,
Expenditure - Over 500,2015 12,Worcestershire County Council,Children's Services,CH-PROFIT,External Placements Team 14,E38514,BARNARDO'S MIDLANDS,Third Party Pymts Indepentent Fostering Agency,54059,03/03/2016,7220017468,2774,,
Expenditure - Over 500,2015 12,Worcestershire County Council,Children's Services,CH-PROFIT,Short Breaks on Framework,E31531,BARNARDO'S MIDLANDS,Third Party Pymts Voluntary Associations-General,53656,07/03/2016,4101531392,23828,,
Expenditure - Over 500,2015 12,Worcestershire County Council,Adult Services & Health,AC-PROFIT,Family Literacy Language & Numeracy,S25069,BARNARDO'S MIDLANDS,Grants To Outside Bodies,51016,07/03/2016,4101531051,2146,,
Expenditure - Over 500,2015 12,Worcestershire County Council,Children's Services,CH-PROFIT,Adoption Financial Support,E32010,BARNARDO'S MIDLANDS,Care Grants,51006,14/03/2016,4101534145,615,,
Expenditure - Over 500,2015 12,Worcestershire County Council,Children's Services,CH-PROFIT,Short Breaks on Framework,E31531,BARNARDO'S MIDLANDS,Third Party Pymts Voluntary Associations-General,53656,22/03/2016,4101538040,22292.3,,
Expenditure - Over 500,2015 12,Worcestershire County Council,Children's Services,CH-PROFIT,Short Breaks on Framework,E31531,BARNARDO'S MIDLANDS,Third Party Pymts Voluntary Associations-General,53656,22/03/2016,4101538042,20758.88,,
Expenditure - Over 500,2015 12,Worcestershire County Council,Children's Services,CH-PROFIT,Short Breaks on Framework,E31531,BARNARDO'S MIDLANDS,Third Party Pymts Voluntary Associations-General,53656,22/03/2016,4101538030,20875.95,,
Expenditure - Over 500,2015 12,Worcestershire County Council,Adult Services & Health,AC-PROFIT,Domiciliary - MH,S33411,BEACON EMPLOYMENT,Third Party Payments Day Care Frm Independent Prov,53668,23/03/2016,7320474881,765,,
Expenditure - Over 500,2015 12,Worcestershire County Council,Adult Services & Health,AC-PROFIT,LD Day Care External South,S35556,BEACON EMPLOYMENT,Third Party Payments Day Care Frm Independent Prov,53668,23/03/2016,7320474870,810,,
Expenditure - Over 500,2015 12,Worcestershire County Council,Adult Services & Health,AC-PROFIT,Domiciliary - MH,S33411,BEACON EMPLOYMENT,Third Party Payments Day Care Frm Independent Prov,53668,23/03/2016,7320474873,605,,
Expenditure - Over 500,2015 12,Worcestershire County Council,Adult Services & Health,AC-PROFIT,LD Day Care External North,S35555,BEACON EMPLOYMENT,Third Party Payments Day Care Frm Independent Prov,53668,23/03/2016,7320474876,780,,
Expenditure - Over 500,2015 12,Worcestershire County Council,Adult Services & Health,AC-PROFIT,LD Day Care External North,S35555,BEACON EMPLOYMENT,Third Party Payments Day Care Frm Independent Prov,53668,23/03/2016,7320474877,780,,
Expenditure - Over 500,2015 12,Worcestershire County Council,Adult Services & Health,AC-PROFIT,LT Residential - PD,S35441,BIRMINGHAM FOCUS,Third Party Payments Purchase of Long Term Care,53667,21/03/2016,7310396065,4253.04,,
Expenditure - Over 500,2015 12,Worcestershire County Council,Children's Services,CH-PROFIT,Worcester. Blessed Edward Oldcorne,E10847,BLESSED EDWARD OLDCORNE,Education School Bank Accounts,99903,29/03/2016,3310034981,6440.79,,
Expenditure - Over 500,2015 12,Worcestershire County Council,Adult Services & Health,AC-PROFIT,LT Residential - OP,S35341,BEDWARDINE HOUSE RESIDENTIAL CARE H,Receipts Sales Long Term Residents,67047,21/03/2016,7310395201,1050.44,,
Expenditure - Over 500,2015 12,Worcestershire County Council,Adult Services & Health,AC-PROFIT,LT Residential - OP,S35341,BEDWARDINE HOUSE RESIDENTIAL CARE H,Receipts Sales Long Term Residents,67047,21/03/2016,7310395211,1185.64,,
Expenditure - Over 500,2015 12,Worcestershire County Council,Adult Services & Health,AC-PROFIT,LT Residential - OP,S35341,BEDWARDINE HOUSE RESIDENTIAL CARE H,Receipts Sales Long Term Residents,67047,21/03/2016,7310395317,1462.8,,
Expenditure - Over 500,2015 12,Worcestershire County Council,Adult Services & Health,AC-PROFIT,LT Residential - OP,S35341,BEDWARDINE HOUSE RESIDENTIAL CARE H,Receipts Sales Long Term Residents,67047,21/03/2016,7310395345,1535,,
Expenditure - Over 500,2015 12,Worcestershire County Council,Children's Services,CH-PROFIT,Early Years - Other Providers,E21205,BENGEWORTH PRE-SCHOOL,Third Party Pymts 4Yr Old Nursery Education Grant,53657,07/03/2016,7200024620,6457.23,,
Expenditure - Over 500,2015 12,Worcestershire County Council,Children's Services,CH-PROFIT,Early Years - 2 year old funding,E23050,BENGEWORTH PRE-SCHOOL,Third Party Pymts 4Yr Old Nursery Education Grant,53657,23/03/2016,7200024973,1122,,
Expenditure - Over 500,2015 12,Worcestershire County Council,Children's Services,CH-PROFIT,The Bewdley School & Sixth Form Centre,E10732,BEWDLEY SCHOOL & SIXTH FORM CENTRE,Payments4Schools School Fund Contributions,83508,10/03/2016,3310034498,918.5,,
Expenditure - Over 500,2015 12,Worcestershire County Council,Children's Services,CH-PROFIT,The Bewdley School & Sixth Form Centre,E10732,BEWDLEY SCHOOL & SIXTH FORM CENTRE,Payments4Schools School Fund Contributions,83508,31/03/2016,3310035091,1375.5,,
Expenditure - Over 500,2015 12,Worcestershire County Council,Adult Services & Health,AC-PROFIT,Residential - MH,S35641,BIRMINGHAM INSTITUTE FOR THE DEAF,Third Party Payments Purchase of Long Term Care,53667,21/03/2016,7310393227,4962.52,,
Expenditure - Over 500,2015 12,Worcestershire County Council,Children's Services,CH-PROFIT,Downsell Road Redditch,E31361,BIDDLES,Catering Supplies/Provisions,49251,07/03/2016,4101531429,525.2,,
Expenditure - Over 500,2015 12,Worcestershire County Council,Adult Services & Health,AC-PROFIT,LT Residential - OP,S35341,BOURNVILLE VILLAGE TRUST,Third Party Payments Purchase of Long Term Care,53667,21/03/2016,7310393253,947.12,,
Expenditure - Over 500,2015 12,Worcestershire County Council,Children's Services,CH-PROFIT,Early Years - Other Providers,E21205,BRETFORTON PRESCHOOL PLAYGROUP,Third Party Pymts 4Yr Old Nursery Education Grant,53657,07/03/2016,7200024635,1374.28,,
Expenditure - Over 500,2015 12,Worcestershire County Council,Children's Services,CH-PROFIT,Early Years - 2 year old funding,E23050,BRETFORTON PRESCHOOL PLAYGROUP,Third Party Pymts 4Yr Old Nursery Education Grant,53657,23/03/2016,7200024979,2246.5,,
Expenditure - Over 500,2015 12,Worcestershire County Council,Resources,CS-PROFIT,PQ Adults,C36421,BOURNEMOUTH UNIVERSITY,Training Expenses,51665,03/03/2016,4101511993,595,,
Expenditure - Over 500,2015 12,Worcestershire County Council,Resources,CS-PROFIT,PQ Adults,C36421,BOURNEMOUTH UNIVERSITY,Training Expenses,51665,03/03/2016,4101522440,595,,
Expenditure - Over 500,2015 12,Worcestershire County Council,Resources,CS-PROFIT,PQ Adults,C36421,BOURNEMOUTH UNIVERSITY,Training Expenses,51665,03/03/2016,4101522442,595,,
Expenditure - Over 500,2015 12,Worcestershire County Council,Resources,CS-PROFIT,PQ Adults,C36421,BOURNEMOUTH UNIVERSITY,Training Expenses,51665,29/03/2016,4101540356,600,,
Expenditure - Over 500,2015 12,Worcestershire County Council,Children's Services,CH-PROFIT,DSG- Independ't Special Schls Fees Pre16,E24001,BOWBROOK HOUSE SCHOOL LTD,Third Party Pymts Vol Assoc Indepen. Spec Sch Fees,53655,21/03/2016,4101536599,3328,,
Expenditure - Over 500,2015 12,Worcestershire County Council,Children's Services,CH-PROFIT,DSG- Independ't Special Schls Fees Pre16,E24001,BOWBROOK HOUSE SCHOOL LTD,Third Party Pymts Vol Assoc Indepen. Spec Sch Fees,53655,29/03/2016,4101533604,9511,,
Expenditure - Over 500,2015 12,Worcestershire County Council,Children's Services,CH-PROFIT,Early Years - Other Providers,E21205,BREDON PLAYGROUP,Third Party Pymts 4Yr Old Nursery Education Grant,53657,07/03/2016,7200024634,3274.63,,
Expenditure - Over 500,2015 12,Worcestershire County Council,Children's Services,CH-PROFIT,Early Years - 2 year old funding,E23050,BREDON PLAYGROUP,Third Party Pymts 4Yr Old Nursery Education Grant,53657,23/03/2016,7200024978,514.4,,
Expenditure - Over 500,2015 12,Worcestershire County Council,"Business, Environment & Community",EN-PROFIT,Parish Lengthsman Scheme,V16101,BRETFORTON PARISH COUNCIL,Third Party Payments Private Contractors,53974,03/03/2016,4101530478,540,,
Expenditure - Over 500,2015 12,Worcestershire County Council,"Business, Environment & Community",EN-PROFIT,Verges Maintenance,V79120,BRETFORTON PARISH COUNCIL,Third Party Payments Private Contractors,53974,21/03/2016,7210042566,1636,,
Expenditure - Over 500,2015 12,Worcestershire County Council,Children's Services,CH-PROFIT,Short Breaks on framework,E31529,BROMSGROVE BUS & COACH CO LTD,PTG - Transport Tendered / Cont. Services,46021,07/03/2016,7190128408,2000,,
Expenditure - Over 500,2015 12,Worcestershire County Council,Children's Services,CH-PROFIT,Special Home/School Transport,E10877,BROMSGROVE BUS & COACH CO LTD,PTG - Transport Tendered / Cont. Services,46021,07/03/2016,7190128409,1744,,
Expenditure - Over 500,2015 12,Worcestershire County Council,Children's Services,CH-PROFIT,Special Home/School Transport,E10877,BROMSGROVE BUS & COACH CO LTD,PTG - Transport Tendered / Cont. Services,46021,07/03/2016,7190128410,1928,,
Expenditure - Over 500,2015 12,Worcestershire County Council,Children's Services,CH-PROFIT,Section 17 Team 20,E32015,BROMSGROVE BUS & COACH CO LTD,PTG - Transport Tendered / Cont. Services,46021,07/03/2016,7190128411,1695,,
Expenditure - Over 500,2015 12,Worcestershire County Council,Children's Services,CH-PROFIT,Secondary Home/School Transport,E10707,BROMSGROVE BUS & COACH CO LTD,PTG - Transport Tendered / Cont. Services,46021,07/03/2016,7190128517,1692.73,,
Expenditure - Over 500,2015 12,Worcestershire County Council,Children's Services,CH-PROFIT,Primary Home/School Transport,E10037,BROMSGROVE BUS & COACH CO LTD,PTG - Transport Tendered / Cont. Services,46021,07/03/2016,7190128523,1606.36,,
Expenditure - Over 500,2015 12,Worcestershire County Council,Children's Services,CH-PROFIT,Secondary Home/School Transport,E10707,BROMSGROVE BUS & COACH CO LTD,PTG - Transport Tendered / Cont. Services,46021,07/03/2016,7190128526,1395,,
Expenditure - Over 500,2015 12,Worcestershire County Council,Children's Services,CH-PROFIT,Secondary Home/School Transport,E10707,BROMSGROVE BUS & COACH CO LTD,PTG - Transport Tendered / Cont. Services,46021,07/03/2016,7190128530,1949.99,,
Expenditure - Over 500,2015 12,Worcestershire County Council,Children's Services,CH-PROFIT,Early Years - Other Providers,E21205,BROMSGROVE PRE-PREP SCHOOL,Third Party Pymts 4Yr Old Nursery Education Grant,53657,07/03/2016,7200024643,7304.31,,
Expenditure - Over 500,2015 12,Worcestershire County Council,Children's Services,CH-PROFIT,Early Years - Other Providers,E21205,BROMSGROVE PRE-PREP SCHOOL,Third Party Pymts 4Yr Old Nursery Education Grant,53657,07/03/2016,7200024644,3399.15,,
Expenditure - Over 500,2015 12,Worcestershire County Council,Children's Services,CH-PROFIT,Early Years - Other Providers,E21205,BOWBROOK HOUSE SCHOOL LTD,Third Party Pymts 4Yr Old Nursery Education Grant,53657,07/03/2016,7200024628,1509.75,,
Expenditure - Over 500,2015 12,Worcestershire County Council,Children's Services,CH-PROFIT,Post 16 - SEN H/S Transport,E20803,BROOKSIDE TAXIS NO2 CLIENTS A/C,PTG - Transport Tendered / Cont. Services,46021,07/03/2016,7190128158,660,,
Expenditure - Over 500,2015 12,Worcestershire County Council,Children's Services,CH-PROFIT,Trans't to Non WCC Special Schools,E20347,BROOKSIDE TAXIS NO2 CLIENTS A/C,PTG - Transport Tendered / Cont. Services,46021,07/03/2016,7190128159,1620,,
Expenditure - Over 500,2015 12,Worcestershire County Council,Children's Services,CH-PROFIT,Short Breaks on framework,E31529,BROOKSIDE TAXIS NO2 CLIENTS A/C,PTG - Transport Tendered / Cont. Services,46021,07/03/2016,7190128161,2319.84,,
Expenditure - Over 500,2015 12,Worcestershire County Council,Children's Services,CH-PROFIT,Primary Home/School Transport,E10037,BROOKSIDE TAXIS NO2 CLIENTS A/C,PTG - Transport Tendered / Cont. Services,46021,07/03/2016,7190128504,1455,,
Expenditure - Over 500,2015 12,Worcestershire County Council,Children's Services,CH-PROFIT,Special Home/School Transport,E10877,BROOKSIDE TAXIS NO2 CLIENTS A/C,PTG - Transport Tendered / Cont. Services,46021,21/03/2016,7190128995,984,,
Expenditure - Over 500,2015 12,Worcestershire County Council,"Business, Environment & Community",EN-PROFIT,Sustainable Schemes,V19100,BUCHANAN COMPUTING LTD,Computing Licenses,50306,23/03/2016,4101537716,1143,,
Expenditure - Over 500,2015 12,Worcestershire County Council,"Business, Environment & Community",EN-PROFIT,Intelligent Transport & Monitoring,V17001,BUCHANAN COMPUTING LTD,Computing Licenses,50306,29/03/2016,4101540260,2685,,
Expenditure - Over 500,2015 12,Worcestershire County Council,Resources,FS-PROFIT,Pensions Section,F40311,BURGES SALMON LLP,Services Other Fees,50035,29/03/2016,4101540831,3000,,
Expenditure - Over 500,2015 12,Worcestershire County Council,Adult Services & Health,AC-PROFIT,Health Checks,S42005,BOOTS UK,Third Party Payments,53006,03/03/2016,4101529700,888,,
Expenditure - Over 500,2015 12,Worcestershire County Council,Adult Services & Health,AC-PROFIT,Smoking - NRT,S42068,BOOTS UK,Third Party Payments,53006,17/03/2016,7580000843,515.91,,
Expenditure - Over 500,2015 12,Worcestershire County Council,Adult Services & Health,AC-PROFIT,Smoking - NRT,S42068,BOOTS UK,Third Party Payments,53006,17/03/2016,7580000845,961.41,,
Expenditure - Over 500,2015 12,Worcestershire County Council,Adult Services & Health,AC-PROFIT,Smoking - NRT,S42068,BOOTS UK,Third Party Payments,53006,17/03/2016,7580000846,751.78,,
Expenditure - Over 500,2015 12,Worcestershire County Council,Adult Services & Health,AC-PROFIT,Smoking - NRT,S42068,BOOTS UK,Third Party Payments,53006,17/03/2016,7580000848,1310.57,,
Expenditure - Over 500,2015 12,Worcestershire County Council,Adult Services & Health,AC-PROFIT,Smoking - NRT,S42068,BOOTS UK,Third Party Payments,53006,17/03/2016,7580000853,748.72,,
Expenditure - Over 500,2015 12,Worcestershire County Council,Children's Services,CH-PROFIT,Policy Development,E10017,CAPITA BUSINESS SERVICES LTD,Computing Licenses,50306,14/03/2016,4101534570,16157.73,,
Expenditure - Over 500,2015 12,Worcestershire County Council,Children's Services,CH-PROFIT,Early Years - Other Providers,E21205,BROADWAS BUMBLEBEES PLAYGROUP,Third Party Pymts 4Yr Old Nursery Education Grant,53657,07/03/2016,7200024633,2194.49,,
Expenditure - Over 500,2015 12,Worcestershire County Council,Resources,CS-PROFIT,Cllr Divisional Fund,C40236,BROADWAY PARISH COUNCIL,Expenses Members Other,50612,22/03/2016,3310034828,2000,,
Expenditure - Over 500,2015 12,Worcestershire County Council,Children's Services,CH-PROFIT,Early Years - Other Providers,E21205,BROADWAY PLAYGROUP,Third Party Pymts 4Yr Old Nursery Education Grant,53657,07/03/2016,7200024641,5901.28,,
Expenditure - Over 500,2015 12,Worcestershire County Council,Children's Services,CH-PROFIT,Policy Development,E10017,CAPITA BUSINESS SERVICES LTD,Services Other Fees,50035,22/03/2016,4101537736,11234.64,,
Expenditure - Over 500,2015 12,Worcestershire County Council,Resources,CS-PROFIT,Broadband - 1516 Expenditure,C40087,CAPITA BUSINESS SERVICES LTD,Services Other Fees,50035,29/03/2016,4101540881,10159.67,,
Expenditure - Over 500,2015 12,Worcestershire County Council,Resources,CS-PROFIT,Broadband - 1516 Expenditure,C40087,CAPITA BUSINESS SERVICES LTD,Services Other Fees,50035,29/03/2016,4101540885,10159.67,,
Expenditure - Over 500,2015 12,Worcestershire County Council,Adult Services & Health,AC-PROFIT,COP Property Temporary Code,S35397,BUPA CARE SERVICES,Third Party Payments Purchase of Long Term Care,53667,21/03/2016,7310394218,3677.56,,
Expenditure - Over 500,2015 12,Worcestershire County Council,Adult Services & Health,AC-PROFIT,LT Nursing - OP,S35342,BUPA CARE SERVICES,Receipts Sales Long Term Residents,67047,21/03/2016,7310394230,1883.12,,
Expenditure - Over 500,2015 12,Worcestershire County Council,Adult Services & Health,AC-PROFIT,LT Nursing - OP,S35342,BUPA CARE SERVICES,Third Party Payments Purchase of Long Term Care,53667,21/03/2016,7310394232,1046.4,,
Expenditure - Over 500,2015 12,Worcestershire County Council,Adult Services & Health,AC-PROFIT,Property Charge Temporary Code,S35398,BUPA CARE SERVICES,Receipts Sales Long Term Residents,67047,21/03/2016,7310394242,1482.44,,
Expenditure - Over 500,2015 12,Worcestershire County Council,Adult Services & Health,AC-PROFIT,LT Nursing - OP,S35342,BUPA CARE SERVICES,Receipts Sales Long Term Residents,67047,21/03/2016,7310394296,817.6,,
Expenditure - Over 500,2015 12,Worcestershire County Council,Adult Services & Health,AC-PROFIT,LT Nursing - OP,S35342,BUPA CARE SERVICES,Third Party Payments Purchase of Long Term Care,53667,21/03/2016,7310394056,1494.52,,
Expenditure - Over 500,2015 12,Worcestershire County Council,Adult Services & Health,AC-PROFIT,LT Nursing - OP,S35342,BUPA CARE SERVICES,Third Party Payments Purchase of Long Term Care,53667,21/03/2016,7310394078,1438.92,,
Expenditure - Over 500,2015 12,Worcestershire County Council,Adult Services & Health,AC-PROFIT,South Worcester Nursing LD,S35552,BUPA CARE SERVICES,Third Party Payments Purchase of Long Term Care,53667,21/03/2016,7310394082,2908,,
Expenditure - Over 500,2015 12,Worcestershire County Council,Adult Services & Health,AC-PROFIT,LT Nursing - OP,S35342,BUPA CARE SERVICES,Receipts Sales Long Term Residents,67047,21/03/2016,7310394084,1642.4,,
Expenditure - Over 500,2015 12,Worcestershire County Council,Adult Services & Health,AC-PROFIT,LT Nursing - OP,S35342,BUPA CARE SERVICES,Receipts Sales Long Term Residents,67047,21/03/2016,7310394110,1822.8,,
Expenditure - Over 500,2015 12,Worcestershire County Council,Adult Services & Health,AC-PROFIT,LT Nursing - PD,S35442,BUPA CARE SERVICES,Third Party Payments Purchase of Long Term Care,53667,21/03/2016,7310394352,2453.28,,
Expenditure - Over 500,2015 12,Worcestershire County Council,Adult Services & Health,AC-PROFIT,LT Nursing - OP,S35342,BUPA CARE SERVICES,Receipts Sales Long Term Residents,67047,21/03/2016,7310394360,1886.12,,
Expenditure - Over 500,2015 12,Worcestershire County Council,Adult Services & Health,AC-PROFIT,LT Nursing - OP,S35342,BUPA CARE SERVICES,Receipts Sales Long Term Residents,67047,21/03/2016,7310394368,-658.44,,
Expenditure - Over 500,2015 12,Worcestershire County Council,Adult Services & Health,AC-PROFIT,LT Nursing - PD,S35442,BUPA CARE SERVICES,Receipts Sales Long Term Residents,67047,21/03/2016,7310394374,2992.68,,
Expenditure - Over 500,2015 12,Worcestershire County Council,Adult Services & Health,AC-PROFIT,South Worcester Nursing LD,S35552,BUPA CARE SERVICES,Third Party Payments Purchase of Long Term Care,53667,21/03/2016,7310394382,-705.22,,
Expenditure - Over 500,2015 12,Worcestershire County Council,Adult Services & Health,AC-PROFIT,South Worcester Nursing LD,S35552,BUPA CARE SERVICES,Receipts Sales Long Term Residents,67047,21/03/2016,7310394408,2792.32,,
Expenditure - Over 500,2015 12,Worcestershire County Council,Adult Services & Health,AC-PROFIT,LT Nursing - OP,S35342,BUPA CARE SERVICES,Receipts Sales Long Term Residents,67047,21/03/2016,7310394142,764.8,,
Expenditure - Over 500,2015 12,Worcestershire County Council,Adult Services & Health,AC-PROFIT,LT Nursing - OP,S35342,BUPA CARE SERVICES,Receipts Sales Long Term Residents,67047,21/03/2016,7310394150,1160.56,,
Expenditure - Over 500,2015 12,Worcestershire County Council,Adult Services & Health,AC-PROFIT,LT Nursing - OP,S35342,BUPA CARE SERVICES,Receipts Sales Long Term Residents,67047,21/03/2016,7310394174,1671.6,,
Expenditure - Over 500,2015 12,Worcestershire County Council,Adult Services & Health,AC-PROFIT,LT Nursing - OP,S35342,BUPA CARE SERVICES,Third Party Payments Purchase of Long Term Care,53667,21/03/2016,7310394194,2188,,
Expenditure - Over 500,2015 12,Worcestershire County Council,Adult Services & Health,AC-PROFIT,South Worcester Residential LD,S35551,CAMPHILL DEVON COMMUNITY LTD,Receipts Sales Long Term Residents,67047,21/03/2016,7310396009,1323.68,,
Expenditure - Over 500,2015 12,Worcestershire County Council,Adult Services & Health,AC-PROFIT,LT Residential - PD,S35441,CAMPHILL DEVON COMMUNITY LTD,Receipts Sales Long Term Residents,67047,21/03/2016,7310396229,2555.88,,
Expenditure - Over 500,2015 12,Worcestershire County Council,Adult Services & Health,AC-PROFIT,LD Day Care External North,S35555,CAMPHILL VILLAGE TRUST,Third Party Payments Day Care Frm Independent Prov,53668,29/03/2016,7320475055,531.09,,
Expenditure - Over 500,2015 12,Worcestershire County Council,Adult Services & Health,AC-PROFIT,LT Nursing - OP,S35342,BUPA CARE SERVICES,Third Party Payments Purchase of Long Term Care,53667,21/03/2016,7310394448,3200,,
Expenditure - Over 500,2015 12,Worcestershire County Council,Adult Services & Health,AC-PROFIT,ST Nursing - OP,S35344,BUPA CARE SERVICES,Third Party Payments Purchase of RespiteCare,53666,21/03/2016,7310394474,1094,,
Expenditure - Over 500,2015 12,Worcestershire County Council,Adult Services & Health,AC-PROFIT,ST Nursing - OP,S35344,BUPA CARE SERVICES,Third Party Payments Purchase of RespiteCare,53666,21/03/2016,7310394488,1254,,
Expenditure - Over 500,2015 12,Worcestershire County Council,Adult Services & Health,AC-PROFIT,ST Residential - PD,S35443,BUPA CARE SERVICES,Third Party Payments Purchase of RespiteCare,53666,21/03/2016,7310394498,1254,,
Expenditure - Over 500,2015 12,Worcestershire County Council,Adult Services & Health,AC-ERROR,Adults & Community Servs Error Suspense,ACSSER001,BUPA CARE SERVICES,Adult & Community Servs - Other,98254,21/03/2016,7310394500,656,,
Expenditure - Over 500,2015 12,Worcestershire County Council,Adult Services & Health,AC-ERROR,Adults & Community Servs Error Suspense,ACSSER001,BUPA CARE SERVICES,Adult & Community Servs - Other,98254,21/03/2016,7310394508,928,,
Expenditure - Over 500,2015 12,Worcestershire County Council,Adult Services & Health,AC-ERROR,Adults & Community Servs Error Suspense,ACSSER001,BUPA CARE SERVICES,Adult & Community Servs - Other,98254,21/03/2016,7310394512,5360,,
Expenditure - Over 500,2015 12,Worcestershire County Council,Adult Services & Health,AC-PROFIT,LT Nursing - OP,S35342,BUPA CARE SERVICES,Third Party Payments Purchase of Long Term Care,53667,21/03/2016,7310394198,1691.16,,
Expenditure - Over 500,2015 12,Worcestershire County Council,Adult Services & Health,AC-PROFIT,Property Charge Temporary Code,S35398,BUPA CARE SERVICES,Third Party Payments Purchase of Long Term Care,53667,21/03/2016,7310394202,885.24,,
Expenditure - Over 500,2015 12,Worcestershire County Council,Adult Services & Health,AC-PROFIT,ST Nursing - OP,S35344,BUPA CARE SERVICES,Third Party Payments Purchase of RespiteCare,53666,21/03/2016,7310394540,1254,,
Expenditure - Over 500,2015 12,Worcestershire County Council,Adult Services & Health,AC-PROFIT,ST Nursing - OP,S35344,BUPA CARE SERVICES,Third Party Payments Purchase of RespiteCare,53666,21/03/2016,7310394544,1094,,
Expenditure - Over 500,2015 12,Worcestershire County Council,Adult Services & Health,AC-PROFIT,LT Nursing - OP,S35342,BUPA CARE SERVICES,Third Party Payments Purchase of Long Term Care,53667,21/03/2016,7310394208,1471.56,,
Expenditure - Over 500,2015 12,Worcestershire County Council,Adult Services & Health,AC-PROFIT,Domiciliary Spot - PD,S33412,CARE FORCE,Third Party Payments Dom Care Frm Independent Prov,53669,07/03/2016,7320469558,523.53,,
Expenditure - Over 500,2015 12,Worcestershire County Council,Adult Services & Health,AC-PROFIT,Domiciliary Spot - PD,S33412,CARE FORCE,Third Party Payments Dom Care Frm Independent Prov,53669,10/03/2016,7320470996,523.53,,
Expenditure - Over 500,2015 12,Worcestershire County Council,Adult Services & Health,AC-PROFIT,Domiciliary Spot - PD,S33412,CARE FORCE,Third Party Payments Dom Care Frm Independent Prov,53669,23/03/2016,7320474964,523.53,,
Expenditure - Over 500,2015 12,Worcestershire County Council,Adult Services & Health,AC-PROFIT,Bookfund,S80460,PROQUEST LLC,On-line subscriptions,49030,29/03/2016,4101540755,10800,,
Expenditure - Over 500,2015 12,Worcestershire County Council,Adult Services & Health,AC-PROFIT,LT Residential - OP,S35341,CHANDOS LODGE LIMITED,Receipts Sales Long Term Residents,67047,21/03/2016,7310395095,1057.36,,
Expenditure - Over 500,2015 12,Worcestershire County Council,Adult Services & Health,AC-PROFIT,LT Residential - OP,S35341,CHANDOS LODGE LIMITED,Receipts Sales Long Term Residents,67047,21/03/2016,7310395269,1192.32,,
Expenditure - Over 500,2015 12,Worcestershire County Council,Adult Services & Health,AC-PROFIT,ST Residential - OP,S35343,CHANDOS LODGE LIMITED,Third Party Payments Purchase of RespiteCare,53666,21/03/2016,7310395323,2085,,
Expenditure - Over 500,2015 12,Worcestershire County Council,Adult Services & Health,AC-PROFIT,LT Residential - OP,S35341,CHANDOS LODGE LIMITED,Third Party Payments Purchase of Long Term Care,53667,21/03/2016,7310395349,1768,,
Expenditure - Over 500,2015 12,Worcestershire County Council,Adult Services & Health,AC-PROFIT,ST Residential - OP,S35343,CHANDOS LODGE LIMITED,Third Party Payments Purchase of RespiteCare,53666,21/03/2016,7310395387,567,,
Expenditure - Over 500,2015 12,Worcestershire County Council,Adult Services & Health,AC-PROFIT,ST Residential - OP,S35343,CHANDOS LODGE LIMITED,Third Party Payments Purchase of RespiteCare,53666,21/03/2016,7310395389,-500.57,,
Expenditure - Over 500,2015 12,Worcestershire County Council,Adult Services & Health,AC-PROFIT,ST Residential - OP,S35343,CHANDOS LODGE LIMITED,Third Party Payments Purchase of RespiteCare,53666,21/03/2016,7310395411,1000,,
Expenditure - Over 500,2015 12,Worcestershire County Council,Adult Services & Health,AC-PROFIT,Step Down Beds,S35724,CHANDOS LODGE LIMITED,Third Party Payments Purchase of RespiteCare,53666,21/03/2016,7310395413,2571,,
Expenditure - Over 500,2015 12,Worcestershire County Council,Adult Services & Health,AC-PROFIT,ST Residential - OP,S35343,CHANDOS LODGE LIMITED,Third Party Payments Purchase of RespiteCare,53666,21/03/2016,7310395445,834,,
Expenditure - Over 500,2015 12,Worcestershire County Council,Adult Services & Health,AC-PROFIT,Non-DPA Debt Residential OP,S35345,CHANDOS LODGE LIMITED,Receipts Sales Long Term Residents,67047,21/03/2016,7310395447,1654.8,,
Expenditure - Over 500,2015 12,Worcestershire County Council,Adult Services & Health,AC-PROFIT,Dementia Care Home Programme,S35722,CHASE REST HOME,Care Grants,51006,07/03/2016,3310034440,2500,,
Expenditure - Over 500,2015 12,Worcestershire County Council,Adult Services & Health,AC-PROFIT,WW1 Centenary Activities,S80519,CARTER GRAPHICS LIMITED,Materials Museum Purchase - Exhibits,49034,23/03/2016,4101539038,895,,
Expenditure - Over 500,2015 12,Worcestershire County Council,Adult Services & Health,AC-DIR,Year of Liberty & Democracy,S80523,CARTER GRAPHICS LIMITED,Expenses Promotion,51631,23/03/2016,4101539216,1209,,
Expenditure - Over 500,2015 12,Worcestershire County Council,Adult Services & Health,AC-PROFIT,Residential - MH,S35641,CASA MIA,Receipts Sales Long Term Residents,67047,21/03/2016,7310394560,1325.56,,
Expenditure - Over 500,2015 12,Worcestershire County Council,Adult Services & Health,AC-PROFIT,Residential - MH,S35641,CASA MIA,Third Party Payments Purchase of Long Term Care,53667,21/03/2016,7310394562,2288.48,,
Expenditure - Over 500,2015 12,Worcestershire County Council,Adult Services & Health,AC-PROFIT,LT Residential - PD,S35441,CASA MIA,Third Party Payments Purchase of Long Term Care,53667,21/03/2016,7310394564,1288.92,,
Expenditure - Over 500,2015 12,Worcestershire County Council,Adult Services & Health,AC-PROFIT,LT Residential - OP,S35341,CHASE REST HOME,Receipts Sales Long Term Residents,67047,21/03/2016,7310394603,1177.52,,
Expenditure - Over 500,2015 12,Worcestershire County Council,Adult Services & Health,AC-PROFIT,LT Residential - OP,S35341,CHASE REST HOME,Receipts Sales Long Term Residents,67047,21/03/2016,7310394609,1235.92,,
Expenditure - Over 500,2015 12,Worcestershire County Council,Adult Services & Health,AC-PROFIT,LT Residential - OP,S35341,CHASE REST HOME,Receipts Sales Long Term Residents,67047,21/03/2016,7310394649,1162.8,,
Expenditure - Over 500,2015 12,Worcestershire County Council,Adult Services & Health,AC-PROFIT,LT Residential - OP,S35341,CHASE REST HOME,Receipts Sales Long Term Residents,67047,21/03/2016,7310394705,1153.8,,
Expenditure - Over 500,2015 12,Worcestershire County Council,Adult Services & Health,AC-PROFIT,COP Property Temporary Code,S35397,CHASE REST HOME,Third Party Payments Purchase of Long Term Care,53667,21/03/2016,7310394715,2036,,
Expenditure - Over 500,2015 12,Worcestershire County Council,Adult Services & Health,AC-PROFIT,LT Residential - OP,S35341,CHASE REST HOME,Third Party Payments Purchase of Long Term Care,53667,21/03/2016,7310394717,1162.8,,
Expenditure - Over 500,2015 12,Worcestershire County Council,Adult Services & Health,AC-PROFIT,LT Residential - OP,S35341,CHASE REST HOME,Third Party Payments Purchase of Long Term Care,53667,21/03/2016,7310394729,2436,,
Expenditure - Over 500,2015 12,Worcestershire County Council,Adult Services & Health,AC-PROFIT,LT Residential - OP,S35341,CHASE REST HOME,Receipts Sales Long Term Residents,67047,21/03/2016,7310394737,-2485.45,,
Expenditure - Over 500,2015 12,Worcestershire County Council,Adult Services & Health,AC-PROFIT,LT Residential - OP,S35341,CHASE REST HOME,Third Party Payments Purchase of Long Term Care,53667,21/03/2016,7310394765,936.96,,
Expenditure - Over 500,2015 12,Worcestershire County Council,Adult Services & Health,AC-PROFIT,LT Residential - OP,S35341,CHASE REST HOME,Receipts Sales Long Term Residents,67047,21/03/2016,7310394795,1401,,
Expenditure - Over 500,2015 12,Worcestershire County Council,Adult Services & Health,AC-PROFIT,North Worcs Residential LD (Wyre Forest),S35511,CASA MIA,Receipts Sales Long Term Residents,67047,21/03/2016,7310394566,2694.8,,
Expenditure - Over 500,2015 12,Worcestershire County Council,Adult Services & Health,AC-PROFIT,Residential - MH,S35641,CASA MIA,Third Party Payments Purchase of Long Term Care,53667,21/03/2016,7310394574,2336.8,,
Expenditure - Over 500,2015 12,Worcestershire County Council,Adult Services & Health,AC-PROFIT,North Worcs Residential LD (Wyre Forest),S35511,CASA MIA,Receipts Sales Long Term Residents,67047,21/03/2016,7310394594,2114.52,,
Expenditure - Over 500,2015 12,Worcestershire County Council,Adult Services & Health,AC-PROFIT,Residential - MH,S35641,CASA MIA,Third Party Payments Purchase of Long Term Care,53667,21/03/2016,7310394608,2400,,
Expenditure - Over 500,2015 12,Worcestershire County Council,Adult Services & Health,AC-PROFIT,Residential - MH,S35641,CASA MIA,Third Party Payments Purchase of Long Term Care,53667,21/03/2016,7310394616,3200,,
Expenditure - Over 500,2015 12,Worcestershire County Council,Adult Services & Health,AC-PROFIT,Residential - MH,S35641,CASA MIA,Third Party Payments Purchase of Long Term Care,53667,21/03/2016,7310394618,2800,,
Expenditure - Over 500,2015 12,Worcestershire County Council,Adult Services & Health,AC-PROFIT,Residential - MH,S35641,CASA MIA,Third Party Payments Purchase of Long Term Care,53667,21/03/2016,7310394626,2833.6,,
Expenditure - Over 500,2015 12,Worcestershire County Council,Adult Services & Health,AC-PROFIT,Residential - MH,S35641,CASA MIA,Third Party Payments Purchase of Long Term Care,53667,21/03/2016,7310394634,2800,,
Expenditure - Over 500,2015 12,Worcestershire County Council,Adult Services & Health,AC-PROFIT,Residential - MH,S35641,CASA MIA,Third Party Payments Purchase of Long Term Care,53667,21/03/2016,7310394636,3200,,
Expenditure - Over 500,2015 12,Worcestershire County Council,Adult Services & Health,AC-PROFIT,Residential - MH,S35641,CASA MIA,Third Party Payments Purchase of Long Term Care,53667,21/03/2016,7310394648,3200,,
Expenditure - Over 500,2015 12,Worcestershire County Council,Adult Services & Health,AC-PROFIT,Residential - MH,S35641,CASA MIA,Third Party Payments Purchase of Long Term Care,53667,21/03/2016,7310394652,3200,,
Expenditure - Over 500,2015 12,Worcestershire County Council,Adult Services & Health,AC-PROFIT,Residential - MH,S35641,CASA MIA,Third Party Payments Purchase of Long Term Care,53667,21/03/2016,7310394722,3200,,
Expenditure - Over 500,2015 12,Worcestershire County Council,Adult Services & Health,AC-PROFIT,Residential - MH,S35641,CASA MIA,Third Party Payments Purchase of Long Term Care,53667,21/03/2016,7310394746,3200,,
Expenditure - Over 500,2015 12,Worcestershire County Council,Adult Services & Health,AC-PROFIT,Residential - MH,S35641,CASA MIA,Third Party Payments Purchase of Long Term Care,53667,21/03/2016,7310394812,3200,,
Expenditure - Over 500,2015 12,Worcestershire County Council,Adult Services & Health,AC-PROFIT,Residential - MH,S35641,CASA MIA,Third Party Payments Purchase of Long Term Care,53667,21/03/2016,7310394876,4000,,
Expenditure - Over 500,2015 12,Worcestershire County Council,Adult Services & Health,AC-PROFIT,North Worcs Residential LD (Wyre Forest),S35511,CASA MIA,Third Party Payments Purchase of Long Term Care,53667,21/03/2016,7310394964,4820,,
Expenditure - Over 500,2015 12,Worcestershire County Council,Adult Services & Health,AC-PROFIT,LT Residential - OP,S35341,CHASE REST HOME,Third Party Payments Purchase of Long Term Care,53667,21/03/2016,7310394801,1694.8,,
Expenditure - Over 500,2015 12,Worcestershire County Council,Adult Services & Health,AC-PROFIT,LT Residential - OP,S35341,CHASE REST HOME,Third Party Payments Purchase of Long Term Care,53667,21/03/2016,7310394803,1494.8,,
Expenditure - Over 500,2015 12,Worcestershire County Council,Adult Services & Health,AC-PROFIT,LT Residential - OP,S35341,CHASE REST HOME,Receipts Sales Long Term Residents,67047,21/03/2016,7310394889,873.96,,
Expenditure - Over 500,2015 12,Worcestershire County Council,Adult Services & Health,AC-PROFIT,LT Residential - OP,S35341,CHASE REST HOME,Third Party Payments Purchase of Long Term Care,53667,21/03/2016,7310394891,-1080.56,,
Expenditure - Over 500,2015 12,Worcestershire County Council,Adult Services & Health,AC-PROFIT,Residential - MH,S35641,CASA MIA,Third Party Payments Purchase of Long Term Care,53667,21/03/2016,7310394994,15344.56,,
Expenditure - Over 500,2015 12,Worcestershire County Council,Adult Services & Health,AC-PROFIT,ST Residential - OP,S35343,CHASE REST HOME,Third Party Payments Purchase of RespiteCare,53666,21/03/2016,7310394903,1100,,
Expenditure - Over 500,2015 12,Worcestershire County Council,Adult Services & Health,AC-PROFIT,LT Residential - OP,S35341,CHASE REST HOME,Third Party Payments Purchase of Long Term Care,53667,21/03/2016,7310394923,5523.3,,
Expenditure - Over 500,2015 12,Worcestershire County Council,Children's Services,CH-PROFIT,Early Years - Other Providers,E21205,CHEEKY CHARLEYS NURSERY,Third Party Pymts 4Yr Old Nursery Education Grant,53657,07/03/2016,7200024653,3979.48,,
Expenditure - Over 500,2015 12,Worcestershire County Council,Children's Services,CH-PROFIT,Bromsgrove. Catshill Middle,E10627,CATSHILL MIDDLE SCHOOL FUND ACCOUNT,Payments4Schools School Fund Contributions,83508,07/03/2016,3310034421,4546,,
Expenditure - Over 500,2015 12,Worcestershire County Council,Children's Services,CH-PROFIT,YOT Telford& Wrekin,E38002,CCS MEDIA LIMITED,Stationery,49754,07/03/2016,4101531352,431.5,,
Expenditure - Over 500,2015 12,Worcestershire County Council,Children's Services,CH-PROFIT,YOT - S. Worcs,E31312,CCS MEDIA LIMITED,Stationery,49754,14/03/2016,4101533835,440,,
Expenditure - Over 500,2015 12,Worcestershire County Council,Children's Services,CH-PROFIT,YOT - N.Worcs,E31311,CCS MEDIA LIMITED,Stationery,49754,29/03/2016,4101540304,1521.78,,
Expenditure - Over 500,2015 12,Worcestershire County Council,Adult Services & Health,AC-PROFIT,South Worcester Residential LD,S35551,CEDAR GARDENS,Receipts Sales Long Term Residents,67047,21/03/2016,7310395489,1889.88,,
Expenditure - Over 500,2015 12,Worcestershire County Council,Adult Services & Health,AC-PROFIT,South Worcester Residential LD,S35551,CEDAR GARDENS,Receipts Sales Long Term Residents,67047,21/03/2016,7310395499,2784.32,,
Expenditure - Over 500,2015 12,Worcestershire County Council,Adult Services & Health,AC-PROFIT,South Worcester Residential LD,S35551,CEDAR GARDENS,Receipts Sales Long Term Residents,67047,21/03/2016,7310395501,2862.76,,
Expenditure - Over 500,2015 12,Worcestershire County Council,Adult Services & Health,AC-PROFIT,South Worcester Residential LD,S35551,CEDAR GARDENS,Third Party Payments Purchase of Long Term Care,53667,21/03/2016,7310395543,1815.08,,
Expenditure - Over 500,2015 12,Worcestershire County Council,Adult Services & Health,AC-PROFIT,Step Down Beds,S35724,CLASSIC CARE LTD,Third Party Payments Purchase of RespiteCare,53666,21/03/2016,7310394038,574.5,,
Expenditure - Over 500,2015 12,Worcestershire County Council,Adult Services & Health,AC-PROFIT,PoP Placements,S35386,CLASSIC CARE LTD,Third Party Payments Purchase of RespiteCare,53666,21/03/2016,7310394044,738.65,,
Expenditure - Over 500,2015 12,Worcestershire County Council,Adult Services & Health,AC-PROFIT,Step Down Beds,S35724,CLASSIC CARE LTD,Third Party Payments Purchase of RespiteCare,53666,21/03/2016,7310394052,574.5,,
Expenditure - Over 500,2015 12,Worcestershire County Council,Adult Services & Health,AC-PROFIT,Domiciliary Spot - PD,S33412,CARE FORCE,Third Party Payments Dom Care Frm Independent Prov,53669,29/03/2016,7320475855,523.53,,
Expenditure - Over 500,2015 12,Worcestershire County Council,Adult Services & Health,AC-PROFIT,Domiciliary Spot - PD,S33412,CARE FORCE,Third Party Payments Dom Care Frm Independent Prov,53669,29/03/2016,7320475946,523.53,,
Expenditure - Over 500,2015 12,Worcestershire County Council,Children's Services,CH-PROFIT,Early Years - Other Providers,E21205,CHURCH HOUSE DAY NURSERY LTD,Third Party Pymts 4Yr Old Nursery Education Grant,53657,07/03/2016,7200024660,17453.05,,
Expenditure - Over 500,2015 12,Worcestershire County Council,Children's Services,CH-PROFIT,Early Years - 2 year old funding,E23050,CHURCH HOUSE DAY NURSERY LTD,Third Party Pymts 4Yr Old Nursery Education Grant,53657,23/03/2016,7200025000,7679.55,,
Expenditure - Over 500,2015 12,Worcestershire County Council,Resources,FS-PROFIT,Management Team,F40300,CIPFA,Employee Training External Fees & Accommodation,39009,15/03/2016,4101533387,8164.13,,
Expenditure - Over 500,2015 12,Worcestershire County Council,Resources,FS-PROFIT,Management Team,F40300,CIPFA,Employee Training External Fees & Accommodation,39009,15/03/2016,4101533389,8164.13,,
Expenditure - Over 500,2015 12,Worcestershire County Council,Resources,FS-PROFIT,Management Team,F40300,CIPFA,Employee Training External Fees & Accommodation,39009,15/03/2016,4101533392,8164.13,,
Expenditure - Over 500,2015 12,Worcestershire County Council,Adult Services & Health,AC-PROFIT,LT Nursing - OP,S35342,CLASSIC CARE LTD,Receipts Sales Long Term Residents,67047,21/03/2016,7310393566,1317.72,,
Expenditure - Over 500,2015 12,Worcestershire County Council,Adult Services & Health,AC-PROFIT,LT Nursing - OP,S35342,CLASSIC CARE LTD,Third Party Payments Purchase of Long Term Care,53667,21/03/2016,7310393588,1830.8,,
Expenditure - Over 500,2015 12,Worcestershire County Council,Adult Services & Health,AC-PROFIT,LT Nursing - OP,S35342,CLASSIC CARE LTD,Receipts Sales Long Term Residents,67047,21/03/2016,7310393590,1630.8,,
Expenditure - Over 500,2015 12,Worcestershire County Council,Adult Services & Health,AC-PROFIT,LT Nursing - OP,S35342,CLASSIC CARE LTD,Third Party Payments Purchase of Long Term Care,53667,21/03/2016,7310393782,1768.8,,
Expenditure - Over 500,2015 12,Worcestershire County Council,Adult Services & Health,AC-PROFIT,Property Charge Temporary Code,S35398,CLASSIC CARE LTD,Receipts Sales Long Term Residents,67047,21/03/2016,7310393802,2468.32,,
Expenditure - Over 500,2015 12,Worcestershire County Council,Adult Services & Health,AC-PROFIT,LT Nursing - OP,S35342,CLASSIC CARE LTD,Third Party Payments Purchase of Long Term Care,53667,21/03/2016,7310393804,1758,,
Expenditure - Over 500,2015 12,Worcestershire County Council,Adult Services & Health,AC-PROFIT,LT Nursing - OP,S35342,CLASSIC CARE LTD,Receipts Sales Long Term Residents,67047,21/03/2016,7310393806,703.1,,
Expenditure - Over 500,2015 12,Worcestershire County Council,Adult Services & Health,AC-PROFIT,COP Property Temporary Code,S35397,CLASSIC CARE LTD,Third Party Payments Purchase of Long Term Care,53667,21/03/2016,7310393810,2188,,
Expenditure - Over 500,2015 12,Worcestershire County Council,Adult Services & Health,AC-PROFIT,LT Nursing - OP,S35342,CLASSIC CARE LTD,Third Party Payments Purchase of Long Term Care,53667,21/03/2016,7310393836,-1581.24,,
Expenditure - Over 500,2015 12,Worcestershire County Council,Adult Services & Health,AC-PROFIT,COP Property Temporary Code,S35397,CLASSIC CARE LTD,Third Party Payments Purchase of Long Term Care,53667,21/03/2016,7310393862,3501.58,,
Expenditure - Over 500,2015 12,Worcestershire County Council,Adult Services & Health,AC-PROFIT,LT Nursing - OP,S35342,CLASSIC CARE LTD,Third Party Payments Purchase of Long Term Care,53667,21/03/2016,7310393878,2528.96,,
Expenditure - Over 500,2015 12,Worcestershire County Council,Adult Services & Health,AC-PROFIT,LT Nursing - OP,S35342,CLASSIC CARE LTD,Receipts Sales Long Term Residents,67047,21/03/2016,7310393904,1681.48,,
Expenditure - Over 500,2015 12,Worcestershire County Council,Adult Services & Health,AC-PROFIT,LT Nursing - OP,S35342,CLASSIC CARE LTD,Third Party Payments Purchase of Long Term Care,53667,21/03/2016,7310393912,1603.24,,
Expenditure - Over 500,2015 12,Worcestershire County Council,Adult Services & Health,AC-PROFIT,LT Nursing - OP,S35342,CLASSIC CARE LTD,Third Party Payments Purchase of Long Term Care,53667,21/03/2016,7310393938,1654.8,,
Expenditure - Over 500,2015 12,Worcestershire County Council,Adult Services & Health,AC-PROFIT,Step Down Beds,S35724,CLASSIC CARE LTD,Third Party Payments Purchase of RespiteCare,53666,21/03/2016,7310393942,-574.5,,
Expenditure - Over 500,2015 12,Worcestershire County Council,Adult Services & Health,AC-PROFIT,PoP Placements,S35386,CLASSIC CARE LTD,Third Party Payments Purchase of RespiteCare,53666,21/03/2016,7310393954,1149,,
Expenditure - Over 500,2015 12,Worcestershire County Council,Adult Services & Health,AC-ERROR,Adults & Community Servs Error Suspense,ACSSER001,CLASSIC CARE LTD,Adult & Community Servs - Other,98254,21/03/2016,7310394018,976,,
Expenditure - Over 500,2015 12,Worcestershire County Council,Adult Services & Health,AC-PROFIT,Step Down Beds,S35724,CLASSIC CARE LTD,Third Party Payments Purchase of RespiteCare,53666,21/03/2016,7310394026,1149,,
Expenditure - Over 500,2015 12,Worcestershire County Council,Adult Services & Health,AC-PROFIT,Step Down Beds,S35724,CLASSIC CARE LTD,Third Party Payments Purchase of RespiteCare,53666,21/03/2016,7310394032,3447,,
Expenditure - Over 500,2015 12,Worcestershire County Council,Adult Services & Health,AC-PROFIT,Step Down Beds,S35724,CLASSIC CARE LTD,Third Party Payments Purchase of RespiteCare,53666,21/03/2016,7310394036,1723.5,,
Expenditure - Over 500,2015 12,Worcestershire County Council,Adult Services & Health,AC-PROFIT,LT Nursing - OP,S35342,TEWKESBURY NURSING HOME LTD,Receipts Sales Long Term Residents,67047,21/03/2016,7310395087,1070.92,,
Expenditure - Over 500,2015 12,Worcestershire County Council,Adult Services & Health,AC-PROFIT,LT Nursing - OP,S35342,TEWKESBURY NURSING HOME LTD,Receipts Sales Long Term Residents,67047,21/03/2016,7310395125,1926.84,,
Expenditure - Over 500,2015 12,Worcestershire County Council,Adult Services & Health,AC-PROFIT,LT Nursing - OP,S35342,TEWKESBURY NURSING HOME LTD,Receipts Sales Long Term Residents,67047,21/03/2016,7310395151,2109.2,,
Expenditure - Over 500,2015 12,Worcestershire County Council,Adult Services & Health,AC-PROFIT,LT Nursing - OP,S35342,TEWKESBURY NURSING HOME LTD,Receipts Sales Long Term Residents,67047,21/03/2016,7310395181,1605.48,,
Expenditure - Over 500,2015 12,Worcestershire County Council,Adult Services & Health,AC-ERROR,Adults & Community Servs Error Suspense,ACSSER001,TEWKESBURY NURSING HOME LTD,Adult & Community Servs - Other,98254,21/03/2016,7310395415,2336,,
Expenditure - Over 500,2015 12,Worcestershire County Council,Resources,CS-PROFIT,"County Offices,Windsor St, Bromsgrove",C40346,VEOLIA ES UK LIMITED,Premises Waste Refuse Collection,45801,07/03/2016,4101531671,487.97,,
Expenditure - Over 500,2015 12,Worcestershire County Council,Children's Services,CH-PROFIT,Primary Home/School Transport,E10037,COLWALL COACHES,PTG - Transport Tendered / Cont. Services,46021,07/03/2016,7190128482,2417.58,,
Expenditure - Over 500,2015 12,Worcestershire County Council,Children's Services,CH-PROFIT,Primary Home/School Transport,E10037,COMMANDERY COACHES LLP,PTG - Transport Tendered / Cont. Services,46021,07/03/2016,7190128505,2331.8,,
Expenditure - Over 500,2015 12,Worcestershire County Council,"Business, Environment & Community",EN-PROFIT,Community Transport,V21010,COMMUNITY ACTION GROUP,Third Party Pymnts Other Hired & Contracted Servs,53986,07/03/2016,7190128157,1002,,
Expenditure - Over 500,2015 12,Worcestershire County Council,Adult Services & Health,AC-PROFIT,LT Residential - OP,S35341,COMMUNITY WORLD LTD,Receipts Sales Long Term Residents,67047,21/03/2016,7310395295,1021.24,,
Expenditure - Over 500,2015 12,Worcestershire County Council,Adult Services & Health,AC-PROFIT,LT Residential - OP,S35341,COMMUNITY WORLD LTD,Receipts Sales Long Term Residents,67047,21/03/2016,7310395299,1171.04,,
Expenditure - Over 500,2015 12,Worcestershire County Council,Adult Services & Health,AC-PROFIT,LT Residential - OP,S35341,COMMUNITY WORLD LTD,Receipts Sales Long Term Residents,67047,21/03/2016,7310395371,1503,,
Expenditure - Over 500,2015 12,Worcestershire County Council,Adult Services & Health,AC-PROFIT,ST Residential - OP,S35343,COMMUNITY WORLD LTD,Third Party Payments Purchase of RespiteCare,53666,21/03/2016,7310395449,1285.71,,
Expenditure - Over 500,2015 12,Worcestershire County Council,Children's Services,CH-PROFIT,Primary Home/School Transport,E10037,COMMANDERY COACHES LLP,PTG - Transport Tendered / Cont. Services,46021,07/03/2016,7190128431,2219.54,,
Expenditure - Over 500,2015 12,Worcestershire County Council,Children's Services,CH-PROFIT,Primary Home/School Transport,E10037,COMMANDERY COACHES LLP,PTG - Transport Tendered / Cont. Services,46021,07/03/2016,7190128447,3060,,
Expenditure - Over 500,2015 12,Worcestershire County Council,"Business, Environment & Community",EN-DIR,Concessionary Fares Administration,V21015,CLEARWAY TAXIS,Third Party Pymnts Public Transport Operators,54005,10/03/2016,7190128535,2294.03,,
Expenditure - Over 500,2015 12,Worcestershire County Council,Children's Services,CH-PROFIT,Primary - SEN H/S Transport,E20801,CLEARWAY TAXIS,PTG - Transport Tendered / Cont. Services,46021,10/03/2016,7190128605,1728,,
Expenditure - Over 500,2015 12,Worcestershire County Council,Children's Services,CH-PROFIT,Special Home/School Transport,E10877,CLEARWAY TAXIS,PTG - Transport Tendered / Cont. Services,46021,17/03/2016,7190128927,2520,,
Expenditure - Over 500,2015 12,Worcestershire County Council,Children's Services,CH-PROFIT,Secondary Home/School Transport,E10707,CLEARWAY TAXIS,PTG - Public Transport Bus,47514,23/03/2016,4101536017,979.2,,
Expenditure - Over 500,2015 12,Worcestershire County Council,Children's Services,CH-PROFIT,Early Years - Other Providers,E21205,CLEEVE PRIOR PRE-SCHOOL,Third Party Pymts 4Yr Old Nursery Education Grant,53657,07/03/2016,7200024661,2196.08,,
Expenditure - Over 500,2015 12,Worcestershire County Council,Resources,CS-PROFIT,Cllr Divisional Fund,C40236,CLEEVE PRIOR PRE-SCHOOL,Expenses Members Other,50612,14/03/2016,3310034611,566.4,,
Expenditure - Over 500,2015 12,Worcestershire County Council,"Business, Environment & Community",EN-DIR,Concessionary Fares Administration,V21015,EUROLINERS,Third Party Pymnts Public Transport Operators,54005,23/03/2016,7190129019,2094.04,,
Expenditure - Over 500,2015 12,Worcestershire County Council,Children's Services,CH-PROFIT,Early Years - Other Providers,E21205,COMMUNITY CORNER PRE-SCHOOL,Third Party Pymts 4Yr Old Nursery Education Grant,53657,07/03/2016,7200024663,8419.3,,
Expenditure - Over 500,2015 12,Worcestershire County Council,Children's Services,CH-PROFIT,Early Years - 2 year old funding,E23050,COMMUNITY CORNER PRE-SCHOOL,Third Party Pymts 4Yr Old Nursery Education Grant,53657,23/03/2016,7200025002,1831.5,,
Expenditure - Over 500,2015 12,Worcestershire County Council,Adult Services & Health,AC-PROFIT,LT Residential - OP,S35341,COMMUNITY WORLD LTD,Third Party Payments Purchase of Long Term Care,53667,21/03/2016,7310395073,1982.32,,
Expenditure - Over 500,2015 12,Worcestershire County Council,Adult Services & Health,AC-PROFIT,LT Residential - OP,S35341,COMMUNITY WORLD LTD,Third Party Payments Purchase of Long Term Care,53667,21/03/2016,7310395085,2010,,
Expenditure - Over 500,2015 12,Worcestershire County Council,Adult Services & Health,AC-PROFIT,LT Residential - OP,S35341,COMMUNITY WORLD LTD,Third Party Payments Purchase of Long Term Care,53667,21/03/2016,7310395099,660.76,,
Expenditure - Over 500,2015 12,Worcestershire County Council,Adult Services & Health,AC-PROFIT,LT Residential - OP,S35341,COMMUNITY WORLD LTD,Receipts Sales Long Term Residents,67047,21/03/2016,7310395231,1338.8,,
Expenditure - Over 500,2015 12,Worcestershire County Council,Adult Services & Health,AC-PROFIT,LT Residential - OP,S35341,COMMUNITY WORLD LTD,Third Party Payments Purchase of Long Term Care,53667,21/03/2016,7310395253,1153.08,,
Expenditure - Over 500,2015 12,Worcestershire County Council,Adult Services & Health,AC-PROFIT,LT Residential - OP,S35341,COMMUNITY WORLD LTD,Third Party Payments Purchase of Long Term Care,53667,21/03/2016,7310395281,1366.8,,
Expenditure - Over 500,2015 12,Worcestershire County Council,Adult Services & Health,AC-PROFIT,Domiciliary Spot - OP,S33414,COUNTY HOME CARE SERVICES LTD T/A,Third Party Payments Dom Care Frm Independent Prov,53669,23/03/2016,7320474619,826.4,,
Expenditure - Over 500,2015 12,Worcestershire County Council,Adult Services & Health,AC-PROFIT,Domiciliary Spot - OP,S33414,COUNTY HOME CARE SERVICES LTD T/A,Third Party Payments Dom Care Frm Independent Prov,53669,23/03/2016,7320474620,612.3,,
Expenditure - Over 500,2015 12,Worcestershire County Council,"Business, Environment & Community",EN-PROFIT,Traffic Studies Misc. Small Counts,V19105,CA TRAFFIC LTD,Equipment Survey Equipment,49075,17/03/2016,4101530386,10252.8,,
Expenditure - Over 500,2015 12,Worcestershire County Council,Children's Services,CH-PROFIT,Secondary Home/School Transport,E10707,CLEARWAY TAXIS,PTG - Transport Tendered / Cont. Services,46021,07/03/2016,7190128520,1653.31,,
Expenditure - Over 500,2015 12,Worcestershire County Council,Adult Services & Health,AC-PROFIT,Investment in Extra Care,S32360,COUNTY HOME CARE SERVICES LTD T/A,Third Party Payments Purchase of Long Term Care,53667,14/03/2016,7320471710,613.8,,
Expenditure - Over 500,2015 12,Worcestershire County Council,Resources,CS-DIR,Health & Safety - NTS,C36415,COGNET LTD,Training Expenses,51665,14/03/2016,4101529815,440,,
Expenditure - Over 500,2015 12,Worcestershire County Council,Resources,CS-PROFIT,Voluntary Sector - In House Training,C36443,COGNET LTD,Training Expenses,51665,14/03/2016,4101533360,1600,,
Expenditure - Over 500,2015 12,Worcestershire County Council,Adult Services & Health,AC-PROFIT,Investment in Extra Care,S32360,COUNTY HOME CARE SERVICES LTD T/A,Third Party Payments Purchase of Long Term Care,53667,14/03/2016,7320471711,613.8,,
Expenditure - Over 500,2015 12,Worcestershire County Council,Adult Services & Health,AC-PROFIT,Domiciliary Spot - OP,S33414,COUNTY HOME CARE SERVICES LTD T/A,Third Party Payments Dom Care Frm Independent Prov,53669,23/03/2016,7320474616,518.4,,
Expenditure - Over 500,2015 12,Worcestershire County Council,Adult Services & Health,AC-PROFIT,Smoking - Stop Smoking Service,S42004,CORNHILL SURGERY,Third Party Payments,53006,01/03/2016,4101522335,633,,
Expenditure - Over 500,2015 12,Worcestershire County Council,Adult Services & Health,AC-PROFIT,Smoking - Stop Smoking Service,S42004,CORNHILL SURGERY,Third Party Payments,53006,23/03/2016,4101534308,566,,
Expenditure - Over 500,2015 12,Worcestershire County Council,Adult Services & Health,AC-PROFIT,Domiciliary Spot - OP,S33414,COUNTY HOME CARE SERVICES LTD T/A,Third Party Payments Dom Care Frm Independent Prov,53669,23/03/2016,7320474617,822,,
Expenditure - Over 500,2015 12,Worcestershire County Council,Adult Services & Health,AC-PROFIT,Domiciliary Spot - OP,S33414,COUNTY HOME CARE SERVICES LTD T/A,Third Party Payments Dom Care Frm Independent Prov,53669,23/03/2016,7320474618,826.4,,
Expenditure - Over 500,2015 12,Worcestershire County Council,Adult Services & Health,AC-PROFIT,North Worcs Residential LD (Wyre Forest),S35511,COTTAGE & RURAL ENTERPRISES LTD,Receipts Sales Long Term Residents,67047,21/03/2016,7310396129,3141.32,,
Expenditure - Over 500,2015 12,Worcestershire County Council,Adult Services & Health,AC-PROFIT,Investment in Extra Care,S32360,COUNTY HOME CARE SERVICES LTD T/A,Third Party Payments Purchase of Long Term Care,53667,14/03/2016,7320471709,613.8,,
Expenditure - Over 500,2015 12,Worcestershire County Council,Adult Services & Health,AC-PROFIT,Domiciliary Block - OP,S33424,COUNTY HOME CARE SERVICES LTD T/A,Third Party Payments Dom Care Frm Independent Prov,53669,23/03/2016,7370064498,577.41,,
Expenditure - Over 500,2015 12,Worcestershire County Council,Adult Services & Health,AC-PROFIT,Domiciliary Block - OP,S33424,COUNTY HOME CARE SERVICES LTD T/A,Third Party Payments Dom Care Frm Independent Prov,53669,23/03/2016,7370064499,577.41,,
Expenditure - Over 500,2015 12,Worcestershire County Council,Adult Services & Health,AC-PROFIT,Domiciliary Spot - OP,S33414,COUNTYWIDE HOMECARE LTD,Third Party Payments Dom Care Frm Independent Prov,53669,10/03/2016,7320471044,547.4,,
Expenditure - Over 500,2015 12,Worcestershire County Council,Adult Services & Health,AC-PROFIT,Domiciliary Spot - PD,S33412,COUNTYWIDE HOMECARE LTD,Third Party Payments Dom Care Frm Independent Prov,53669,10/03/2016,7320471063,684.6,,
Expenditure - Over 500,2015 12,Worcestershire County Council,Adult Services & Health,AC-PROFIT,Domiciliary Spot - OP,S33414,COUNTYWIDE HOMECARE LTD,Third Party Payments Dom Care Frm Independent Prov,53669,14/03/2016,7320472480,547.4,,
Expenditure - Over 500,2015 12,Worcestershire County Council,Adult Services & Health,AC-PROFIT,Domiciliary Spot - PD,S33412,COUNTYWIDE HOMECARE LTD,Third Party Payments Dom Care Frm Independent Prov,53669,14/03/2016,7320472493,619.4,,
Expenditure - Over 500,2015 12,Worcestershire County Council,Adult Services & Health,AC-PROFIT,Domiciliary Spot - OP,S33414,COUNTYWIDE HOMECARE LTD,Third Party Payments Dom Care Frm Independent Prov,53669,23/03/2016,7320474928,547.4,,
Expenditure - Over 500,2015 12,Worcestershire County Council,Adult Services & Health,AC-PROFIT,Domiciliary Spot - PD,S33412,COUNTYWIDE HOMECARE LTD,Third Party Payments Dom Care Frm Independent Prov,53669,23/03/2016,7320474945,611.25,,
Expenditure - Over 500,2015 12,Worcestershire County Council,Adult Services & Health,AC-PROFIT,Domiciliary Spot - OP,S33414,COUNTYWIDE HOMECARE LTD,Third Party Payments Dom Care Frm Independent Prov,53669,29/03/2016,7320476651,547.4,,
Expenditure - Over 500,2015 12,Worcestershire County Council,Adult Services & Health,AC-PROFIT,Domiciliary Spot - PD,S33412,COUNTYWIDE HOMECARE LTD,Third Party Payments Dom Care Frm Independent Prov,53669,29/03/2016,7320476655,611.25,,
Expenditure - Over 500,2015 12,Worcestershire County Council,Children's Services,CH-PROFIT,Early Years - Other Providers,E21205,CRABBS CROSS & HUNT END PLAY GROUP,Third Party Pymts 4Yr Old Nursery Education Grant,53657,07/03/2016,7200024667,3633.97,,
Expenditure - Over 500,2015 12,Worcestershire County Council,Children's Services,CH-PROFIT,Early Years - 2 year old funding,E23050,CRABBS CROSS & HUNT END PLAY GROUP,Third Party Pymts 4Yr Old Nursery Education Grant,53657,23/03/2016,7200025005,892.5,,
Expenditure - Over 500,2015 12,Worcestershire County Council,"Business, Environment & Community",EN-DIR,Transportation Services Overheads,V20100,WOLTERS KLUWER (UK) LIMITED,Subscriptions,51001,08/03/2016,4101531309,645.3,,
Expenditure - Over 500,2015 12,Worcestershire County Council,Children's Services,CH-PROFIT,Early Years - Other Providers,E21205,CROWLE PRE-SCHOOL,Third Party Pymts 4Yr Old Nursery Education Grant,53657,07/03/2016,7200024668,5859.33,,
Expenditure - Over 500,2015 12,Worcestershire County Council,Children's Services,CH-PROFIT,Early Years - 2 year old funding,E23050,CROWLE PRE-SCHOOL,Third Party Pymts 4Yr Old Nursery Education Grant,53657,23/03/2016,7200025006,638.2,,
Expenditure - Over 500,2015 12,Worcestershire County Council,Children's Services,CH-PROFIT,Special Home/School Transport,E10877,CROWN RADIO TAXIS,PTG - Transport Tendered / Cont. Services,46021,17/03/2016,7190128869,1888,,
Expenditure - Over 500,2015 12,Worcestershire County Council,Adult Services & Health,AC-PROFIT,OP Transport,S34219,CROWN RADIO TAXIS,PTG - Transport Tendered / Cont. Services,46021,17/03/2016,7190128870,1575,,
Expenditure - Over 500,2015 12,Worcestershire County Council,Adult Services & Health,AC-PROFIT,LD Transport (PTG) South,S34866,CROWN RADIO TAXIS,PTG - Transport Tendered / Cont. Services,46021,17/03/2016,7190128872,1743,,
Expenditure - Over 500,2015 12,Worcestershire County Council,Children's Services,CH-PROFIT,Special Home/School Transport,E10877,CROWN RADIO TAXIS,PTG - Transport Tendered / Cont. Services,46021,17/03/2016,7190128877,2640,,
Expenditure - Over 500,2015 12,Worcestershire County Council,Children's Services,CH-PROFIT,Post 16 - SEN H/S Transport,E20803,CROWN RADIO TAXIS,PTG - Transport Tendered / Cont. Services,46021,17/03/2016,7190128878,2016,,
Expenditure - Over 500,2015 12,Worcestershire County Council,Children's Services,CH-PROFIT,Special Home/School Transport,E10877,CROWN RADIO TAXIS,PTG - Transport Tendered / Cont. Services,46021,17/03/2016,7190128879,2000,,
Expenditure - Over 500,2015 12,Worcestershire County Council,Children's Services,CH-PROFIT,Post 16 - SEN H/S Transport,E20803,CROWN RADIO TAXIS,PTG - Transport Tendered / Cont. Services,46021,17/03/2016,7190128880,1824,,
Expenditure - Over 500,2015 12,Worcestershire County Council,Children's Services,CH-PROFIT,Special Home/School Transport,E10877,CROWN RADIO TAXIS,PTG - Transport Tendered / Cont. Services,46021,21/03/2016,7190129007,2295,,
Expenditure - Over 500,2015 12,Worcestershire County Council,Children's Services,CH-PROFIT,Secondary Home/School Transport,E10707,CUSTOM TRAVEL,PTG - Transport Tendered / Cont. Services,46021,17/03/2016,7190128956,1041.6,,
Expenditure - Over 500,2015 12,Worcestershire County Council,Children's Services,CH-PROFIT,Secondary Home/School Transport,E10707,CUSTOM TRAVEL,PTG - Transport Tendered / Cont. Services,46021,17/03/2016,7190128957,1041.6,,
Expenditure - Over 500,2015 12,Worcestershire County Council,Children's Services,CH-PROFIT,Early Years - Other Providers,E21205,PUDDLEDUCKS,Third Party Pymts 4Yr Old Nursery Education Grant,53657,07/03/2016,7200024827,8498.26,,
Expenditure - Over 500,2015 12,Worcestershire County Council,Adult Services & Health,AC-PROFIT,Bookfund,S80460,BERTRAM LIBRARY SERVICES,Books,49018,21/03/2016,7150037253,605.14,,
Expenditure - Over 500,2015 12,Worcestershire County Council,Adult Services & Health,AC-PROFIT,Bookfund,S80460,BERTRAM LIBRARY SERVICES,Books,49018,21/03/2016,7150037255,648.02,,
Expenditure - Over 500,2015 12,Worcestershire County Council,Adult Services & Health,AC-PROFIT,Bookfund,S80460,BERTRAM LIBRARY SERVICES,Books,49018,21/03/2016,7150037289,810.44,,
Expenditure - Over 500,2015 12,Worcestershire County Council,Adult Services & Health,AC-PROFIT,Bookfund,S80460,BERTRAM LIBRARY SERVICES,Books,49018,21/03/2016,7150037284,701.69,,
Expenditure - Over 500,2015 12,Worcestershire County Council,Adult Services & Health,AC-PROFIT,Bookfund,S80460,BERTRAM LIBRARY SERVICES,Books,49018,21/03/2016,7150037296,559.74,,
Expenditure - Over 500,2015 12,Worcestershire County Council,Adult Services & Health,AC-PROFIT,Blakenhurst Brockhill  Hewell Libraries,S80494,BERTRAM LIBRARY SERVICES,Books,49018,29/03/2016,7150037333,686.3,,
Expenditure - Over 500,2015 12,Worcestershire County Council,Adult Services & Health,AC-PROFIT,Bookfund,S80460,BERTRAM LIBRARY SERVICES,Books,49018,29/03/2016,7150037342,806.1,,
Expenditure - Over 500,2015 12,Worcestershire County Council,Adult Services & Health,AC-PROFIT,Bookfund,S80460,BERTRAM LIBRARY SERVICES,Books,49018,29/03/2016,7150037362,675.47,,
Expenditure - Over 500,2015 12,Worcestershire County Council,Children's Services,CH-PROFIT,Short Breaks,E31530,DEAF DIRECT LIMITED,Third Party Pymts Voluntary Associations-General,53656,31/03/2016,4101541204,7868.23,,
Expenditure - Over 500,2015 12,Worcestershire County Council,Adult Services & Health,AC-PROFIT,Adults Housing Related Support,S42082,DEAF DIRECT LIMITED,Third Party Payments External Provider,54044,21/03/2016,7360016053,852.98,,
Expenditure - Over 500,2015 12,Worcestershire County Council,Children's Services,CH-PROFIT,Early Years - 2 year old funding,E23050,DEERHURST DAY NURSERY,Third Party Pymts 4Yr Old Nursery Education Grant,53657,23/03/2016,7200025008,1423.6,,
Expenditure - Over 500,2015 12,Worcestershire County Council,Children's Services,CH-PROFIT,Early Years - Other Providers,E21205,DEERHURST DAY NURSERY,Third Party Pymts 4Yr Old Nursery Education Grant,53657,07/03/2016,7200024675,7260.81,,
Expenditure - Over 500,2015 12,Worcestershire County Council,Children's Services,CH-PROFIT,Trans't to Non WCC Secondary Schools,E10028,DUDLEY'S COACHES,PTG - Transport Tendered / Cont. Services,46021,07/03/2016,7190128439,3249.58,,
Expenditure - Over 500,2015 12,Worcestershire County Council,Children's Services,CH-PROFIT,Primary Home/School Transport,E10037,DUDLEY'S COACHES,PTG - Transport Tendered / Cont. Services,46021,07/03/2016,7190128435,3748.19,,
Expenditure - Over 500,2015 12,Worcestershire County Council,Children's Services,CH-PROFIT,Early Years - 2 year old funding,E23050,DROITWICH SPA NURSERY & KINDERGARTE,Third Party Pymts 4Yr Old Nursery Education Grant,53657,23/03/2016,7200025013,1825,,
Expenditure - Over 500,2015 12,Worcestershire County Council,Children's Services,CH-PROFIT,Early Years - Other Providers,E21205,DROITWICH SPA NURSERY & KINDERGARTE,Third Party Pymts 4Yr Old Nursery Education Grant,53657,07/03/2016,7200024681,16770.13,,
Expenditure - Over 500,2015 12,Worcestershire County Council,Children's Services,CH-PROFIT,Early Years - 2 year old funding,E23050,EAST REALM LTD,Third Party Pymts 4Yr Old Nursery Education Grant,53657,23/03/2016,7200025168,2227.5,,
Expenditure - Over 500,2015 12,Worcestershire County Council,Children's Services,CH-PROFIT,Early Years - Other Providers,E21205,EAST REALM LTD,Third Party Pymts 4Yr Old Nursery Education Grant,53657,07/03/2016,7200024911,5329.33,,
Expenditure - Over 500,2015 12,Worcestershire County Council,Children's Services,CH-PROFIT,Pupil Premium Plus,E20843,DEVON COUNTY COUNCIL,Grants To Outside Bodies,51016,03/03/2016,3310034320,600,,
Expenditure - Procurement Card,2015 12,Worcestershire County Council,"Business, Environment & Community",EN-DIR,BEC vehicles,V21459,WWW.DVLA.GOV.UK,Direct Transport Costs Running Costs Licenses,46004,10/03/2016,4600114286,227.5,GOV'T SERV - DEFAULT,9399
Expenditure - Over 500,2015 12,Worcestershire County Council,"Business, Environment & Community",EN-DIR,Concessionary Fares Administration,V21015,DUDLEY'S COACHES,Third Party Pymnts Public Transport Operators,54005,17/03/2016,7190128837,1535.45,,
Expenditure - Over 500,2015 12,Worcestershire County Council,Children's Services,CH-PROFIT,Primary Home/School Transport,E10037,DUDLEY'S COACHES,PTG - Transport Tendered / Cont. Services,46021,10/03/2016,7190128653,2800,,
Expenditure - Over 500,2015 12,Worcestershire County Council,Children's Services,CH-PROFIT,Primary Home/School Transport,E10037,DUDLEY'S COACHES,PTG - Transport Tendered / Cont. Services,46021,07/03/2016,7190128434,3898.11,,
Expenditure - Over 500,2015 12,Worcestershire County Council,Children's Services,CH-PROFIT,Foundation Learning,E35010,DROITWICH SPA & RURAL COUNCIL,Services Course Fees For Pupils,50038,17/03/2016,4101535486,8010,,
Expenditure - Over 500,2015 12,Worcestershire County Council,Adult Services & Health,AC-PROFIT,Health Checks,S42005,THORNELOE LODGE SURGERY,Third Party Payments,53006,03/03/2016,4101512381,784,,
Expenditure - Over 500,2015 12,Worcestershire County Council,Adult Services & Health,AC-PROFIT,Health Checks,S42005,ST STEPHENS SURGERY,Third Party Payments,53006,03/03/2016,4101511950,3853,,
Expenditure - Over 500,2015 12,Worcestershire County Council,Adult Services & Health,AC-PROFIT,North Worcs Residential LD (Wyre Forest),S35511,DEVON & CORNWALL AUTISTIC COMM'TY T,Third Party Payments Purchase of Long Term Care,53667,21/03/2016,7310395995,4694.92,,
Expenditure - Over 500,2015 12,Worcestershire County Council,Adult Services & Health,AC-PROFIT,South Worcester Residential LD,S35551,DERWEN COLLEGE,Third Party Payments Purchase of Long Term Care,53667,21/03/2016,7310395347,1943.12,,
Expenditure - Over 500,2015 12,Worcestershire County Council,Adult Services & Health,AC-PROFIT,South Worcester Residential LD,S35551,DERWEN COLLEGE,Third Party Payments Purchase of Long Term Care,53667,21/03/2016,7310395327,679.6,,
Expenditure - Over 500,2015 12,Worcestershire County Council,Adult Services & Health,AC-PROFIT,South Worcester Residential LD,S35551,DERWEN COLLEGE,Third Party Payments Purchase of Long Term Care,53667,21/03/2016,7310395319,1054.75,,
Expenditure - Over 500,2015 12,Worcestershire County Council,"Business, Environment & Community",EN-PROFIT,"Management, Admin, Prof & Eng",V78800,DERBYSHIRE COUNTY COUNCIL,Consultants Fees,50030,07/03/2016,4101531258,2500,,
Expenditure - Over 500,2015 12,Worcestershire County Council,Adult Services & Health,AC-PROFIT,Equipment - Pooled Budgets,S31526,DENBIGHSHIRE COUNTY COUNCIL,Equipment Adults SDD,49084,14/03/2016,4101533980,1125.84,,
Expenditure - Over 500,2015 12,Worcestershire County Council,Adult Services & Health,AC-PROFIT,North Worcs Residential LD (Wyre Forest),S35511,EDGEVIEW HOMES LTD,Third Party Payments Purchase of Long Term Care,53667,21/03/2016,7310393249,10122.72,,
Expenditure - Over 500,2015 12,Worcestershire County Council,Adult Services & Health,AC-PROFIT,North Supported Living Scheme,S31367,EDGEVIEW HOMES LTD,Third Party Payments Purchase of Long Term Care,53667,21/03/2016,7310393412,3769.92,,
Expenditure - Over 500,2015 12,Worcestershire County Council,Adult Services & Health,AC-PROFIT,North Worcs Nursing LD (Wyre Forest),S35512,EDGEVIEW HOMES LTD,Receipts Sales Long Term Residents,67047,21/03/2016,7310395556,4686.84,,
Expenditure - Over 500,2015 12,Worcestershire County Council,Adult Services & Health,AC-PROFIT,South Worcester Nursing LD,S35552,EDGEVIEW HOMES LTD,Third Party Payments Purchase of Long Term Care,53667,21/03/2016,7310395558,5072.28,,
Expenditure - Over 500,2015 12,Worcestershire County Council,Adult Services & Health,AC-PROFIT,North Worcs Nursing LD (Wyre Forest),S35512,EDGEVIEW HOMES LTD,Third Party Payments Purchase of Long Term Care,53667,21/03/2016,7310395562,3079.52,,
Expenditure - Over 500,2015 12,Worcestershire County Council,Adult Services & Health,AC-PROFIT,North Worcs Nursing LD (Wyre Forest),S35512,EDGEVIEW HOMES LTD,Receipts Sales Long Term Residents,67047,21/03/2016,7310395564,3480.84,,
Expenditure - Over 500,2015 12,Worcestershire County Council,Adult Services & Health,AC-PROFIT,North Worcs Nursing LD (Wyre Forest),S35512,EDGEVIEW HOMES LTD,Receipts Sales Long Term Residents,67047,21/03/2016,7310395566,3646.36,,
Expenditure - Over 500,2015 12,Worcestershire County Council,Adult Services & Health,AC-PROFIT,Nursing - MH,S35642,EDGEVIEW HOMES LTD,Third Party Payments Purchase of Long Term Care,53667,21/03/2016,7310395568,3429.4,,
Expenditure - Over 500,2015 12,Worcestershire County Council,Children's Services,CH-PROFIT,Secondary Home/School Transport,E10707,ELGAR COACHES,PTG - Transport Tendered / Cont. Services,46021,10/03/2016,7190128646,2880,,
Expenditure - Over 500,2015 12,Worcestershire County Council,Children's Services,CH-PROFIT,Primary Home/School Transport,E10037,ELGAR COACHES,PTG - Transport Tendered / Cont. Services,46021,10/03/2016,7190128647,1068,,
Expenditure - Over 500,2015 12,Worcestershire County Council,Children's Services,CH-PROFIT,Secondary Home/School Transport,E10707,ELGAR COACHES,PTG - Transport Tendered / Cont. Services,46021,10/03/2016,7190128648,1068.16,,
Expenditure - Over 500,2015 12,Worcestershire County Council,Adult Services & Health,AC-PROFIT,Property Charge Temporary Code,S35398,ELIZABETH FINN GROUP,Receipts Sales Long Term Residents,67047,21/03/2016,7310393843,9168.32,,
Expenditure - Over 500,2015 12,Worcestershire County Council,Adult Services & Health,AC-PROFIT,ST Residential - OP,S35343,ELIZABETH FINN GROUP,Third Party Payments Purchase of RespiteCare,53666,21/03/2016,7310393911,834,,
Expenditure - Over 500,2015 12,Worcestershire County Council,Adult Services & Health,AC-ERROR,Adults & Community Servs Error Suspense,ACSSER001,ELIZABETH FINN GROUP,Adult & Community Servs - Other,98254,21/03/2016,7310393955,1008,,
Expenditure - Over 500,2015 12,Worcestershire County Council,Adult Services & Health,AC-PROFIT,North Worcs Residential LD (Wyre Forest),S35511,FITZROY SUPPORT,Third Party Payments Purchase of Long Term Care,53667,21/03/2016,7310395469,5863.36,,
Expenditure - Over 500,2015 12,Worcestershire County Council,Adult Services & Health,AC-PROFIT,South Worcester Residential LD,S35551,FITZROY SUPPORT,Third Party Payments Purchase of Long Term Care,53667,21/03/2016,7310395541,6315.24,,
Expenditure - Over 500,2015 12,Worcestershire County Council,Adult Services & Health,AC-PROFIT,South Worcester Residential LD,S35551,FITZROY SUPPORT,Third Party Payments Purchase of Long Term Care,53667,21/03/2016,7310395579,6472.24,,
Expenditure - Over 500,2015 12,Worcestershire County Council,Adult Services & Health,AC-PROFIT,South Worcester Residential LD,S35551,FITZROY SUPPORT,Third Party Payments Purchase of Long Term Care,53667,21/03/2016,7310395711,4725.08,,
Expenditure - Over 500,2015 12,Worcestershire County Council,"Business, Environment & Community",EN-PROFIT,Depot,V82821,ELMS,Third Party Pymnts Other Hired & Contracted Servs,53986,23/03/2016,4101537974,592.28,,
Expenditure - Over 500,2015 12,Worcestershire County Council,Adult Services & Health,AC-PROFIT,South Worcester Residential LD,S35551,ELERI HOUSE,Receipts Sales Long Term Residents,67047,21/03/2016,7310396027,2780.48,,
Expenditure - Over 500,2015 12,Worcestershire County Council,Adult Services & Health,AC-PROFIT,North Worcs Residential LD (Wyre Forest),S35511,ELERI HOUSE,Receipts Sales Long Term Residents,67047,21/03/2016,7310396029,2755.56,,
Expenditure - Over 500,2015 12,Worcestershire County Council,"Business, Environment & Community",EN-PROFIT,"Management, Admin, Professional & E",V22000,EVERSHEDS,Legal Fees,50024,07/03/2016,4101531515,3227,,
Expenditure - Over 500,2015 12,Worcestershire County Council,"Business, Environment & Community",EN-PROFIT,"Management, Admin, Professional & E",V22000,EVERSHEDS,Legal Fees,50024,07/03/2016,4101531518,8678.3,,
Expenditure - Over 500,2015 12,Worcestershire County Council,Children's Services,CH-PROFIT,ESF Funded Activities,E24046,SOUTH WORCESTERSHIRE COLLEGE,Services Client Training Fees,50036,08/03/2016,4101532315,1500,,
Expenditure - Over 500,2015 12,Worcestershire County Council,Children's Services,CH-PROFIT,Foundation Learning,E35010,SOUTH WORCESTERSHIRE COLLEGE,Services Client Training Fees,50036,17/03/2016,4101535569,1620,,
Expenditure - Over 500,2015 12,Worcestershire County Council,Children's Services,CH-PROFIT,The De Montfort School,E10746,THE DE MONTFORD SCHOOL,Payments4Schools School Fund Contributions,83508,07/03/2016,3310034449,4688.9,,
Expenditure - Over 500,2015 12,Worcestershire County Council,Children's Services,CH-PROFIT,The De Montfort School,E10746,THE DE MONTFORD SCHOOL,Payments4Schools School Fund Contributions,83508,29/03/2016,3310035048,4745.15,,
Expenditure - Over 500,2015 12,Worcestershire County Council,Children's Services,CH-PROFIT,Primary Home/School Transport,E10037,ELGAR COACHES,PTG - Transport Tendered / Cont. Services,46021,10/03/2016,7190128643,3888,,
Expenditure - Over 500,2015 12,Worcestershire County Council,Children's Services,CH-PROFIT,Secondary Home/School Transport,E10707,ELGAR COACHES,PTG - Transport Tendered / Cont. Services,46021,10/03/2016,7190128644,3352,,
Expenditure - Over 500,2015 12,Worcestershire County Council,Children's Services,CH-PROFIT,Secondary Home/School Transport,E10707,ELGAR COACHES,PTG - Transport Tendered / Cont. Services,46021,10/03/2016,7190128645,3440,,
Expenditure - Over 500,2015 12,Worcestershire County Council,Adult Services & Health,AC-PROFIT,North Worcs Nursing LD (Wyre Forest),S35512,EDGEVIEW HOMES LTD,Third Party Payments Purchase of Long Term Care,53667,21/03/2016,7310395574,8763.24,,
Expenditure - Over 500,2015 12,Worcestershire County Council,Adult Services & Health,AC-PROFIT,Nursing - MH,S35642,EDGEVIEW HOMES LTD,Third Party Payments Purchase of Long Term Care,53667,21/03/2016,7310395576,9643.6,,
Expenditure - Over 500,2015 12,Worcestershire County Council,Adult Services & Health,AC-PROFIT,South Worcester Nursing LD,S35552,EDGEVIEW HOMES LTD,Third Party Payments Purchase of Long Term Care,53667,21/03/2016,7310395580,11120,,
Expenditure - Over 500,2015 12,Worcestershire County Council,Adult Services & Health,AC-PROFIT,North Worcs Nursing LD (Wyre Forest),S35512,EDGEVIEW HOMES LTD,Third Party Payments Purchase of Long Term Care,53667,21/03/2016,7310395840,7894.32,,
Expenditure - Over 500,2015 12,Worcestershire County Council,Adult Services & Health,AC-PROFIT,North Worcs Nursing LD (Wyre Forest),S35512,EDGEVIEW HOMES LTD,Third Party Payments Purchase of Long Term Care,53667,21/03/2016,7310395942,7709.51,,
Expenditure - Over 500,2015 12,Worcestershire County Council,Adult Services & Health,AC-PROFIT,Coroners Service,S80230,EDWIN HARRIS & SONS,Expenses Cost Incurred Removing Body toInquest,51648,17/03/2016,3300650124,550,,
Expenditure - Over 500,2015 12,Worcestershire County Council,Children's Services,CH-PROFIT,Early Years - Other Providers,E21205,FAIRFIELD PRESCHOOL LIMITED,Third Party Pymts 4Yr Old Nursery Education Grant,53657,07/03/2016,7200024690,4529.37,,
Expenditure - Over 500,2015 12,Worcestershire County Council,Children's Services,CH-PROFIT,Early Years - 2 year old funding,E23050,FAIRFIELD PRESCHOOL LIMITED,Third Party Pymts 4Yr Old Nursery Education Grant,53657,23/03/2016,7200025019,1032.9,,
Expenditure - Over 500,2015 12,Worcestershire County Council,Adult Services & Health,AC-PROFIT,LT Residential - PD,S35441,FATHER HUDSON'S SOCIETY,Receipts Sales Long Term Residents,67047,21/03/2016,7310395967,3932.12,,
Expenditure - Over 500,2015 12,Worcestershire County Council,Adult Services & Health,AC-PROFIT,LD North Domiciliary,S33413,FAVOR HOUSE HOMES,Third Party Payments Dom Care Frm Independent Prov,53669,10/03/2016,7320470047,604.24,,
Expenditure - Over 500,2015 12,Worcestershire County Council,Adult Services & Health,AC-PROFIT,North Supported Living Scheme,S31367,FAVOR HOUSE HOMES,Third Party Payments Purchase of Long Term Care,53667,21/03/2016,7310393520,1848.32,,
Expenditure - Over 500,2015 12,Worcestershire County Council,Adult Services & Health,AC-PROFIT,North Worcs Residential LD (Wyre Forest),S35511,FAVOR HOUSE HOMES,Third Party Payments Purchase of Long Term Care,53667,21/03/2016,7310394999,1756.8,,
Expenditure - Over 500,2015 12,Worcestershire County Council,Adult Services & Health,AC-PROFIT,North Worcs Residential LD (Wyre Forest),S35511,FAVOR HOUSE HOMES,Third Party Payments Purchase of Long Term Care,53667,21/03/2016,7310395001,1629.8,,
Expenditure - Over 500,2015 12,Worcestershire County Council,Adult Services & Health,AC-PROFIT,North Worcs Residential LD (Wyre Forest),S35511,FAVOR HOUSE HOMES,Third Party Payments Purchase of Long Term Care,53667,21/03/2016,7310395003,1786.2,,
Expenditure - Over 500,2015 12,Worcestershire County Council,Adult Services & Health,AC-PROFIT,North Worcs Residential LD (Wyre Forest),S35511,FAVOR HOUSE HOMES,Third Party Payments Purchase of Long Term Care,53667,21/03/2016,7310395005,2150,,
Expenditure - Over 500,2015 12,Worcestershire County Council,Adult Services & Health,AC-PROFIT,North Worcs Residential LD (Wyre Forest),S35511,FAVOR HOUSE HOMES,Receipts Sales Long Term Residents,67047,21/03/2016,7310395007,1766.88,,
Expenditure - Over 500,2015 12,Worcestershire County Council,Adult Services & Health,AC-PROFIT,North Worcs Residential LD (Wyre Forest),S35511,FAVOR HOUSE HOMES,Third Party Payments Purchase of Long Term Care,53667,21/03/2016,7310395065,2462.2,,
Expenditure - Over 500,2015 12,Worcestershire County Council,Adult Services & Health,AC-PROFIT,North Worcs Residential LD (Wyre Forest),S35511,FAVOR HOUSE HOMES,Receipts Sales Long Term Residents,67047,21/03/2016,7310395503,5040.56,,
Expenditure - Over 500,2015 12,Worcestershire County Council,Adult Services & Health,AC-PROFIT,North Worcs Residential LD (Wyre Forest),S35511,FAVOR HOUSE HOMES,Receipts Sales Long Term Residents,67047,21/03/2016,7310395517,3864.64,,
Expenditure - Over 500,2015 12,Worcestershire County Council,Adult Services & Health,AC-PROFIT,North Worcs Residential LD (Wyre Forest),S35511,FAVOR HOUSE HOMES,Third Party Payments Purchase of Long Term Care,53667,21/03/2016,7310395577,5040.56,,
Expenditure - Over 500,2015 12,Worcestershire County Council,Adult Services & Health,AC-PROFIT,North Worcs Residential LD (Wyre Forest),S35511,FAVOR HOUSE HOMES,Third Party Payments Purchase of Long Term Care,53667,21/03/2016,7310395599,3558.8,,
Expenditure - Over 500,2015 12,Worcestershire County Council,Adult Services & Health,AC-PROFIT,North Worcs Residential LD (Wyre Forest),S35511,FAVOR HOUSE HOMES,Third Party Payments Purchase of Long Term Care,53667,21/03/2016,7310395625,4294.8,,
Expenditure - Over 500,2015 12,Worcestershire County Council,Adult Services & Health,AC-PROFIT,Adults Housing Related Support,S42082,FCH HOUSING & CARE,Third Party Payments External Provider,54044,21/03/2016,7360016064,738.56,,
Expenditure - Over 500,2015 12,Worcestershire County Council,Adult Services & Health,AC-PROFIT,LT Residential - OP,S35341,FIELD VIEW RESIDENTIAL HOME,Receipts Sales Long Term Residents,67047,21/03/2016,7310395591,1156.84,,
Expenditure - Over 500,2015 12,Worcestershire County Council,Adult Services & Health,AC-PROFIT,LT Residential - OP,S35341,FIELD VIEW RESIDENTIAL HOME,Receipts Sales Long Term Residents,67047,21/03/2016,7310395637,929.4,,
Expenditure - Over 500,2015 12,Worcestershire County Council,Adult Services & Health,AC-PROFIT,LT Residential - OP,S35341,FIELD VIEW RESIDENTIAL HOME,Receipts Sales Long Term Residents,67047,21/03/2016,7310395665,-967,,
Expenditure - Over 500,2015 12,Worcestershire County Council,Adult Services & Health,AC-PROFIT,COP Property Temporary Code,S35397,FIELD VIEW RESIDENTIAL HOME,Third Party Payments Purchase of Long Term Care,53667,21/03/2016,7310395835,1920,,
Expenditure - Over 500,2015 12,Worcestershire County Council,Adult Services & Health,AC-PROFIT,LT Residential - OP,S35341,FIELD VIEW RESIDENTIAL HOME,Third Party Payments Purchase of Long Term Care,53667,21/03/2016,7310395895,1099.64,,
Expenditure - Over 500,2015 12,Worcestershire County Council,Adult Services & Health,AC-PROFIT,Residential - MH,S35641,GALLTFAENAN HALL,Third Party Payments Purchase of Long Term Care,53667,21/03/2016,7310396025,2924.04,,
Expenditure - Over 500,2015 12,Worcestershire County Council,Adult Services & Health,AC-PROFIT,LT Nursing - OP,S35342,HERITAGE MANOR LTD,Receipts Sales Long Term Residents,67047,21/03/2016,7310393597,1727.64,,
Expenditure - Over 500,2015 12,Worcestershire County Council,Adult Services & Health,AC-PROFIT,LT Nursing - OP,S35342,HERITAGE MANOR LTD,Third Party Payments Purchase of Long Term Care,53667,21/03/2016,7310393561,1760.48,,
Expenditure - Over 500,2015 12,Worcestershire County Council,Adult Services & Health,AC-PROFIT,LT Nursing - OP,S35342,HERITAGE MANOR LTD,Receipts Sales Long Term Residents,67047,21/03/2016,7310393555,1881.28,,
Expenditure - Over 500,2015 12,Worcestershire County Council,Adult Services & Health,AC-PROFIT,LT Nursing - OP,S35342,HERITAGE MANOR LTD,Receipts Sales Long Term Residents,67047,21/03/2016,7310393543,1627.4,,
Expenditure - Over 500,2015 12,Worcestershire County Council,Adult Services & Health,AC-PROFIT,LT Nursing - OP,S35342,HERITAGE MANOR LTD,Receipts Sales Long Term Residents,67047,21/03/2016,7310393471,1622.8,,
Expenditure - Over 500,2015 12,Worcestershire County Council,Non Directorate Specific,LA01,"Worc, County Enterprises - Catering Equ",CA84139,FRANCIS CATERING EQUIPMENT,CAPEX Furniture & Equipment Furniture,65201,21/03/2016,4101520338,3325,,
Expenditure - Over 500,2015 12,Worcestershire County Council,"Business, Environment & Community",EN-PROFIT,Verges Maintenance,V79120,FLADBURY PARISH COUNCIL,Third Party Payments Private Contractors,53974,21/03/2016,7210042536,650,,
Expenditure - Over 500,2015 12,Worcestershire County Council,Children's Services,CH-PROFIT,Early Years - Other Providers,E21205,HANLEY SWAN PRE-SCHOOL PLAYGROUP,Third Party Pymts 4Yr Old Nursery Education Grant,53657,07/03/2016,7200024713,6208.1,,
Expenditure - Over 500,2015 12,Worcestershire County Council,Adult Services & Health,AC-PROFIT,LT Residential - OP,S35341,GREENHILL PARK RESIDENTIAL CARE HOM,Receipts Sales Long Term Residents,67047,21/03/2016,7310395897,787.96,,
Expenditure - Over 500,2015 12,Worcestershire County Council,Adult Services & Health,AC-PROFIT,LT Residential - OP,S35341,GREENHILL PARK RESIDENTIAL CARE HOM,Receipts Sales Long Term Residents,67047,21/03/2016,7310395869,972.88,,
Expenditure - Over 500,2015 12,Worcestershire County Council,Adult Services & Health,AC-PROFIT,LT Residential - OP,S35341,GREENHILL PARK RESIDENTIAL CARE HOM,Receipts Sales Long Term Residents,67047,21/03/2016,7310395817,1863.96,,
Expenditure - Over 500,2015 12,Worcestershire County Council,Adult Services & Health,AC-PROFIT,LT Residential - OP,S35341,GREENHILL PARK RESIDENTIAL CARE HOM,Third Party Payments Purchase of Long Term Care,53667,21/03/2016,7310395747,952,,
Expenditure - Over 500,2015 12,Worcestershire County Council,Adult Services & Health,AC-PROFIT,Dementia Care Home Programme,S35722,GREENHILL PARK RESIDENTIAL CARE HOM,Care Grants,51006,07/03/2016,3310034442,2500,,
Expenditure - Over 500,2015 12,Worcestershire County Council,Adult Services & Health,AC-PROFIT,LT Nursing - OP,S35342,HERITAGE MANOR LTD,Third Party Payments Purchase of Long Term Care,53667,21/03/2016,7310393705,1618.76,,
Expenditure - Over 500,2015 12,Worcestershire County Council,Adult Services & Health,AC-PROFIT,LT Nursing - OP,S35342,HERITAGE MANOR LTD,Third Party Payments Purchase of Long Term Care,53667,21/03/2016,7310393693,1706.4,,
Expenditure - Over 500,2015 12,Worcestershire County Council,Adult Services & Health,AC-PROFIT,Nursing - MH,S35642,HERITAGE MANOR LTD,Third Party Payments Purchase of Long Term Care,53667,21/03/2016,7310393645,3404.4,,
Expenditure - Over 500,2015 12,Worcestershire County Council,Children's Services,CH-PROFIT,Early Years - 2 year old funding,E23050,FIRST CLASS NURSERY (KIDDERMINSTER),Third Party Pymts 4Yr Old Nursery Education Grant,53657,23/03/2016,7200025021,3960,,
Expenditure - Over 500,2015 12,Worcestershire County Council,Children's Services,CH-PROFIT,Early Years - 2 year old funding,E23050,HAPPY DAYS PLAYGROUP,Third Party Pymts 4Yr Old Nursery Education Grant,53657,23/03/2016,7200025031,1274.7,,
Expenditure - Over 500,2015 12,Worcestershire County Council,Children's Services,CH-PROFIT,Early Years - Other Providers,E21205,HAPPY DAYS PLAYGROUP,Third Party Pymts 4Yr Old Nursery Education Grant,53657,07/03/2016,7200024714,9026.48,,
Expenditure - Over 500,2015 12,Worcestershire County Council,"Business, Environment & Community",EN-DIR,Concessionary Fares Administration,V21015,HANSONS (WORDSLEY) LIMITED,Third Party Pymnts Public Transport Operators,54005,17/03/2016,7190128838,2505.2,,
Expenditure - Over 500,2015 12,Worcestershire County Council,"Business, Environment & Community",EN-DIR,Local Bus WCC Services,V21020,HANSONS (WORDSLEY) LIMITED,Third Party Pymnts Other Hired & Contracted Servs,53986,07/03/2016,7190128144,4815.14,,
Expenditure - Over 500,2015 12,Worcestershire County Council,"Business, Environment & Community",EN-PROFIT,Transport Planning Overheads,V19400,HALCROW GROUP LTD,Professional Fees,50031,29/03/2016,4101537828,2318.77,,
Expenditure - Over 500,2015 12,Worcestershire County Council,Non Directorate Specific,LA01,Bromsgrove Package Development,CA62002,HALCROW GROUP LTD,CAPEX Profess & Tech Fees Other Ext Profess Fees,64457,23/03/2016,4101537837,32325.91,,
Expenditure - Over 500,2015 12,Worcestershire County Council,"Business, Environment & Community",EN-PROFIT,Transport Planning Overheads,V19400,HALCROW GROUP LTD,Professional Fees,50031,23/03/2016,4101537825,9698.21,,
Expenditure - Over 500,2015 12,Worcestershire County Council,"Business, Environment & Community",EN-PROFIT,Transport Planning Overheads,V19400,HALCROW GROUP LTD,Professional Fees,50031,23/03/2016,4101537824,1651.57,,
Expenditure - Over 500,2015 12,Worcestershire County Council,"Business, Environment & Community",EN-PROFIT,OFB / New Homes Funded,V19408,HALCROW GROUP LTD,Professional Fees,50031,23/03/2016,4101537821,20755.25,,
Expenditure - Over 500,2015 12,Worcestershire County Council,Non Directorate Specific,LA01,WTSMSB Southern Link Road Dualling,CA40013,HALCROW GROUP LTD,CAPEX Profess & Tech Fees Other Ext Profess Fees,64457,23/03/2016,4101537817,37713.94,,
Expenditure - Over 500,2015 12,Worcestershire County Council,Non Directorate Specific,LA01,WTSMSB Southern Link Road Dualling,CA40013,HALCROW GROUP LTD,CAPEX Profess & Tech Fees Other Ext Profess Fees,64457,23/03/2016,4101537815,61142.74,,
Expenditure - Over 500,2015 12,Worcestershire County Council,Non Directorate Specific,LA01,WTSMSB Southern Link Road Dualling,CA40013,HALCROW GROUP LTD,CAPEX Profess & Tech Fees Other Ext Profess Fees,64457,23/03/2016,4101537813,5956.76,,
Expenditure - Over 500,2015 12,Worcestershire County Council,Non Directorate Specific,LA01,Hoobrook Link Road Phase 2,CA40018,HALCROW GROUP LTD,CAPEX Profess & Tech Fees Other Ext Profess Fees,64457,23/03/2016,4101537811,11964.54,,
Expenditure - Over 500,2015 12,Worcestershire County Council,Non Directorate Specific,LA01,"Worcester, Technology Park",CA87904,HALCROW GROUP LTD,CAPEX Profess & Tech Fees Other Ext Profess Fees,64457,23/03/2016,4101537809,4911.59,,
Expenditure - Over 500,2015 12,Worcestershire County Council,Non Directorate Specific,LA01,Hoobrook Link Road Phase 2,CA40018,HALCROW GROUP LTD,CAPEX Profess & Tech Fees Other Ext Profess Fees,64457,23/03/2016,4101537676,3475.77,,
Expenditure - Over 500,2015 12,Worcestershire County Council,Non Directorate Specific,LA01,Worcestershire Gulley Connections,CA48473,HALCROW GROUP LTD,CAPEX Profess & Tech Fees Other Ext Profess Fees,64457,22/03/2016,4101537685,7343.95,,
Expenditure - Over 500,2015 12,Worcestershire County Council,Non Directorate Specific,LA01,Pot Hole Funding - South,CA48482,HALCROW GROUP LTD,CAPEX Profess & Tech Fees Other Ext Profess Fees,64457,22/03/2016,4101537680,6803.81,,
Expenditure - Over 500,2015 12,Worcestershire County Council,"Business, Environment & Community",EN-PROFIT,S278 / 38 Milestone Payments,V16308,HALCROW GROUP LTD,Professional Fees,50031,22/03/2016,4101537678,5146.99,,
Expenditure - Over 500,2015 12,Worcestershire County Council,"Business, Environment & Community",EN-PROFIT,WCC Transport Models,V19405,HALCROW GROUP LTD,Consultants Fees,50030,22/03/2016,4101537677,16319.81,,
Expenditure - Over 500,2015 12,Worcestershire County Council,"Business, Environment & Community",EN-PROFIT,OFB / New Homes Funded,V19408,HALCROW GROUP LTD,Consultants Fees,50030,22/03/2016,4101537673,16642.31,,
Expenditure - Over 500,2015 12,Worcestershire County Council,Non Directorate Specific,LA01,Kidderminster Transport Strategy,CA60778,HALCROW GROUP LTD,CAPEX Profess & Tech Fees Other Ext Profess Fees,64457,22/03/2016,4101537671,12474.39,,
Expenditure - Over 500,2015 12,Worcestershire County Council,Non Directorate Specific,LA01,Worcestershire Parkway,CA60779,HALCROW GROUP LTD,CAPEX Profess & Tech Fees Other Ext Profess Fees,64457,22/03/2016,4101537495,15227.85,,
Expenditure - Over 500,2015 12,Worcestershire County Council,Non Directorate Specific,LA01,WTSMSB Key Corridors,CA40014,HALCROW GROUP LTD,CAPEX Profess & Tech Fees Other Ext Profess Fees,64457,22/03/2016,4101537493,1763.35,,
Expenditure - Over 500,2015 12,Worcestershire County Council,"Business, Environment & Community",EN-PROFIT,Transport Planning Overheads,V19400,HALCROW GROUP LTD,Professional Fees,50031,22/03/2016,4101537487,5769.46,,
Expenditure - Over 500,2015 12,Worcestershire County Council,Non Directorate Specific,LA01,Kidderminster Transport Strategy,CA60778,HALCROW GROUP LTD,CAPEX Profess & Tech Fees Other Ext Profess Fees,64457,22/03/2016,4101537486,3890.12,,
Expenditure - Over 500,2015 12,Worcestershire County Council,Non Directorate Specific,LA01,Cathedral Plaza,CA60849,HALCROW GROUP LTD,CAPEX Profess & Tech Fees Other Ext Profess Fees,64457,22/03/2016,4101537476,1148.74,,
Expenditure - Over 500,2015 12,Worcestershire County Council,"Business, Environment & Community",EN-PROFIT,S278 / 38 Milestone Payments,V16308,HALCROW GROUP LTD,Professional Fees,50031,22/03/2016,4101537465,573.54,,
Expenditure - Over 500,2015 12,Worcestershire County Council,"Business, Environment & Community",EN-PROFIT,Principal inspections & Structural Inv,V17351,HALCROW GROUP LTD,Professional Fees,50031,22/03/2016,4101537452,20098.76,,
Expenditure - Over 500,2015 12,Worcestershire County Council,Children's Services,CH-PROFIT,Early Years - Other Providers,E21205,HAGLEY PRIMARY,Third Party Pymts 4Yr Old Nursery Education Grant,53657,07/03/2016,7200024710,7807.56,,
Expenditure - Over 500,2015 12,Worcestershire County Council,Non Directorate Specific,LA01,"Eve, St Andrews CE 1st -P2 Increase 2 FE",CA36470,GROUND INVESTIGATION & PILING LTD,CAPEX Construction Costs Main Contractor,64951,14/03/2016,7140092376,2665,,
Expenditure - Over 500,2015 12,Worcestershire County Council,"Business, Environment & Community",EN-PROFIT,Parish Lengthsman Scheme,V16101,GRIMLEY PARISH COUNCIL,Third Party Payments Private Contractors,53974,07/03/2016,4101530809,989,,
Expenditure - Over 500,2015 12,Worcestershire County Council,"Business, Environment & Community",EN-PROFIT,"Management, Admin, Prof & Eng",V78800,GREENHAM TRADING LIMITED,Equipment Office Equipment Purchase,49066,03/03/2016,4101530294,617.36,,
Expenditure - Over 500,2015 12,Worcestershire County Council,Children's Services,CH-PROFIT,Early Years - 2 year old funding,E23050,GREAT WITLEY PRE-SCHOOL PLAYGROUP,Third Party Pymts 4Yr Old Nursery Education Grant,53657,23/03/2016,7200025026,645,,
Expenditure - Over 500,2015 12,Worcestershire County Council,Children's Services,CH-PROFIT,Early Years - Other Providers,E21205,GREAT WITLEY PRE-SCHOOL PLAYGROUP,Third Party Pymts 4Yr Old Nursery Education Grant,53657,07/03/2016,7200024705,7619.82,,
Expenditure - Over 500,2015 12,Worcestershire County Council,Children's Services,CH-PROFIT,Inter-Auth Recoupment - Primary,E10032,GLOUCESTERSHIRE COUNTY COUNCIL,Third Party Payments Inter Authority Recoupment,52354,29/03/2016,4101533601,1283.75,,
Expenditure - Over 500,2015 12,Worcestershire County Council,Children's Services,CH-PROFIT,Adoption Financial Support,E32010,GLOUCESTERSHIRE COUNTY COUNCIL,Third Party Pymnts Interagency,54013,17/03/2016,7230013811,9000,,
Expenditure - Over 500,2015 12,Worcestershire County Council,Children's Services,CH-PROFIT,Adoption Financial Support,E32010,GLOUCESTERSHIRE COUNTY COUNCIL,Third Party Pymnts Interagency,54013,17/03/2016,7230013810,18000,,
Expenditure - Over 500,2015 12,Worcestershire County Council,Adult Services & Health,AC-PROFIT,ST Nursing - OP,S35344,GLENFIELD HOUSE NURSING HOME LTD,Third Party Payments Purchase of RespiteCare,53666,21/03/2016,7310395048,1149,,
Expenditure - Over 500,2015 12,Worcestershire County Council,Adult Services & Health,AC-PROFIT,LT Nursing - OP,S35342,GLENFIELD HOUSE NURSING HOME LTD,Receipts Sales Long Term Residents,67047,21/03/2016,7310395032,2757.9,,
Expenditure - Over 500,2015 12,Worcestershire County Council,Adult Services & Health,AC-ERROR,Adults & Community Servs Error Suspense,ACSSER001,GLENFIELD HOUSE NURSING HOME LTD,Adult & Community Servs - Other,98254,21/03/2016,7310395028,7409.42,,
Expenditure - Over 500,2015 12,Worcestershire County Council,Adult Services & Health,AC-ERROR,Adults & Community Servs Error Suspense,ACSSER001,GLENFIELD HOUSE NURSING HOME LTD,Adult & Community Servs - Other,98254,21/03/2016,7310395008,3488,,
Expenditure - Over 500,2015 12,Worcestershire County Council,Adult Services & Health,AC-ERROR,Adults & Community Servs Error Suspense,ACSSER001,GLENFIELD HOUSE NURSING HOME LTD,Adult & Community Servs - Other,98254,21/03/2016,7310395006,544,,
Expenditure - Over 500,2015 12,Worcestershire County Council,Adult Services & Health,AC-ERROR,Adults & Community Servs Error Suspense,ACSSER001,GLENFIELD HOUSE NURSING HOME LTD,Adult & Community Servs - Other,98254,21/03/2016,7310395004,528,,
Expenditure - Over 500,2015 12,Worcestershire County Council,Adult Services & Health,AC-ERROR,Adults & Community Servs Error Suspense,ACSSER001,GLENFIELD HOUSE NURSING HOME LTD,Adult & Community Servs - Other,98254,21/03/2016,7310394998,1552,,
Expenditure - Over 500,2015 12,Worcestershire County Council,Adult Services & Health,AC-ERROR,Adults & Community Servs Error Suspense,ACSSER001,GLENFIELD HOUSE NURSING HOME LTD,Adult & Community Servs - Other,98254,21/03/2016,7310394996,992,,
Expenditure - Over 500,2015 12,Worcestershire County Council,Adult Services & Health,AC-PROFIT,LT Nursing - OP,S35342,GLENFIELD HOUSE NURSING HOME LTD,Receipts Sales Long Term Residents,67047,21/03/2016,7310394986,2038.8,,
Expenditure - Over 500,2015 12,Worcestershire County Council,Adult Services & Health,AC-PROFIT,Step Down Beds,S35724,GLENFIELD HOUSE NURSING HOME LTD,Third Party Payments Purchase of RespiteCare,53666,21/03/2016,7310394960,-3343,,
Expenditure - Over 500,2015 12,Worcestershire County Council,Adult Services & Health,AC-PROFIT,LT Nursing - OP,S35342,GLENFIELD HOUSE NURSING HOME LTD,Receipts Sales Long Term Residents,67047,21/03/2016,7310394926,1662.08,,
Expenditure - Over 500,2015 12,Worcestershire County Council,Adult Services & Health,AC-PROFIT,LT Nursing - OP,S35342,GLENFIELD HOUSE NURSING HOME LTD,Receipts Sales Long Term Residents,67047,21/03/2016,7310394848,1931.24,,
Expenditure - Over 500,2015 12,Worcestershire County Council,Adult Services & Health,AC-PROFIT,LT Nursing - OP,S35342,GLENFIELD HOUSE NURSING HOME LTD,Third Party Payments Purchase of Long Term Care,53667,21/03/2016,7310394716,1703.16,,
Expenditure - Over 500,2015 12,Worcestershire County Council,Adult Services & Health,AC-PROFIT,LT Nursing - OP,S35342,GLENFIELD HOUSE NURSING HOME LTD,Receipts Sales Long Term Residents,67047,21/03/2016,7310394686,1582.92,,
Expenditure - Over 500,2015 12,Worcestershire County Council,"Business, Environment & Community",EN-PROFIT,Scientific Services Laboratory,V40110,GEM SCIENTIFIC LTD,Materials Chemical & Apparatus,49055,08/03/2016,4101532326,455,,
Expenditure - Over 500,2015 12,Worcestershire County Council,Adult Services & Health,AC-PROFIT,Interim Care,S35385,HERITAGE MANOR LTD,Third Party Payments Purchase of RespiteCare,53666,21/03/2016,7310393941,558.5,,
Expenditure - Over 500,2015 12,Worcestershire County Council,Adult Services & Health,AC-ERROR,Adults & Community Servs Error Suspense,ACSSER001,HERITAGE MANOR LTD,Adult & Community Servs - Other,98254,21/03/2016,7310393917,1024,,
Expenditure - Over 500,2015 12,Worcestershire County Council,Adult Services & Health,AC-PROFIT,LT Nursing - OP,S35342,HERITAGE MANOR LTD,Receipts Sales Long Term Residents,67047,21/03/2016,7310393833,1152.36,,
Expenditure - Over 500,2015 12,Worcestershire County Council,Adult Services & Health,AC-PROFIT,LT Nursing - OP,S35342,HERITAGE MANOR LTD,Third Party Payments Purchase of Long Term Care,53667,21/03/2016,7310393819,2445.32,,
Expenditure - Over 500,2015 12,Worcestershire County Council,Children's Services,CH-PROFIT,Early Years - Other Providers,E21205,FLYFORD PIPPINS,Third Party Pymts 4Yr Old Nursery Education Grant,53657,07/03/2016,7200024697,2954.95,,
Expenditure - Over 500,2015 12,Worcestershire County Council,Children's Services,CH-PROFIT,Early Years - Other Providers,E21205,FIRST CLASS NURSERY (KIDDERMINSTER),Third Party Pymts 4Yr Old Nursery Education Grant,53657,07/03/2016,7200024694,5948.16,,
Expenditure - Over 500,2015 12,Worcestershire County Council,Adult Services & Health,AC-PROFIT,LT Residential - OP,S35341,HAVERSHAM HOUSE,Receipts Sales Long Term Residents,67047,21/03/2016,7310395075,1162.8,,
Expenditure - Over 500,2015 12,Worcestershire County Council,Adult Services & Health,AC-PROFIT,LT Residential - OP,S35341,HAVERSHAM HOUSE,Receipts Sales Long Term Residents,67047,21/03/2016,7310395083,1214.8,,
Expenditure - Over 500,2015 12,Worcestershire County Council,Adult Services & Health,AC-PROFIT,LT Residential - OP,S35341,HAVERSHAM HOUSE,Third Party Payments Purchase of Long Term Care,53667,21/03/2016,7310395289,-3619.32,,
Expenditure - Over 500,2015 12,Worcestershire County Council,Adult Services & Health,AC-PROFIT,LT Residential - OP,S35341,HAVERSHAM HOUSE,Third Party Payments Purchase of Long Term Care,53667,21/03/2016,7310395309,1376.72,,
Expenditure - Over 500,2015 12,Worcestershire County Council,Adult Services & Health,AC-PROFIT,LT Residential - OP,S35341,HAVERSHAM HOUSE,Third Party Payments Purchase of Long Term Care,53667,21/03/2016,7310395321,615.92,,
Expenditure - Over 500,2015 12,Worcestershire County Council,Resources,CS-PROFIT,COaCH Finance,C40031,HAYS SPECIALIST RECRUITMENT LTD,Services Bureau,50050,03/03/2016,4101530235,436.15,,
Expenditure - Over 500,2015 12,Worcestershire County Council,Resources,CS-PROFIT,COaCH Finance,C40031,HAYS SPECIALIST RECRUITMENT LTD,Services Bureau,50050,14/03/2016,4101533397,672.1,,
Expenditure - Over 500,2015 12,Worcestershire County Council,Resources,CS-PROFIT,COaCH Finance,C40031,HAYS SPECIALIST RECRUITMENT LTD,Services Bureau,50050,23/03/2016,4101537331,643.5,,
Expenditure - Over 500,2015 12,Worcestershire County Council,Resources,CS-PROFIT,COaCH Finance,C40031,HAYS SPECIALIST RECRUITMENT LTD,Services Bureau,50050,29/03/2016,4101540423,657.8,,
Expenditure - Over 500,2015 12,Worcestershire County Council,Adult Services & Health,AC-PROFIT,Domiciliary Block - PD,S33422,HEADWAY WORCESTERSHIRE,Third Party Payments Dom Care Frm Independent Prov,53669,10/03/2016,7320470627,1674.4,,
Expenditure - Over 500,2015 12,Worcestershire County Council,Adult Services & Health,AC-PROFIT,LT Residential - OP,S35341,HAVEN HOME FOR THE ELDERLY,Third Party Payments Purchase of Long Term Care,53667,21/03/2016,7310395079,1676.32,,
Expenditure - Over 500,2015 12,Worcestershire County Council,Adult Services & Health,AC-PROFIT,LT Residential - OP,S35341,HAVEN HOME FOR THE ELDERLY,Third Party Payments Purchase of Long Term Care,53667,21/03/2016,7310395091,1307.84,,
Expenditure - Over 500,2015 12,Worcestershire County Council,Adult Services & Health,AC-PROFIT,Property Charge Temporary Code,S35398,HAVEN HOME FOR THE ELDERLY,Receipts Sales Long Term Residents,67047,21/03/2016,7310395105,1744.12,,
Expenditure - Over 500,2015 12,Worcestershire County Council,Adult Services & Health,AC-PROFIT,LT Residential - OP,S35341,HAVEN HOME FOR THE ELDERLY,Receipts Sales Long Term Residents,67047,21/03/2016,7310395165,1197,,
Expenditure - Over 500,2015 12,Worcestershire County Council,Adult Services & Health,AC-PROFIT,LT Residential - OP,S35341,HAVEN HOME FOR THE ELDERLY,Third Party Payments Purchase of Long Term Care,53667,21/03/2016,7310395199,-1563.96,,
Expenditure - Over 500,2015 12,Worcestershire County Council,Adult Services & Health,AC-PROFIT,Property Charge Temporary Code,S35398,HAVEN HOME FOR THE ELDERLY,Third Party Payments Purchase of Long Term Care,53667,21/03/2016,7310395225,1748,,
Expenditure - Over 500,2015 12,Worcestershire County Council,Adult Services & Health,AC-PROFIT,COP Property Temporary Code,S35397,HAVEN HOME FOR THE ELDERLY,Third Party Payments Purchase of Long Term Care,53667,21/03/2016,7310395273,2636,,
Expenditure - Over 500,2015 12,Worcestershire County Council,Adult Services & Health,AC-PROFIT,LT Nursing - OP,S35342,HAVENCROFT NURSING HOME,Third Party Payments Purchase of Long Term Care,53667,21/03/2016,7310395145,1161.6,,
Expenditure - Over 500,2015 12,Worcestershire County Council,Adult Services & Health,AC-PROFIT,LT Nursing - OP,S35342,HAVENCROFT NURSING HOME,Third Party Payments Purchase of Long Term Care,53667,21/03/2016,7310395187,1219.48,,
Expenditure - Over 500,2015 12,Worcestershire County Council,Adult Services & Health,AC-PROFIT,LT Nursing - OP,S35342,HAVENCROFT NURSING HOME,Third Party Payments Purchase of Long Term Care,53667,21/03/2016,7310395353,1406.8,,
Expenditure - Over 500,2015 12,Worcestershire County Council,Adult Services & Health,AC-PROFIT,LT Nursing - OP,S35342,HAVENCROFT NURSING HOME,Receipts Sales Long Term Residents,67047,21/03/2016,7310395363,967,,
Expenditure - Over 500,2015 12,Worcestershire County Council,Adult Services & Health,AC-PROFIT,LT Nursing - OP,S35342,HAVENCROFT NURSING HOME,Receipts Sales Long Term Residents,67047,21/03/2016,7310395395,849.32,,
Expenditure - Over 500,2015 12,Worcestershire County Council,Adult Services & Health,AC-PROFIT,LT Nursing - OP,S35342,HAVENCROFT NURSING HOME,Third Party Payments Purchase of Long Term Care,53667,21/03/2016,7310395401,1831.58,,
Expenditure - Over 500,2015 12,Worcestershire County Council,Adult Services & Health,AC-PROFIT,LT Nursing - OP,S35342,HAVENCROFT NURSING HOME,Third Party Payments Purchase of Long Term Care,53667,21/03/2016,7310395451,1995.29,,
Expenditure - Over 500,2015 12,Worcestershire County Council,Adult Services & Health,AC-PROFIT,Domiciliary Block - PD,S33422,HEADWAY WORCESTERSHIRE,Third Party Payments Dom Care Frm Independent Prov,53669,14/03/2016,7320471591,1932,,
Expenditure - Over 500,2015 12,Worcestershire County Council,Adult Services & Health,AC-PROFIT,Domiciliary Block - PD,S33422,HEADWAY WORCESTERSHIRE,Third Party Payments Dom Care Frm Independent Prov,53669,21/03/2016,7320474141,966,,
Expenditure - Over 500,2015 12,Worcestershire County Council,Adult Services & Health,AC-PROFIT,Adults Housing Related Support,S42082,HEADWAY WORCESTERSHIRE,Third Party Payments External Provider,54044,21/03/2016,7360016063,14424.47,,
Expenditure - Over 500,2015 12,Worcestershire County Council,"Business, Environment & Community",EN-PROFIT,Asbestos,V40104,HEALTH & SAFETY LABORATORY,Subscriptions,51001,22/03/2016,4101537704,693,,
Expenditure - Over 500,2015 12,Worcestershire County Council,"Business, Environment & Community",EN-PROFIT,Asbestos,V40104,HEALTH & SAFETY LABORATORY,Subscriptions,51001,22/03/2016,4101537705,799,,
Expenditure - Over 500,2015 12,Worcestershire County Council,Children's Services,CH-PROFIT,Early Years - Other Providers,E21205,HEATHFIELD EDUCATIONAL TRUST,Third Party Pymts 4Yr Old Nursery Education Grant,53657,07/03/2016,7200024720,959.37,,
Expenditure - Over 500,2015 12,Worcestershire County Council,Children's Services,CH-PROFIT,Early Years - Other Providers,E21205,HEATHFIELD EDUCATIONAL TRUST,Academy Funding Payments,51025,17/03/2016,3310034719,2580.68,,
Expenditure - Over 500,2015 12,Worcestershire County Council,Adult Services & Health,AC-PROFIT,Domiciliary Spot - OP,S33414,HELPING HANDS HOME CARE,Third Party Payments Dom Care Frm Independent Prov,53669,10/03/2016,7320470986,1414,,
Expenditure - Over 500,2015 12,Worcestershire County Council,Adult Services & Health,AC-PROFIT,Domiciliary Spot - PD,S33412,HELPING HANDS HOME CARE,Third Party Payments Dom Care Frm Independent Prov,53669,10/03/2016,7320471084,2988,,
Expenditure - Over 500,2015 12,Worcestershire County Council,Adult Services & Health,AC-PROFIT,Domiciliary Spot - PD,S33412,HELPING HANDS HOME CARE,Third Party Payments Dom Care Frm Independent Prov,53669,10/03/2016,7320471085,1272.2,,
Expenditure - Over 500,2015 12,Worcestershire County Council,Adult Services & Health,AC-PROFIT,Domiciliary Spot - PD,S33412,HELPING HANDS HOME CARE,Third Party Payments Dom Care Frm Independent Prov,53669,10/03/2016,7320471088,1281.52,,
Expenditure - Over 500,2015 12,Worcestershire County Council,Adult Services & Health,AC-PROFIT,Domiciliary Spot - PD,S33412,HELPING HANDS HOME CARE,Third Party Payments Dom Care Frm Independent Prov,53669,10/03/2016,7320471089,1443.8,,
Expenditure - Over 500,2015 12,Worcestershire County Council,Adult Services & Health,AC-PROFIT,Domiciliary Spot - PD,S33412,HELPING HANDS HOME CARE,Third Party Payments Dom Care Frm Independent Prov,53669,10/03/2016,7320471086,1605.37,,
Expenditure - Over 500,2015 12,Worcestershire County Council,Adult Services & Health,AC-PROFIT,Domiciliary Spot - PD,S33412,HELPING HANDS HOME CARE,Third Party Payments Dom Care Frm Independent Prov,53669,10/03/2016,7320471087,1543.82,,
Expenditure - Over 500,2015 12,Worcestershire County Council,Adult Services & Health,AC-PROFIT,Domiciliary Spot - OP,S33414,HELPING HANDS HOME CARE,Third Party Payments Dom Care Frm Independent Prov,53669,23/03/2016,7320474866,943.1,,
Expenditure - Over 500,2015 12,Worcestershire County Council,Adult Services & Health,AC-PROFIT,Block Zone Contract - OP,S33404,HELPING HANDS HOME CARE,Third Party Payments Dom Care Frm Independent Prov,53669,29/03/2016,7320475088,995.6,,
Expenditure - Over 500,2015 12,Worcestershire County Council,Adult Services & Health,AC-PROFIT,Domiciliary Spot - OP,S33414,HELPING HANDS HOME CARE,Third Party Payments Dom Care Frm Independent Prov,53669,29/03/2016,7320475318,1116.75,,
Expenditure - Over 500,2015 12,Worcestershire County Council,Adult Services & Health,AC-PROFIT,Domiciliary Spot - OP,S33414,HELPING HANDS HOME CARE,Third Party Payments Dom Care Frm Independent Prov,53669,29/03/2016,7320475319,705.6,,
Expenditure - Over 500,2015 12,Worcestershire County Council,Adult Services & Health,AC-PROFIT,Domiciliary Spot - OP,S33414,HELPING HANDS HOME CARE,Third Party Payments Dom Care Frm Independent Prov,53669,29/03/2016,7320475321,506.8,,
Expenditure - Over 500,2015 12,Worcestershire County Council,Adult Services & Health,AC-PROFIT,Domiciliary Spot - OP,S33414,HELPING HANDS HOME CARE,Third Party Payments Dom Care Frm Independent Prov,53669,29/03/2016,7320475323,887.6,,
Expenditure - Over 500,2015 12,Worcestershire County Council,Adult Services & Health,AC-PROFIT,Domiciliary Spot - OP,S33414,HELPING HANDS HOME CARE,Third Party Payments Dom Care Frm Independent Prov,53669,29/03/2016,7320475325,922.1,,
Expenditure - Over 500,2015 12,Worcestershire County Council,Adult Services & Health,AC-PROFIT,Domiciliary Spot - OP,S33414,HELPING HANDS HOME CARE,Third Party Payments Dom Care Frm Independent Prov,53669,29/03/2016,7320475327,537.8,,
Expenditure - Over 500,2015 12,Worcestershire County Council,Adult Services & Health,AC-PROFIT,Domiciliary Spot - OP,S33414,HELPING HANDS HOME CARE,Third Party Payments Dom Care Frm Independent Prov,53669,29/03/2016,7320475328,1775.2,,
Expenditure - Over 500,2015 12,Worcestershire County Council,Adult Services & Health,AC-PROFIT,Domiciliary Spot - OP,S33414,HELPING HANDS HOME CARE,Third Party Payments Dom Care Frm Independent Prov,53669,29/03/2016,7320475329,2036.7,,
Expenditure - Over 500,2015 12,Worcestershire County Council,Adult Services & Health,AC-PROFIT,Domiciliary Spot - OP,S33414,HELPING HANDS HOME CARE,Third Party Payments Dom Care Frm Independent Prov,53669,29/03/2016,7320475332,1915.2,,
Expenditure - Over 500,2015 12,Worcestershire County Council,Adult Services & Health,AC-PROFIT,Domiciliary Spot - OP,S33414,HELPING HANDS HOME CARE,Third Party Payments Dom Care Frm Independent Prov,53669,29/03/2016,7320475334,1330.5,,
Expenditure - Over 500,2015 12,Worcestershire County Council,Adult Services & Health,AC-PROFIT,Domiciliary Spot - OP,S33414,HELPING HANDS HOME CARE,Third Party Payments Dom Care Frm Independent Prov,53669,29/03/2016,7320475336,857.6,,
Expenditure - Over 500,2015 12,Worcestershire County Council,Adult Services & Health,AC-PROFIT,Domiciliary Spot - OP,S33414,HELPING HANDS HOME CARE,Third Party Payments Dom Care Frm Independent Prov,53669,29/03/2016,7320475341,865.8,,
Expenditure - Over 500,2015 12,Worcestershire County Council,Adult Services & Health,AC-PROFIT,Domiciliary Spot - OP,S33414,HELPING HANDS HOME CARE,Third Party Payments Dom Care Frm Independent Prov,53669,29/03/2016,7320475344,1316.7,,
Expenditure - Over 500,2015 12,Worcestershire County Council,Adult Services & Health,AC-PROFIT,Domiciliary Spot - OP,S33414,HELPING HANDS HOME CARE,Third Party Payments Dom Care Frm Independent Prov,53669,29/03/2016,7320475345,688.8,,
Expenditure - Over 500,2015 12,Worcestershire County Council,Adult Services & Health,AC-PROFIT,Domiciliary Spot - OP,S33414,HELPING HANDS HOME CARE,Third Party Payments Dom Care Frm Independent Prov,53669,29/03/2016,7320475347,503.7,,
Expenditure - Over 500,2015 12,Worcestershire County Council,Adult Services & Health,AC-PROFIT,Domiciliary Spot - OP,S33414,HELPING HANDS HOME CARE,Third Party Payments Dom Care Frm Independent Prov,53669,29/03/2016,7320475349,578.9,,
Expenditure - Over 500,2015 12,Worcestershire County Council,Adult Services & Health,AC-PROFIT,Domiciliary - MH,S33411,HELPING HANDS HOME CARE,Third Party Payments Dom Care Frm Independent Prov,53669,29/03/2016,7320475353,502.15,,
Expenditure - Over 500,2015 12,Worcestershire County Council,Adult Services & Health,AC-PROFIT,Domiciliary Spot - OP,S33414,HELPING HANDS HOME CARE,Third Party Payments Dom Care Frm Independent Prov,53669,29/03/2016,7320475354,644,,
Expenditure - Over 500,2015 12,Worcestershire County Council,Adult Services & Health,AC-PROFIT,Domiciliary Spot - OP,S33414,HELPING HANDS HOME CARE,Third Party Payments Dom Care Frm Independent Prov,53669,29/03/2016,7320475355,683.2,,
Expenditure - Over 500,2015 12,Worcestershire County Council,Adult Services & Health,AC-PROFIT,Domiciliary Spot - OP,S33414,HELPING HANDS HOME CARE,Third Party Payments Dom Care Frm Independent Prov,53669,29/03/2016,7320475356,624.8,,
Expenditure - Over 500,2015 12,Worcestershire County Council,Adult Services & Health,AC-PROFIT,Domiciliary Spot - OP,S33414,HELPING HANDS HOME CARE,Third Party Payments Dom Care Frm Independent Prov,53669,29/03/2016,7320475357,1131.2,,
Expenditure - Over 500,2015 12,Worcestershire County Council,Adult Services & Health,AC-PROFIT,Domiciliary Spot - OP,S33414,HELPING HANDS HOME CARE,Third Party Payments Dom Care Frm Independent Prov,53669,29/03/2016,7320475358,747.6,,
Expenditure - Over 500,2015 12,Worcestershire County Council,Adult Services & Health,AC-PROFIT,Domiciliary Spot - OP,S33414,HELPING HANDS HOME CARE,Third Party Payments Dom Care Frm Independent Prov,53669,29/03/2016,7320475362,1775.2,,
Expenditure - Over 500,2015 12,Worcestershire County Council,Adult Services & Health,AC-PROFIT,Domiciliary Spot - OP,S33414,HELPING HANDS HOME CARE,Third Party Payments Dom Care Frm Independent Prov,53669,29/03/2016,7320475363,786.4,,
Expenditure - Over 500,2015 12,Worcestershire County Council,Adult Services & Health,AC-PROFIT,Domiciliary Spot - OP,S33414,HELPING HANDS HOME CARE,Third Party Payments Dom Care Frm Independent Prov,53669,29/03/2016,7320475364,644,,
Expenditure - Over 500,2015 12,Worcestershire County Council,Adult Services & Health,AC-PROFIT,Domiciliary Spot - OP,S33414,HELPING HANDS HOME CARE,Third Party Payments Dom Care Frm Independent Prov,53669,29/03/2016,7320475365,548.8,,
Expenditure - Over 500,2015 12,Worcestershire County Council,Adult Services & Health,AC-PROFIT,Domiciliary Spot - OP,S33414,HELPING HANDS HOME CARE,Third Party Payments Dom Care Frm Independent Prov,53669,29/03/2016,7320475440,898.8,,
Expenditure - Over 500,2015 12,Worcestershire County Council,Adult Services & Health,AC-PROFIT,Domiciliary Spot - OP,S33414,HELPING HANDS HOME CARE,Third Party Payments Dom Care Frm Independent Prov,53669,29/03/2016,7320475443,1066.8,,
Expenditure - Over 500,2015 12,Worcestershire County Council,Adult Services & Health,AC-PROFIT,Domiciliary Spot - OP,S33414,HELPING HANDS HOME CARE,Third Party Payments Dom Care Frm Independent Prov,53669,29/03/2016,7320475444,781.2,,
Expenditure - Over 500,2015 12,Worcestershire County Council,Adult Services & Health,AC-PROFIT,Domiciliary Spot - OP,S33414,HELPING HANDS HOME CARE,Third Party Payments Dom Care Frm Independent Prov,53669,29/03/2016,7320475445,817.6,,
Expenditure - Over 500,2015 12,Worcestershire County Council,Adult Services & Health,AC-PROFIT,Domiciliary Spot - OP,S33414,HELPING HANDS HOME CARE,Third Party Payments Dom Care Frm Independent Prov,53669,29/03/2016,7320475446,898.8,,
Expenditure - Over 500,2015 12,Worcestershire County Council,Adult Services & Health,AC-PROFIT,Domiciliary Spot - OP,S33414,HELPING HANDS HOME CARE,Third Party Payments Dom Care Frm Independent Prov,53669,29/03/2016,7320475449,1664.74,,
Expenditure - Over 500,2015 12,Worcestershire County Council,Adult Services & Health,AC-PROFIT,Domiciliary Spot - PD,S33412,HELPING HANDS HOME CARE,Third Party Payments Dom Care Frm Independent Prov,53669,29/03/2016,7320475450,1077.2,,
Expenditure - Over 500,2015 12,Worcestershire County Council,Adult Services & Health,AC-PROFIT,Domiciliary Spot - OP,S33414,HELPING HANDS HOME CARE,Third Party Payments Dom Care Frm Independent Prov,53669,29/03/2016,7320475452,1201.77,,
Expenditure - Over 500,2015 12,Worcestershire County Council,Adult Services & Health,AC-PROFIT,Domiciliary Spot - PD,S33412,HELPING HANDS HOME CARE,Third Party Payments Dom Care Frm Independent Prov,53669,29/03/2016,7320475453,711.08,,
Expenditure - Over 500,2015 12,Worcestershire County Council,Adult Services & Health,AC-PROFIT,LD North Domiciliary,S33413,HELPING HANDS HOME CARE,Third Party Payments Dom Care Frm Independent Prov,53669,29/03/2016,7320475455,778.05,,
Expenditure - Over 500,2015 12,Worcestershire County Council,Adult Services & Health,AC-PROFIT,Domiciliary Spot - OP,S33414,HELPING HANDS HOME CARE,Third Party Payments Dom Care Frm Independent Prov,53669,29/03/2016,7320475457,673.96,,
Expenditure - Over 500,2015 12,Worcestershire County Council,Adult Services & Health,AC-PROFIT,Domiciliary Spot - PD,S33412,HELPING HANDS HOME CARE,Third Party Payments Dom Care Frm Independent Prov,53669,29/03/2016,7320475458,946.8,,
Expenditure - Over 500,2015 12,Worcestershire County Council,Adult Services & Health,AC-PROFIT,Domiciliary Spot - OP,S33414,HELPING HANDS HOME CARE,Third Party Payments Dom Care Frm Independent Prov,53669,29/03/2016,7320475461,831.45,,
Expenditure - Over 500,2015 12,Worcestershire County Council,Adult Services & Health,AC-PROFIT,Domiciliary Spot - OP,S33414,HELPING HANDS HOME CARE,Third Party Payments Dom Care Frm Independent Prov,53669,29/03/2016,7320475464,693.68,,
Expenditure - Over 500,2015 12,Worcestershire County Council,Adult Services & Health,AC-PROFIT,Domiciliary Spot - OP,S33414,HELPING HANDS HOME CARE,Third Party Payments Dom Care Frm Independent Prov,53669,29/03/2016,7320475465,702.6,,
Expenditure - Over 500,2015 12,Worcestershire County Council,Adult Services & Health,AC-PROFIT,Domiciliary Spot - OP,S33414,HELPING HANDS HOME CARE,Third Party Payments Dom Care Frm Independent Prov,53669,29/03/2016,7320475467,2224,,
Expenditure - Over 500,2015 12,Worcestershire County Council,Adult Services & Health,AC-PROFIT,Domiciliary Spot - OP,S33414,HELPING HANDS HOME CARE,Third Party Payments Dom Care Frm Independent Prov,53669,29/03/2016,7320475468,737.8,,
Expenditure - Over 500,2015 12,Worcestershire County Council,Adult Services & Health,AC-PROFIT,Domiciliary Spot - OP,S33414,HELPING HANDS HOME CARE,Third Party Payments Dom Care Frm Independent Prov,53669,29/03/2016,7320475544,745.2,,
Expenditure - Over 500,2015 12,Worcestershire County Council,Adult Services & Health,AC-PROFIT,Domiciliary Spot - OP,S33414,HELPING HANDS HOME CARE,Third Party Payments Dom Care Frm Independent Prov,53669,29/03/2016,7320475546,874.5,,
Expenditure - Over 500,2015 12,Worcestershire County Council,Adult Services & Health,AC-PROFIT,Domiciliary Spot - PD,S33412,HELPING HANDS HOME CARE,Third Party Payments Dom Care Frm Independent Prov,53669,29/03/2016,7320475548,518,,
Expenditure - Over 500,2015 12,Worcestershire County Council,Adult Services & Health,AC-PROFIT,Domiciliary Spot - OP,S33414,HELPING HANDS HOME CARE,Third Party Payments Dom Care Frm Independent Prov,53669,29/03/2016,7320475549,749.8,,
Expenditure - Over 500,2015 12,Worcestershire County Council,Adult Services & Health,AC-PROFIT,Domiciliary Spot - OP,S33414,HELPING HANDS HOME CARE,Third Party Payments Dom Care Frm Independent Prov,53669,29/03/2016,7320475550,938,,
Expenditure - Over 500,2015 12,Worcestershire County Council,Adult Services & Health,AC-PROFIT,Domiciliary Spot - OP,S33414,HELPING HANDS HOME CARE,Third Party Payments Dom Care Frm Independent Prov,53669,29/03/2016,7320475551,1033.2,,
Expenditure - Over 500,2015 12,Worcestershire County Council,Adult Services & Health,AC-PROFIT,Domiciliary Spot - OP,S33414,HELPING HANDS HOME CARE,Third Party Payments Dom Care Frm Independent Prov,53669,29/03/2016,7320476454,577.5,,
Expenditure - Over 500,2015 12,Worcestershire County Council,Adult Services & Health,AC-PROFIT,Block Zone Contract - OP,S33404,HELPING HANDS HOME CARE,Third Party Payments Dom Care Frm Independent Prov,53669,29/03/2016,7320476506,838.68,,
Expenditure - Over 500,2015 12,Worcestershire County Council,Adult Services & Health,AC-PROFIT,Block Zone Contract PD,S33402,HELPING HANDS HOME CARE,Third Party Payments Dom Care Frm Independent Prov,53669,29/03/2016,7320476507,2024.4,,
Expenditure - Over 500,2015 12,Worcestershire County Council,Adult Services & Health,AC-PROFIT,Block Zone Contract - OP,S33404,HELPING HANDS HOME CARE,Third Party Payments Dom Care Frm Independent Prov,53669,29/03/2016,7320476510,506.1,,
Expenditure - Over 500,2015 12,Worcestershire County Council,Adult Services & Health,AC-PROFIT,Block Zone Contract - OP,S33404,HELPING HANDS HOME CARE,Third Party Payments Dom Care Frm Independent Prov,53669,29/03/2016,7320476511,1821.96,,
Expenditure - Over 500,2015 12,Worcestershire County Council,Adult Services & Health,AC-PROFIT,Block Zone Contract PD,S33402,HELPING HANDS HOME CARE,Third Party Payments Dom Care Frm Independent Prov,53669,29/03/2016,7320476514,1391.78,,
Expenditure - Over 500,2015 12,Worcestershire County Council,Adult Services & Health,AC-PROFIT,Block Zone Contract - OP,S33404,HELPING HANDS HOME CARE,Third Party Payments Dom Care Frm Independent Prov,53669,29/03/2016,7320476516,506.1,,
Expenditure - Over 500,2015 12,Worcestershire County Council,Adult Services & Health,AC-PROFIT,Block Zone Contract - OP,S33404,HELPING HANDS HOME CARE,Third Party Payments Dom Care Frm Independent Prov,53669,29/03/2016,7320476517,527.8,,
Expenditure - Over 500,2015 12,Worcestershire County Council,Adult Services & Health,AC-PROFIT,Block Zone Contract - OP,S33404,HELPING HANDS HOME CARE,Third Party Payments Dom Care Frm Independent Prov,53669,29/03/2016,7320476519,527.8,,
Expenditure - Over 500,2015 12,Worcestershire County Council,Adult Services & Health,AC-PROFIT,Block Zone Contract - OP,S33404,HELPING HANDS HOME CARE,Third Party Payments Dom Care Frm Independent Prov,53669,29/03/2016,7320476521,633.36,,
Expenditure - Over 500,2015 12,Worcestershire County Council,Adult Services & Health,AC-PROFIT,Block Zone Contract PD,S33402,HELPING HANDS HOME CARE,Third Party Payments Dom Care Frm Independent Prov,53669,29/03/2016,7320476526,1176.24,,
Expenditure - Over 500,2015 12,Worcestershire County Council,Adult Services & Health,AC-PROFIT,Block Zone Contract - OP,S33404,HELPING HANDS HOME CARE,Third Party Payments Dom Care Frm Independent Prov,53669,29/03/2016,7320476531,1387.4,,
Expenditure - Over 500,2015 12,Worcestershire County Council,Adult Services & Health,AC-PROFIT,LT Residential - PD,S35441,HENSHAWS YORKSHIRE,Receipts Sales Long Term Residents,67047,21/03/2016,7310393226,2753.72,,
Expenditure - Over 500,2015 12,Worcestershire County Council,Children's Services,CH-PROFIT,Early Years - Other Providers,E21205,HENWICK PLAYGROUP,Third Party Pymts 4Yr Old Nursery Education Grant,53657,07/03/2016,7200024721,2901.12,,
Expenditure - Over 500,2015 12,Worcestershire County Council,"Business, Environment & Community",EN-PROFIT,Scientific Services Laboratory,V40110,HEREFORDSHIRE COUNCIL,Materials Samples,49054,22/03/2016,4101537708,1620,,
Expenditure - Over 500,2015 12,Worcestershire County Council,Adult Services & Health,AC-PROFIT,Nursing - MH,S35642,HEREFORDSHIRE MIND,Third Party Payments Purchase of Long Term Care,53667,21/03/2016,7310393971,3771.32,,
Expenditure - Over 500,2015 12,Worcestershire County Council,Adult Services & Health,AC-PROFIT,South Worcester Residential LD,S35551,THE HESLEY GROUP LTD,Third Party Payments Purchase of Long Term Care,53667,21/03/2016,7310393522,16319.72,,
Expenditure - Over 500,2015 12,Worcestershire County Council,Children's Services,CH-PROFIT,Early Years - Other Providers,E21205,HICKORY DICKORY DOCK DAY NURSERY LT,Third Party Pymts 4Yr Old Nursery Education Grant,53657,07/03/2016,7200024723,3820.32,,
Expenditure - Over 500,2015 12,Worcestershire County Council,Children's Services,CH-PROFIT,Early Years - 2 year old funding,E23050,HICKORY DICKORY DOCK DAY NURSERY LT,Third Party Pymts 4Yr Old Nursery Education Grant,53657,23/03/2016,7200025040,1930.5,,
Expenditure - Over 500,2015 12,Worcestershire County Council,Children's Services,CH-PROFIT,Special Home/School Transport,E10877,HOLLAND COACHES,PTG - Transport Tendered / Cont. Services,46021,07/03/2016,7190128381,1605,,
Expenditure - Over 500,2015 12,Worcestershire County Council,Children's Services,CH-PROFIT,Short Breaks on framework,E31529,HOLLAND COACHES,PTG - Transport Tendered / Cont. Services,46021,07/03/2016,7190128382,1830,,
Expenditure - Over 500,2015 12,Worcestershire County Council,Adult Services & Health,AC-PROFIT,LD Transport (PTG) North,S34844,HOLLAND COACHES,PTG - Transport Tendered / Cont. Services,46021,07/03/2016,7190128384,2709,,
Expenditure - Over 500,2015 12,Worcestershire County Council,Children's Services,CH-PROFIT,Short Breaks on framework,E31529,HOLLAND COACHES,PTG - Transport Tendered / Cont. Services,46021,07/03/2016,7190128393,2768,,
Expenditure - Over 500,2015 12,Worcestershire County Council,Children's Services,CH-PROFIT,Short Breaks on framework,E31529,HOLLAND COACHES,PTG - Transport Tendered / Cont. Services,46021,07/03/2016,7190128395,1792,,
Expenditure - Over 500,2015 12,Worcestershire County Council,Children's Services,CH-PROFIT,Primary Home/School Transport,E10037,HOLLAND COACHES,PTG - Transport Tendered / Cont. Services,46021,07/03/2016,7190128487,2236.82,,
Expenditure - Over 500,2015 12,Worcestershire County Council,Children's Services,CH-PROFIT,Primary Home/School Transport,E10037,HOLLAND COACHES,PTG - Transport Tendered / Cont. Services,46021,07/03/2016,7190128488,863.77,,
Expenditure - Over 500,2015 12,Worcestershire County Council,Children's Services,CH-PROFIT,Primary Home/School Transport,E10037,HOLLAND COACHES,PTG - Transport Tendered / Cont. Services,46021,07/03/2016,7190128489,2590.77,,
Expenditure - Over 500,2015 12,Worcestershire County Council,Children's Services,CH-PROFIT,Primary Home/School Transport,E10037,HOLLAND COACHES,PTG - Transport Tendered / Cont. Services,46021,07/03/2016,7190128490,1347.27,,
Expenditure - Over 500,2015 12,Worcestershire County Council,"Business, Environment & Community",EN-DIR,Concessionary Fares Administration,V21015,HOLLAND COACHES,Third Party Pymnts Public Transport Operators,54005,17/03/2016,7190128839,2418.01,,
Expenditure - Over 500,2015 12,Worcestershire County Council,Children's Services,CH-PROFIT,Short Breaks on framework,E31529,HOLLAND COACHES,PTG - Adhoc Transport,46506,21/03/2016,7190128991,1140.5,,
Expenditure - Over 500,2015 12,Worcestershire County Council,Children's Services,CH-PROFIT,Short Breaks on framework,E31529,HOLLAND COACHES,PTG - Transport Tendered / Cont. Services,46021,21/03/2016,7190129003,1743.84,,
Expenditure - Over 500,2015 12,Worcestershire County Council,Adult Services & Health,AC-PROFIT,LT Nursing - OP,S35342,BARCHESTER HEALTHCARE HOMES LTD,Third Party Payments Purchase of Long Term Care,53667,21/03/2016,7310393987,2905.2,,
Expenditure - Over 500,2015 12,Worcestershire County Council,Adult Services & Health,AC-PROFIT,Nursing - MH,S35642,BARCHESTER HEALTHCARE HOMES LTD,Third Party Payments Purchase of Long Term Care,53667,21/03/2016,7310394003,2622.8,,
Expenditure - Over 500,2015 12,Worcestershire County Council,Adult Services & Health,AC-PROFIT,LT Nursing - OP,S35342,BARCHESTER HEALTHCARE HOMES LTD,Receipts Sales Long Term Residents,67047,21/03/2016,7310394013,2057.84,,
Expenditure - Over 500,2015 12,Worcestershire County Council,Adult Services & Health,AC-PROFIT,North Worcs Nursing LD (Wyre Forest),S35512,BARCHESTER HEALTHCARE HOMES LTD,Third Party Payments Purchase of Long Term Care,53667,21/03/2016,7310394017,2980.28,,
Expenditure - Over 500,2015 12,Worcestershire County Council,Adult Services & Health,AC-PROFIT,North Worcs Nursing LD (Wyre Forest),S35512,BARCHESTER HEALTHCARE HOMES LTD,Third Party Payments Purchase of Long Term Care,53667,21/03/2016,7310394029,3459.04,,
Expenditure - Over 500,2015 12,Worcestershire County Council,Adult Services & Health,AC-PROFIT,LT Nursing - OP,S35342,BARCHESTER HEALTHCARE HOMES LTD,Third Party Payments Purchase of Long Term Care,53667,21/03/2016,7310394163,2971.64,,
Expenditure - Over 500,2015 12,Worcestershire County Council,Adult Services & Health,AC-PROFIT,LT Nursing - OP,S35342,BARCHESTER HEALTHCARE HOMES LTD,Third Party Payments Purchase of Long Term Care,53667,21/03/2016,7310394183,2183.12,,
Expenditure - Over 500,2015 12,Worcestershire County Council,Adult Services & Health,AC-PROFIT,LT Nursing - OP,S35342,BARCHESTER HEALTHCARE HOMES LTD,Third Party Payments Purchase of Long Term Care,53667,21/03/2016,7310394209,-4934.67,,
Expenditure - Over 500,2015 12,Worcestershire County Council,Adult Services & Health,AC-PROFIT,LT Nursing - OP,S35342,BARCHESTER HEALTHCARE HOMES LTD,Third Party Payments Purchase of Long Term Care,53667,21/03/2016,7310394247,3876,,
Expenditure - Over 500,2015 12,Worcestershire County Council,Adult Services & Health,AC-PROFIT,LT Nursing - OP,S35342,BARCHESTER HEALTHCARE HOMES LTD,Third Party Payments Purchase of Long Term Care,53667,21/03/2016,7310394249,11480,,
Expenditure - Over 500,2015 12,Worcestershire County Council,Adult Services & Health,AC-PROFIT,LT Nursing - OP,S35342,BARCHESTER HEALTHCARE HOMES LTD,Third Party Payments Purchase of Long Term Care,53667,21/03/2016,7310394283,1876,,
Expenditure - Over 500,2015 12,Worcestershire County Council,Adult Services & Health,AC-PROFIT,LT Nursing - OP,S35342,BARCHESTER HEALTHCARE HOMES LTD,Receipts Sales Long Term Residents,67047,21/03/2016,7310394285,3152.32,,
Expenditure - Over 500,2015 12,Worcestershire County Council,Adult Services & Health,AC-PROFIT,LT Nursing - OP,S35342,BARCHESTER HEALTHCARE HOMES LTD,Receipts Sales Long Term Residents,67047,21/03/2016,7310394387,2499.99,,
Expenditure - Over 500,2015 12,Worcestershire County Council,Resources,CS-PROFIT,Cllr Divisional Fund,C40236,HOLT PARISH COUNCIL,Expenses Members Other,50612,15/03/2016,3310034666,750,,
Expenditure - Procurement Card,2015 12,Worcestershire County Council,Children's Services,CH-PROFIT,Green Hill Lodge,E31761,HOMEBASE LTD 352,Equipment,48601,02/03/2016,4600112887,7.91,LUMBER/BUILD. SUPPLY STORES,5211
Expenditure - Procurement Card,2015 12,Worcestershire County Council,Children's Services,CH-PROFIT,126 Barnards Green Road,E31760,HOMEBASE LTD 027,Equipment,48601,02/03/2016,4600112889,16.66,LUMBER/BUILD. SUPPLY STORES,5211
Expenditure - Procurement Card,2015 12,Worcestershire County Council,Children's Services,CH-PROFIT,Green Hill Lodge,E31761,HOMEBASE LTD 352,Equipment & Furniture,49001,10/03/2016,4600114104,19.99,LUMBER/BUILD. SUPPLY STORES,5211
Expenditure - Procurement Card,2015 12,Worcestershire County Council,Children's Services,CH-PROFIT,Green Hill Lodge,E31761,HOMEBASE LTD 352,Equipment & Furniture,49001,11/03/2016,4600114200,4.99,LUMBER/BUILD. SUPPLY STORES,5211
Expenditure - Procurement Card,2015 12,Worcestershire County Council,Children's Services,CH-PROFIT,Green Hill Lodge,E31761,HOMEBASE LTD 352,Equipment & Furniture,49001,11/03/2016,4600114199,14.99,LUMBER/BUILD. SUPPLY STORES,5211
Expenditure - Procurement Card,2015 12,Worcestershire County Council,Children's Services,CH-PROFIT,Green Hill Lodge,E31761,HOMEBASE LTD 027,Repairs & Maintenance Grounds  Routine Mainte,42014,12/03/2016,4600114377,18.14,LUMBER/BUILD. SUPPLY STORES,5211
Expenditure - Procurement Card,2015 12,Worcestershire County Council,Children's Services,CH-PROFIT,Green Hill Lodge,E31761,HOMEBASE LTD 352,Equipment & Furniture,49001,15/03/2016,4600114553,16.67,LUMBER/BUILD. SUPPLY STORES,5211
Expenditure - Procurement Card,2015 12,Worcestershire County Council,Children's Services,CH-PROFIT,Green Hill Lodge,E31761,HOMEBASE LTD 352,Equipment & Furniture,49001,15/03/2016,4600114555,4.99,LUMBER/BUILD. SUPPLY STORES,5211
Expenditure - Procurement Card,2015 12,Worcestershire County Council,Children's Services,CH-PROFIT,Outreach support service,E31763,HOMEBASE LTD 352,Equipment & Furniture,49001,18/03/2016,4600115223,5.98,LUMBER/BUILD. SUPPLY STORES,5211
Expenditure - Procurement Card,2015 12,Worcestershire County Council,Children's Services,CH-PROFIT,Vale Of Evesham Repite Home,E31609,HOMEBASE LTD 027,Repairs & Maintenance Grounds  Routine Mainte,42014,18/03/2016,4600115250,86.61,LUMBER/BUILD. SUPPLY STORES,5211
Expenditure - Procurement Card,2015 12,Worcestershire County Council,Children's Services,CH-PROFIT,"Green Fingers, Healthy Care in Action Pr",E24044,HOMEBASE LTD 027,Expenses Educational Visits,51668,19/03/2016,4600115292,19.29,LUMBER/BUILD. SUPPLY STORES,5211
Expenditure - Procurement Card,2015 12,Worcestershire County Council,Children's Services,CH-PROFIT,Orchardene Residential Unit,E31764,HOMEBASE LTD 352,Repairs & Maintenance Buildings General Expen,42001,24/03/2016,4600115903,2.98,LUMBER/BUILD. SUPPLY STORES,5211
Expenditure - Procurement Card,2015 12,Worcestershire County Council,Children's Services,CH-PROFIT,Green Hill Lodge,E31761,HOMEBASE LTD 352,Equipment & Furniture,49001,25/03/2016,4600116173,36.65,LUMBER/BUILD. SUPPLY STORES,5211
Expenditure - Procurement Card,2015 12,Worcestershire County Council,Children's Services,CH-PROFIT,S17 Care Leavers Team,E36604,HOMEBASE LTD 352,Care Grants,51006,30/03/2016,4600116397,30.82,LUMBER/BUILD. SUPPLY STORES,5211
Expenditure - Procurement Card,2015 12,Worcestershire County Council,Children's Services,CH-PROFIT,"Green Fingers, Healthy Care in Action Pr",E24044,HOMEBASE LTD 027,Educational Equip,49019,31/03/2016,4600116544,3,LUMBER/BUILD. SUPPLY STORES,5211
Expenditure - Over 500,2015 12,Worcestershire County Council,Adult Services & Health,AC-PROFIT,LT Residential - OP,S35341,HOPWOOD COURT RETIREMENT HOME,Third Party Payments Purchase of Long Term Care,53667,21/03/2016,7310395663,1127.36,,
Expenditure - Over 500,2015 12,Worcestershire County Council,Adult Services & Health,AC-PROFIT,LT Residential - OP,S35341,HOPWOOD COURT RETIREMENT HOME,Third Party Payments Purchase of Long Term Care,53667,21/03/2016,7310395727,987.12,,
Expenditure - Over 500,2015 12,Worcestershire County Council,Adult Services & Health,AC-PROFIT,LT Residential - OP,S35341,HOPWOOD COURT RETIREMENT HOME,Receipts Sales Long Term Residents,67047,21/03/2016,7310395791,1110.04,,
Expenditure - Over 500,2015 12,Worcestershire County Council,Adult Services & Health,AC-PROFIT,LT Residential - OP,S35341,HOPWOOD COURT RETIREMENT HOME,Third Party Payments Purchase of Long Term Care,53667,21/03/2016,7310395797,1329,,
Expenditure - Over 500,2015 12,Worcestershire County Council,Adult Services & Health,AC-PROFIT,Dementia Care Home Programme,S35722,HOPWOOD COURT RETIREMENT HOME,Care Grants,51006,29/03/2016,3310035022,2500,,
Expenditure - Over 500,2015 12,Worcestershire County Council,Adult Services & Health,AC-PROFIT,Equipment - Pooled Budgets,S31526,HSBC INVOICE FINANCE (UK) LTD,Equipment Adults SDD,49084,07/03/2016,4101528837,579.8,,
Expenditure - Over 500,2015 12,Worcestershire County Council,Adult Services & Health,AC-PROFIT,Equipment - Pooled Budgets,S31526,HSBC INVOICE FINANCE (UK) LTD,Equipment Adults SDD,49084,14/03/2016,4101533990,1029.7,,
Expenditure - Over 500,2015 12,Worcestershire County Council,Children's Services,CH-PROFIT,Special Home/School Transport,E10877,I & I TRANSPORT LTD,PTG - Transport Tendered / Cont. Services,46021,07/03/2016,7190128362,2752,,
Expenditure - Over 500,2015 12,Worcestershire County Council,Adult Services & Health,AC-PROFIT,LD Transport (PTG) North,S34844,I & I TRANSPORT LTD,PTG - Transport Tendered / Cont. Services,46021,07/03/2016,7190128363,450,,
Expenditure - Over 500,2015 12,Worcestershire County Council,Adult Services & Health,AC-PROFIT,LD Transport (PTG) North,S34844,I & I TRANSPORT LTD,PTG - Adhoc Transport,46506,07/03/2016,7190128365,840,,
Expenditure - Over 500,2015 12,Worcestershire County Council,Adult Services & Health,AC-PROFIT,PTG Service User Network,S31376,I & I TRANSPORT LTD,PTG - Adhoc Transport,46506,07/03/2016,7190128366,440,,
Expenditure - Over 500,2015 12,Worcestershire County Council,Children's Services,CH-PROFIT,Special Home/School Transport,E10877,I & I TRANSPORT LTD,PTG - Transport Tendered / Cont. Services,46021,07/03/2016,7190128373,1600,,
Expenditure - Over 500,2015 12,Worcestershire County Council,Adult Services & Health,AC-PROFIT,LD Transport (PTG) North,S34844,I & I TRANSPORT LTD,PTG - Transport Tendered / Cont. Services,46021,21/03/2016,7190128980,2070,,
Expenditure - Over 500,2015 12,Worcestershire County Council,Resources,CS-PROFIT,Research Function,C41010,IBM UK LIMITED,Computing Software,50319,29/03/2016,4101540285,1964,,
Expenditure - Over 500,2015 12,Worcestershire County Council,"Business, Environment & Community",EN-DIR,Concessionary Fares Administration,V21015,JOHNSONS COACH TRAVEL,Third Party Pymnts Public Transport Operators,54005,10/03/2016,7190128598,8210.95,,
Expenditure - Over 500,2015 12,Worcestershire County Council,"Business, Environment & Community",EN-DIR,Local Bus WCC Services,V21020,JOHNSONS COACH TRAVEL,Third Party Pymnts Other Hired & Contracted Servs,53986,07/03/2016,7190128154,2300,,
Expenditure - Over 500,2015 12,Worcestershire County Council,"Business, Environment & Community",EN-DIR,Local Bus WCC Services,V21020,JOHNSONS COACH TRAVEL,Third Party Pymnts Other Hired & Contracted Servs,53986,07/03/2016,7190128151,4910,,
Expenditure - Over 500,2015 12,Worcestershire County Council,Children's Services,CH-PROFIT,Early Years - Other Providers,E21205,LITTLE LODGE NURSERY SCHOOL,Third Party Pymts 4Yr Old Nursery Education Grant,53657,07/03/2016,7200024764,6616.04,,
Expenditure - Over 500,2015 12,Worcestershire County Council,Children's Services,CH-PROFIT,Early Years - 2 year old funding,E23050,LITTLE LODGE NURSERY SCHOOL,Third Party Pymts 4Yr Old Nursery Education Grant,53657,23/03/2016,7200025067,1147.75,,
Expenditure - Over 500,2015 12,Worcestershire County Council,Children's Services,CH-PROFIT,Early Years - 2 year old funding,E23050,LITTLE BEARS NURSERY,Third Party Pymts 4Yr Old Nursery Education Grant,53657,23/03/2016,7200025062,990,,
Expenditure - Over 500,2015 12,Worcestershire County Council,Children's Services,CH-PROFIT,Early Years - Other Providers,E21205,LITTLE BEARS NURSERY,Third Party Pymts 4Yr Old Nursery Education Grant,53657,07/03/2016,7200024758,9550.26,,
Expenditure - Over 500,2015 12,Worcestershire County Council,Children's Services,CH-PROFIT,Early Years - 2 year old funding,E23050,LINDRIDGE PRE-SCHOOL GROUP,Third Party Pymts 4Yr Old Nursery Education Grant,53657,23/03/2016,7200025060,693,,
Expenditure - Over 500,2015 12,Worcestershire County Council,Children's Services,CH-PROFIT,Early Years - Other Providers,E21205,LINDRIDGE PRE-SCHOOL GROUP,Third Party Pymts 4Yr Old Nursery Education Grant,53657,07/03/2016,7200024756,3380.57,,
Expenditure - Over 500,2015 12,Worcestershire County Council,Children's Services,CH-PROFIT,Early Years - Other Providers,E21205,LILLIPUT FARM NURSERY,Third Party Pymts 4Yr Old Nursery Education Grant,53657,29/03/2016,3310034983,5860.4,,
Expenditure - Over 500,2015 12,Worcestershire County Council,Children's Services,CH-PROFIT,Early Years - Other Providers,E21205,LILLIPUT FARM NURSERY,Third Party Pymts 4Yr Old Nursery Education Grant,53657,21/03/2016,7200024952,3090.04,,
Expenditure - Over 500,2015 12,Worcestershire County Council,Resources,CS-PROFIT,Cllr Divisional Fund,C40236,LICKHILL PRE-SCHOOL NURSERY,Expenses Members Other,50612,17/03/2016,3310034694,1000,,
Expenditure - Over 500,2015 12,Worcestershire County Council,Adult Services & Health,AC-PROFIT,South Worcs Mental Health Crisis,S31547,LETRA COMPUTER TRAINING LIMITED,Computer Maintenance,50304,29/03/2016,4101540521,525,,
Expenditure - Over 500,2015 12,Worcestershire County Council,Adult Services & Health,AC-PROFIT,LT Residential - PD,S35441,LEONARD CHESHIRE FOUNDATION,Receipts Sales Long Term Residents,67047,21/03/2016,7310395961,2256.88,,
Expenditure - Over 500,2015 12,Worcestershire County Council,Children's Services,CH-PROFIT,Early Years - 2 year old funding,E23050,LEAPFROG DAY NURSERIES (TRADING) LT,Third Party Pymts 4Yr Old Nursery Education Grant,53657,23/03/2016,7200024989,1237.5,,
Expenditure - Over 500,2015 12,Worcestershire County Council,Children's Services,CH-PROFIT,Early Years - Other Providers,E21205,LEAPFROG DAY NURSERIES (TRADING) LT,Third Party Pymts 4Yr Old Nursery Education Grant,53657,07/03/2016,7200024649,12488.64,,
Expenditure - Over 500,2015 12,Worcestershire County Council,Children's Services,CH-PROFIT,Early Years - 2 year old funding,E23050,LEAPFROG DAY NURSERIES LTD,Third Party Pymts 4Yr Old Nursery Education Grant,53657,23/03/2016,7200024990,4405.5,,
Expenditure - Over 500,2015 12,Worcestershire County Council,Children's Services,CH-PROFIT,Early Years - Other Providers,E21205,LEAPFROG DAY NURSERIES LTD,Third Party Pymts 4Yr Old Nursery Education Grant,53657,07/03/2016,7200024650,10789.33,,
Expenditure - Over 500,2015 12,Worcestershire County Council,Adult Services & Health,AC-PROFIT,LT Residential - OP,S35341,LAWNS RESIDENTIAL CARE HOME LTD,Third Party Payments Purchase of Long Term Care,53667,21/03/2016,7310395367,1249.24,,
Expenditure - Over 500,2015 12,Worcestershire County Council,Adult Services & Health,AC-PROFIT,LT Residential - OP,S35341,LAWNS RESIDENTIAL CARE HOME LTD,Third Party Payments Purchase of Long Term Care,53667,21/03/2016,7310395337,1577.36,,
Expenditure - Over 500,2015 12,Worcestershire County Council,Adult Services & Health,AC-PROFIT,Property Charge Temporary Code,S35398,LAWNS RESIDENTIAL CARE HOME LTD,Third Party Payments Purchase of Long Term Care,53667,21/03/2016,7310395311,1032.52,,
Expenditure - Over 500,2015 12,Worcestershire County Council,Adult Services & Health,AC-PROFIT,Property Charge Temporary Code,S35398,LAWNS RESIDENTIAL CARE HOME LTD,Third Party Payments Purchase of Long Term Care,53667,21/03/2016,7310395307,1668,,
Expenditure - Over 500,2015 12,Worcestershire County Council,Adult Services & Health,AC-PROFIT,LT Residential - OP,S35341,LAWNS RESIDENTIAL CARE HOME LTD,Receipts Sales Long Term Residents,67047,21/03/2016,7310395221,1162.92,,
Expenditure - Over 500,2015 12,Worcestershire County Council,Adult Services & Health,AC-PROFIT,Dementia Care Home Programme,S35722,LAWNS RESIDENTIAL CARE HOME LTD,Care Grants,51006,07/03/2016,3310034445,2500,,
Expenditure - Over 500,2015 12,Worcestershire County Council,Adult Services & Health,AC-PROFIT,Equipment - Pooled Budgets,S31526,LANGHAM PRODUCTS,Equipment Adults SDD,49084,29/03/2016,4101539778,1873.8,,
Expenditure - Over 500,2015 12,Worcestershire County Council,Adult Services & Health,AC-PROFIT,Equipment - Pooled Budgets,S31526,LANGHAM PRODUCTS,Equipment Adults SDD,49084,23/03/2016,4101537740,891.26,,
Expenditure - Over 500,2015 12,Worcestershire County Council,Adult Services & Health,AC-PROFIT,Equipment - Pooled Budgets,S31526,LANGHAM PRODUCTS,Equipment Adults SDD,49084,22/03/2016,4101537741,557.5,,
Expenditure - Over 500,2015 12,Worcestershire County Council,Adult Services & Health,AC-PROFIT,Equipment - Pooled Budgets,S31526,LANGHAM PRODUCTS,Equipment Adults SDD,49084,22/03/2016,4101537739,461.5,,
Expenditure - Over 500,2015 12,Worcestershire County Council,"Business, Environment & Community",EN-PROFIT,Scientific Services Laboratory,V40110,LGC LIMITED,Materials Chemical & Apparatus,49055,17/03/2016,4101533727,695.3,,
Expenditure - Over 500,2015 12,Worcestershire County Council,Adult Services & Health,AC-PROFIT,North Supported Living Scheme,S31367,MACINTYRE,Third Party Payments Purchase of Long Term Care,53667,21/03/2016,7360016038,3431.4,,
Expenditure - Over 500,2015 12,Worcestershire County Council,Adult Services & Health,AC-PROFIT,North Supported Living Scheme,S31367,MACINTYRE,Third Party Payments Purchase of Long Term Care,53667,21/03/2016,7360016042,1003.68,,
Expenditure - Over 500,2015 12,Worcestershire County Council,Adult Services & Health,AC-PROFIT,LT Residential - PD,S35441,MACINTYRE,Third Party Payments Purchase of Long Term Care,53667,21/03/2016,7360016045,3600,,
Expenditure - Over 500,2015 12,Worcestershire County Council,Adult Services & Health,AC-PROFIT,North Supported Living Scheme,S31367,MACINTYRE,Third Party Payments Purchase of Long Term Care,53667,21/03/2016,7360016048,2024,,
Expenditure - Over 500,2015 12,Worcestershire County Council,Adult Services & Health,AC-PROFIT,South Supportd Living Scheme,S35501,MACINTYRE,Third Party Payments Purchase of Long Term Care,53667,21/03/2016,7360016065,5890.88,,
Expenditure - Over 500,2015 12,Worcestershire County Council,Adult Services & Health,AC-PROFIT,South Supportd Living Scheme,S35501,MACINTYRE,Third Party Payments Purchase of Long Term Care,53667,21/03/2016,7360016077,2211.08,,
Expenditure - Over 500,2015 12,Worcestershire County Council,Adult Services & Health,AC-PROFIT,LD North Domiciliary,S33413,MACINTYRE,Third Party Payments Dom Care Frm Independent Prov,53669,23/03/2016,7320474576,752.76,,
Expenditure - Over 500,2015 12,Worcestershire County Council,Adult Services & Health,AC-PROFIT,North Supported Living Scheme,S31367,MACINTYRE,Third Party Payments Dom Care Frm Independent Prov,53669,29/03/2016,7320475050,623.82,,
Expenditure - Over 500,2015 12,Worcestershire County Council,Adult Services & Health,AC-PROFIT,LD North Domiciliary,S33413,MACINTYRE,Third Party Payments Dom Care Frm Independent Prov,53669,29/03/2016,7320475051,808.52,,
Expenditure - Over 500,2015 12,Worcestershire County Council,Children's Services,CH-PROFIT,Early Years - Other Providers,E21205,MADRESFIELD EARLY YEARS,Third Party Pymts 4Yr Old Nursery Education Grant,53657,07/03/2016,7200024776,17703.39,,
Expenditure - Over 500,2015 12,Worcestershire County Council,Children's Services,CH-PROFIT,Early Years - 2 year old funding,E23050,MADRESFIELD EARLY YEARS,Third Party Pymts 4Yr Old Nursery Education Grant,53657,23/03/2016,7200025078,4824,,
Expenditure - Over 500,2015 12,Worcestershire County Council,Children's Services,CH-PROFIT,Bromsgrove Respite Home,E31278,KNIGHTSBRIDGE FURNITURE PRODUCTIONS,Equipment & Furniture,49001,29/03/2016,4101540526,677,,
Expenditure - Over 500,2015 12,Worcestershire County Council,Adult Services & Health,AC-PROFIT,Smoking - NRT,S42068,KNIGHTS PHARMACY,Third Party Payments,53006,17/03/2016,7580000870,880.89,,
Expenditure - Over 500,2015 12,Worcestershire County Council,Children's Services,CH-PROFIT,Early Years - Other Providers,E21205,KINGS HAWFORD SCHOOL,Third Party Pymts 4Yr Old Nursery Education Grant,53657,07/03/2016,7200024749,7029.88,,
Expenditure - Over 500,2015 12,Worcestershire County Council,Children's Services,CH-PROFIT,Early Years - Other Providers,E21205,KINGS HAWFORD SCHOOL,Third Party Pymts 4Yr Old Nursery Education Grant,53657,07/03/2016,7200024748,7520.29,,
Expenditure - Over 500,2015 12,Worcestershire County Council,Children's Services,CH-PROFIT,Early Years - Other Providers,E21205,KEMERTON EARLY YEARS & FOREST SCHOO,Third Party Pymts 4Yr Old Nursery Education Grant,53657,07/03/2016,7200024744,3472.81,,
Expenditure - Over 500,2015 12,Worcestershire County Council,Children's Services,CH-PROFIT,Early Years - Other Providers,E21205,LITTLE LEARNERS NURSERY,Third Party Pymts 4Yr Old Nursery Education Grant,53657,07/03/2016,7200024763,3891.86,,
Expenditure - Over 500,2015 12,Worcestershire County Council,"Business, Environment & Community",EN-DIR,Concessionary Fares Administration,V21015,JMP CONSULTANTS LTD,Professional Fees,50031,31/03/2016,4101541313,646.2,,
Expenditure - Over 500,2015 12,Worcestershire County Council,"Business, Environment & Community",EN-DIR,Concessionary Fares Administration,V21015,LMS TRAVEL,Third Party Pymnts Public Transport Operators,54005,10/03/2016,7190128599,5724.95,,
Expenditure - Over 500,2015 12,Worcestershire County Council,Children's Services,CH-PROFIT,Primary Home/School Transport,E10037,LMS TRAVEL,PTG - Transport Tendered / Cont. Services,46021,10/03/2016,7190128656,480,,
Expenditure - Over 500,2015 12,Worcestershire County Council,Adult Services & Health,AC-PROFIT,North Worcs Residential LD (Wyre Forest),S35511,LORNE HOUSE,Receipts Sales Long Term Residents,67047,21/03/2016,7310394963,1277.44,,
Expenditure - Over 500,2015 12,Worcestershire County Council,Adult Services & Health,AC-PROFIT,North Worcs Residential LD (Wyre Forest),S35511,LORNE HOUSE,Receipts Sales Long Term Residents,67047,21/03/2016,7310394973,996.36,,
Expenditure - Over 500,2015 12,Worcestershire County Council,Adult Services & Health,AC-PROFIT,LT Residential - OP,S35341,LORNE HOUSE,Receipts Sales Long Term Residents,67047,21/03/2016,7310394991,1024.28,,
Expenditure - Over 500,2015 12,Worcestershire County Council,Adult Services & Health,AC-PROFIT,North Worcs Residential LD (Wyre Forest),S35511,LORNE HOUSE,Third Party Payments Purchase of Long Term Care,53667,21/03/2016,7310394995,1438.24,,
Expenditure - Over 500,2015 12,Worcestershire County Council,Adult Services & Health,AC-PROFIT,North Worcs Residential LD (Wyre Forest),S35511,LORNE HOUSE,Third Party Payments Purchase of Long Term Care,53667,21/03/2016,7310395021,1523,,
Expenditure - Over 500,2015 12,Worcestershire County Council,Adult Services & Health,AC-PROFIT,North Worcs Residential LD (Wyre Forest),S35511,LORNE HOUSE,Third Party Payments Purchase of Long Term Care,53667,21/03/2016,7310395023,2433.36,,
Expenditure - Over 500,2015 12,Worcestershire County Council,Adult Services & Health,AC-PROFIT,North Worcs Residential LD (Wyre Forest),S35511,LORNE HOUSE,Third Party Payments Purchase of Long Term Care,53667,21/03/2016,7310395025,1097.08,,
Expenditure - Over 500,2015 12,Worcestershire County Council,Adult Services & Health,AC-PROFIT,North Worcs Residential LD (Wyre Forest),S35511,LORNE HOUSE,Receipts Sales Long Term Residents,67047,21/03/2016,7310395061,1505.72,,
Expenditure - Over 500,2015 12,Worcestershire County Council,Adult Services & Health,AC-PROFIT,North Worcs Residential LD (Wyre Forest),S35511,LORNE HOUSE,Receipts Sales Long Term Residents,67047,21/03/2016,7310395089,1294.8,,
Expenditure - Over 500,2015 12,Worcestershire County Council,Adult Services & Health,AC-PROFIT,Preserved Rights OP,S35309,LORNE HOUSE,Receipts Sales Long Term Residents,67047,21/03/2016,7310395329,-513.16,,
Expenditure - Over 500,2015 12,Worcestershire County Council,Children's Services,CH-PROFIT,Early Years - Other Providers,E21205,LUCY LOCKET KINDERGARTENS LTD,Third Party Pymts 4Yr Old Nursery Education Grant,53657,07/03/2016,7200024774,6836.47,,
Expenditure - Over 500,2015 12,Worcestershire County Council,Resources,FS-PROFIT,Pensions Section,F40311,HEYWOOD LIMITED,Services Other Fees,50035,23/03/2016,4101538295,190550.5,,
Expenditure - Over 500,2015 12,Worcestershire County Council,Adult Services & Health,AC-PROFIT,North Supported Living Scheme,S31367,MACINTYRE,Third Party Payments Purchase of Long Term Care,53667,21/03/2016,7310393432,3068,,
Expenditure - Over 500,2015 12,Worcestershire County Council,Adult Services & Health,AC-PROFIT,Macintyre Care-(prev.King Georges Close),S33610,MACINTYRE,Third Party Payments Purchase of Long Term Care,53667,21/03/2016,7310395019,4322.2,,
Expenditure - Over 500,2015 12,Worcestershire County Council,Adult Services & Health,AC-PROFIT,Macintyre Care-(prev.King Georges Close),S33610,MACINTYRE,Receipts Sales Long Term Residents,67047,21/03/2016,7310395055,4242.2,,
Expenditure - Over 500,2015 12,Worcestershire County Council,Adult Services & Health,AC-PROFIT,Macintyre Care-(prev.King Georges Close),S33610,MACINTYRE,Receipts Sales Long Term Residents,67047,21/03/2016,7310395057,4657.48,,
Expenditure - Over 500,2015 12,Worcestershire County Council,Adult Services & Health,AC-PROFIT,Macintyre Care-(prev.King Georges Close),S33610,MACINTYRE,Receipts Sales Long Term Residents,67047,21/03/2016,7310395093,4557.28,,
Expenditure - Over 500,2015 12,Worcestershire County Council,Adult Services & Health,AC-PROFIT,South Worcester Residential LD,S35551,MACINTYRE,Third Party Payments Purchase of Long Term Care,53667,21/03/2016,7310395127,4538.2,,
Expenditure - Over 500,2015 12,Worcestershire County Council,Adult Services & Health,AC-PROFIT,South Worcester Residential LD,S35551,MACINTYRE,Receipts Sales Long Term Residents,67047,21/03/2016,7310395137,4999.4,,
Expenditure - Over 500,2015 12,Worcestershire County Council,Adult Services & Health,AC-PROFIT,Macintyre Care-(prev.King Georges Close),S33610,MACINTYRE,Third Party Payments Purchase of Long Term Care,53667,21/03/2016,7310395495,3151.88,,
Expenditure - Over 500,2015 12,Worcestershire County Council,Adult Services & Health,AC-PROFIT,Macintyre Care-(prev.King Georges Close),S33610,MACINTYRE,Receipts Sales Long Term Residents,67047,21/03/2016,7310395521,2968.48,,
Expenditure - Over 500,2015 12,Worcestershire County Council,Adult Services & Health,AC-PROFIT,Macintyre Care-(prev.King Georges Close),S33610,MACINTYRE,Third Party Payments Purchase of Long Term Care,53667,21/03/2016,7310395619,2968.48,,
Expenditure - Over 500,2015 12,Worcestershire County Council,Adult Services & Health,AC-PROFIT,South Worcester Residential LD,S35551,MACINTYRE,Third Party Payments Purchase of Long Term Care,53667,21/03/2016,7310395641,3104.92,,
Expenditure - Over 500,2015 12,Worcestershire County Council,Adult Services & Health,AC-PROFIT,North Worcs Residential LD (Wyre Forest),S35511,MACINTYRE,Receipts Sales Long Term Residents,67047,21/03/2016,7310395729,3193.08,,
Expenditure - Over 500,2015 12,Worcestershire County Council,Adult Services & Health,AC-PROFIT,North Supported Living Scheme,S31367,MACINTYRE,Third Party Payments Purchase of Long Term Care,53667,21/03/2016,7360015890,2118.76,,
Expenditure - Over 500,2015 12,Worcestershire County Council,Adult Services & Health,AC-PROFIT,South Supportd Living Scheme,S35501,MACINTYRE,Third Party Payments Purchase of Long Term Care,53667,21/03/2016,7360015902,3397.4,,
Expenditure - Over 500,2015 12,Worcestershire County Council,Adult Services & Health,AC-PROFIT,North Supported Living Scheme,S31367,MACINTYRE,Third Party Payments Purchase of Long Term Care,53667,21/03/2016,7360015935,2801.12,,
Expenditure - Over 500,2015 12,Worcestershire County Council,Adult Services & Health,AC-PROFIT,North Supported Living Scheme,S31367,MACINTYRE,Third Party Payments Purchase of Long Term Care,53667,21/03/2016,7360015936,1316,,
Expenditure - Over 500,2015 12,Worcestershire County Council,Adult Services & Health,AC-PROFIT,North Supported Living Scheme,S31367,MACINTYRE,Third Party Payments Purchase of Long Term Care,53667,21/03/2016,7360015937,1624.08,,
Expenditure - Over 500,2015 12,Worcestershire County Council,Adult Services & Health,AC-PROFIT,North Supported Living Scheme,S31367,MACINTYRE,Third Party Payments Purchase of Long Term Care,53667,21/03/2016,7360015941,3016.16,,
Expenditure - Over 500,2015 12,Worcestershire County Council,Adult Services & Health,AC-PROFIT,South Supportd Living Scheme,S35501,MACINTYRE,Third Party Payments Purchase of Long Term Care,53667,21/03/2016,7360015945,2256,,
Expenditure - Over 500,2015 12,Worcestershire County Council,Adult Services & Health,AC-PROFIT,North Supported Living Scheme,S31367,MACINTYRE,Third Party Payments Purchase of Long Term Care,53667,21/03/2016,7360015946,2832.2,,
Expenditure - Over 500,2015 12,Worcestershire County Council,Adult Services & Health,AC-PROFIT,South Supportd Living Scheme,S35501,MACINTYRE,Third Party Payments Purchase of Long Term Care,53667,21/03/2016,7360015947,1924.16,,
Expenditure - Over 500,2015 12,Worcestershire County Council,Adult Services & Health,AC-PROFIT,South Supportd Living Scheme,S35501,MACINTYRE,Third Party Payments Purchase of Long Term Care,53667,21/03/2016,7360015948,1752.24,,
Expenditure - Over 500,2015 12,Worcestershire County Council,Adult Services & Health,AC-PROFIT,South Supportd Living Scheme,S35501,MACINTYRE,Third Party Payments Purchase of Long Term Care,53667,21/03/2016,7360015949,2235.4,,
Expenditure - Over 500,2015 12,Worcestershire County Council,Adult Services & Health,AC-PROFIT,South Supportd Living Scheme,S35501,MACINTYRE,Third Party Payments Purchase of Long Term Care,53667,21/03/2016,7360015951,3216.08,,
Expenditure - Over 500,2015 12,Worcestershire County Council,Adult Services & Health,AC-PROFIT,South Supportd Living Scheme,S35501,MACINTYRE,Third Party Payments Purchase of Long Term Care,53667,21/03/2016,7360015953,1060.64,,
Expenditure - Over 500,2015 12,Worcestershire County Council,Adult Services & Health,AC-PROFIT,South Supportd Living Scheme,S35501,MACINTYRE,Third Party Payments Purchase of Long Term Care,53667,21/03/2016,7360015954,1094.72,,
Expenditure - Over 500,2015 12,Worcestershire County Council,Adult Services & Health,AC-PROFIT,North Supported Living Scheme,S31367,MACINTYRE,Third Party Payments Purchase of Long Term Care,53667,21/03/2016,7360015967,1083.84,,
Expenditure - Over 500,2015 12,Worcestershire County Council,Adult Services & Health,AC-PROFIT,South Supportd Living Scheme,S35501,MACINTYRE,Third Party Payments Purchase of Long Term Care,53667,21/03/2016,7360015983,2112,,
Expenditure - Over 500,2015 12,Worcestershire County Council,Adult Services & Health,AC-PROFIT,South Supportd Living Scheme,S35501,MACINTYRE,Third Party Payments Purchase of Long Term Care,53667,21/03/2016,7360016004,2749.32,,
Expenditure - Over 500,2015 12,Worcestershire County Council,Adult Services & Health,AC-PROFIT,South Supportd Living Scheme,S35501,MACINTYRE,Third Party Payments Purchase of Long Term Care,53667,21/03/2016,7360016012,2508,,
Expenditure - Over 500,2015 12,Worcestershire County Council,Adult Services & Health,AC-PROFIT,South Supportd Living Scheme,S35501,MACINTYRE,Third Party Payments Purchase of Long Term Care,53667,21/03/2016,7360016014,2309.6,,
Expenditure - Over 500,2015 12,Worcestershire County Council,Adult Services & Health,AC-PROFIT,South Supportd Living Scheme,S35501,MACINTYRE,Third Party Payments Purchase of Long Term Care,53667,21/03/2016,7360016015,2345.84,,
Expenditure - Over 500,2015 12,Worcestershire County Council,Adult Services & Health,AC-PROFIT,South Supportd Living Scheme,S35501,MACINTYRE,Third Party Payments Purchase of Long Term Care,53667,21/03/2016,7360016020,1106.72,,
Expenditure - Over 500,2015 12,Worcestershire County Council,Adult Services & Health,AC-PROFIT,North Supported Living Scheme,S31367,MACINTYRE,Third Party Payments Purchase of Long Term Care,53667,21/03/2016,7360016030,3864,,
Expenditure - Over 500,2015 12,Worcestershire County Council,Children's Services,CH-PROFIT,Early Years - Other Providers,E21205,TINY TOEZ AT LITTLE LORDS AND LADIE,Third Party Pymts 4Yr Old Nursery Education Grant,53657,07/03/2016,7200024906,8004.26,,
Expenditure - Over 500,2015 12,Worcestershire County Council,Children's Services,CH-PROFIT,Early Years - 2 year old funding,E23050,TINY TOEZ AT LITTLE LORDS AND LADIE,Third Party Pymts 4Yr Old Nursery Education Grant,53657,23/03/2016,7200025165,1980,,
Expenditure - Over 500,2015 12,Worcestershire County Council,"Business, Environment & Community",EN-DIR,Local Bus WCC Services,V21020,LMS TRAVEL,Third Party Pymnts Other Hired & Contracted Servs,53986,07/03/2016,7190128228,6836,,
Expenditure - Over 500,2015 12,Worcestershire County Council,"Business, Environment & Community",EN-DIR,Local Bus WCC Services,V21020,LMS TRAVEL,Third Party Pymnts Other Hired & Contracted Servs,53986,07/03/2016,7190128229,13908.3,,
Expenditure - Over 500,2015 12,Worcestershire County Council,"Business, Environment & Community",EN-DIR,Local Bus WCC Services,V21020,LMS TRAVEL,Third Party Pymnts Other Hired & Contracted Servs,53986,07/03/2016,7190128230,5760.8,,
Expenditure - Over 500,2015 12,Worcestershire County Council,"Business, Environment & Community",EN-DIR,Local Bus WCC Services,V21020,LMS TRAVEL,Third Party Pymnts Other Hired & Contracted Servs,53986,07/03/2016,7190128231,5314.1,,
Expenditure - Over 500,2015 12,Worcestershire County Council,Children's Services,CH-PROFIT,Secondary Home/School Transport,E10707,LMS TRAVEL,PTG - Transport Tendered / Cont. Services,46021,07/03/2016,7190128480,2600,,
Expenditure - Over 500,2015 12,Worcestershire County Council,Children's Services,CH-PROFIT,Secondary Home/School Transport,E10707,LMS TRAVEL,PTG - Transport Tendered / Cont. Services,46021,07/03/2016,7190128481,1600,,
Expenditure - Over 500,2015 12,Worcestershire County Council,Children's Services,CH-PROFIT,Special Home/School Transport,E10877,LMS TRAVEL,PTG - Transport Tendered / Cont. Services,46021,10/03/2016,7190128580,2320,,
Expenditure - Over 500,2015 12,Worcestershire County Council,Adult Services & Health,AC-PROFIT,LD Transport (PTG) South,S34866,LMS TRAVEL,PTG - Transport Tendered / Cont. Services,46021,10/03/2016,7190128581,2446.5,,
Expenditure - Over 500,2015 12,Worcestershire County Council,Children's Services,CH-PROFIT,Secondary - SEN H/S Transport,E20802,LMS TRAVEL,PTG - Transport Tendered / Cont. Services,46021,10/03/2016,7190128584,1584,,
Expenditure - Over 500,2015 12,Worcestershire County Council,Children's Services,CH-PROFIT,Special Home/School Transport,E10877,LMS TRAVEL,PTG - Transport Tendered / Cont. Services,46021,10/03/2016,7190128585,2492,,
Expenditure - Over 500,2015 12,Worcestershire County Council,Children's Services,CH-PROFIT,Special Home/School Transport,E10877,LMS TRAVEL,PTG - Transport Tendered / Cont. Services,46021,10/03/2016,7190128586,2679.2,,
Expenditure - Over 500,2015 12,Worcestershire County Council,Children's Services,CH-PROFIT,Special Home/School Transport,E10877,LMS TRAVEL,PTG - Transport Tendered / Cont. Services,46021,10/03/2016,7190128587,2768,,
Expenditure - Over 500,2015 12,Worcestershire County Council,Children's Services,CH-PROFIT,Post 16 - SEN H/S Transport,E20803,LMS TRAVEL,PTG - Transport Tendered / Cont. Services,46021,10/03/2016,7190128588,2344,,
Expenditure - Over 500,2015 12,Worcestershire County Council,Children's Services,CH-PROFIT,Short Breaks on framework,E31529,LMS TRAVEL,PTG - Transport Tendered / Cont. Services,46021,10/03/2016,7190128589,2944,,
Expenditure - Over 500,2015 12,Worcestershire County Council,Adult Services & Health,AC-PROFIT,LT Nursing - OP,S35342,METHODIST HOMES,Receipts Sales Long Term Residents,67047,21/03/2016,7310393275,1169,,
Expenditure - Over 500,2015 12,Worcestershire County Council,Adult Services & Health,AC-PROFIT,Nursing - MH,S35642,METHODIST HOMES,Third Party Payments Purchase of Long Term Care,53667,21/03/2016,7310393328,2956.44,,
Expenditure - Over 500,2015 12,Worcestershire County Council,Adult Services & Health,AC-PROFIT,Nursing - MH,S35642,METHODIST HOMES,Third Party Payments Purchase of Long Term Care,53667,21/03/2016,7310396323,2956.44,,
Expenditure - Over 500,2015 12,Worcestershire County Council,Adult Services & Health,AC-PROFIT,LT Residential - OP,S35341,METHODIST HOMES,Third Party Payments Purchase of Long Term Care,53667,21/03/2016,7310396349,782.96,,
Expenditure - Over 500,2015 12,Worcestershire County Council,Children's Services,CH-PROFIT,Primary Home/School Transport,E10037,MHS TRAVEL LIMITED,PTG - Transport Tendered / Cont. Services,46021,07/03/2016,7190128448,2420,,
Expenditure - Over 500,2015 12,Worcestershire County Council,Children's Services,CH-PROFIT,Primary Home/School Transport,E10037,MHS TRAVEL LIMITED,PTG - Transport Tendered / Cont. Services,46021,07/03/2016,7190128455,2077,,
Expenditure - Over 500,2015 12,Worcestershire County Council,Children's Services,CH-PROFIT,Primary Home/School Transport,E10037,MHS TRAVEL LIMITED,PTG - Transport Tendered / Cont. Services,46021,07/03/2016,7190128469,2623.73,,
Expenditure - Over 500,2015 12,Worcestershire County Council,Adult Services & Health,AC-PROFIT,North Worcs Residential LD (Wyre Forest),S35511,MAESTEILO CARE HOME,Receipts Sales Long Term Residents,67047,21/03/2016,7310395973,5193.4,,
Expenditure - Over 500,2015 12,Worcestershire County Council,"Business, Environment & Community",EN-PROFIT,"Management, Admin, Prof & Eng",V83000,MALVERN HILLS CONSERVATORS,Malvern Hills Conservators,51019,29/03/2016,4101539459,1414.93,,
Expenditure - Over 500,2015 12,Worcestershire County Council,"Business, Environment & Community",EN-PROFIT,"Management, Admin, Professional & E",V22000,MALVERN HILLS DISTRICT COUNCIL,Rents Payable,43401,29/03/2016,4101539316,1500,,
Expenditure - Over 500,2015 12,Worcestershire County Council,Adult Services & Health,AC-PROFIT,North Worcs Residential LD (Wyre Forest),S35511,MARIANTONIA HOUSE,Third Party Payments Purchase of Long Term Care,53667,21/03/2016,7310394463,1256.48,,
Expenditure - Over 500,2015 12,Worcestershire County Council,Adult Services & Health,AC-PROFIT,North Worcs Residential LD (Wyre Forest),S35511,MARIANTONIA HOUSE,Third Party Payments Purchase of Long Term Care,53667,21/03/2016,7310394505,3120,,
Expenditure - Over 500,2015 12,Worcestershire County Council,Adult Services & Health,AC-PROFIT,Residential - MH,S35641,MARIANTONIA HOUSE,Third Party Payments Purchase of Long Term Care,53667,21/03/2016,7310394507,863.61,,
Expenditure - Over 500,2015 12,Worcestershire County Council,Adult Services & Health,AC-PROFIT,North Worcs Residential LD (Wyre Forest),S35511,MARIANTONIA HOUSE,Receipts Sales Long Term Residents,67047,21/03/2016,7310394513,1084.6,,
Expenditure - Over 500,2015 12,Worcestershire County Council,Adult Services & Health,AC-PROFIT,North Worcs Residential LD (Wyre Forest),S35511,MARIANTONIA HOUSE,Receipts Sales Long Term Residents,67047,21/03/2016,7310394515,1089,,
Expenditure - Over 500,2015 12,Worcestershire County Council,Adult Services & Health,AC-PROFIT,Residential - MH,S35641,MARIANTONIA HOUSE,Third Party Payments Purchase of Long Term Care,53667,21/03/2016,7310394517,1382.92,,
Expenditure - Over 500,2015 12,Worcestershire County Council,Adult Services & Health,AC-PROFIT,Residential - MH,S35641,MARIANTONIA HOUSE,Receipts Sales Long Term Residents,67047,21/03/2016,7310394519,943.4,,
Expenditure - Over 500,2015 12,Worcestershire County Council,Adult Services & Health,AC-PROFIT,Residential - MH,S35641,MARIANTONIA HOUSE,Third Party Payments Purchase of Long Term Care,53667,21/03/2016,7310394523,1077.88,,
Expenditure - Over 500,2015 12,Worcestershire County Council,Adult Services & Health,AC-PROFIT,Residential - MH,S35641,MARIANTONIA HOUSE,Third Party Payments Purchase of Long Term Care,53667,21/03/2016,7310394589,2199.96,,
Expenditure - Over 500,2015 12,Worcestershire County Council,Adult Services & Health,AC-PROFIT,North Worcs Residential LD (Wyre Forest),S35511,MARIANTONIA HOUSE,Third Party Payments Purchase of Long Term Care,53667,21/03/2016,7310394641,1796,,
Expenditure - Over 500,2015 12,Worcestershire County Council,Adult Services & Health,AC-PROFIT,Residential - MH,S35641,MARIANTONIA HOUSE,Third Party Payments Purchase of Long Term Care,53667,21/03/2016,7310394817,2799.4,,
Expenditure - Over 500,2015 12,Worcestershire County Council,Adult Services & Health,AC-PROFIT,South Worcester Nursing LD,S35552,MARTHA TRUST HEREFORD LTD,Third Party Payments Purchase of Long Term Care,53667,21/03/2016,7310395983,6606.48,,
Expenditure - Over 500,2015 12,Worcestershire County Council,Children's Services,CH-PROFIT,Early Years - Other Providers,E21205,MAYFIELD HOUSE KINDERGARTEN,Third Party Pymts 4Yr Old Nursery Education Grant,53657,07/03/2016,7200024787,4212.42,,
Expenditure - Over 500,2015 12,Worcestershire County Council,Children's Services,CH-PROFIT,Early Years - 2 year old funding,E23050,MAYFIELD HOUSE KINDERGARTEN,Third Party Pymts 4Yr Old Nursery Education Grant,53657,23/03/2016,7200025086,3084.8,,
Expenditure - Over 500,2015 12,Worcestershire County Council,Children's Services,CH-PROFIT,Early Years - Other Providers,E21205,MEADOWS NURSERY,Third Party Pymts 4Yr Old Nursery Education Grant,53657,07/03/2016,7200024897,3323.12,,
Expenditure - Over 500,2015 12,Worcestershire County Council,Children's Services,CH-PROFIT,Early Years - 2 year old funding,E23050,MEADOWS NURSERY,Third Party Pymts 4Yr Old Nursery Education Grant,53657,23/03/2016,7200025161,2615,,
Expenditure - Over 500,2015 12,Worcestershire County Council,"Business, Environment & Community",EN-PROFIT,Scientific Services Laboratory,V40110,MEDFOR PRODUCTS,Materials Chemical & Apparatus,49055,08/03/2016,4101532324,664.52,,
Expenditure - Over 500,2015 12,Worcestershire County Council,Adult Services & Health,AC-PROFIT,Redditch Library,S80421,MIDSHIRE BUSINESS SYSTEMS LTD,Rental/Leasing,49068,10/03/2016,4101531177,448.68,,
Expenditure - Over 500,2015 12,Worcestershire County Council,Resources,PP-PROFIT,Photocopying,X40057,MIDSHIRE BUSINESS SYSTEMS LTD,Equipment Rentals & Leasing,49047,29/03/2016,4101539789,2058.78,,
Expenditure - Over 500,2015 12,Worcestershire County Council,Adult Services & Health,AC-PROFIT,ST Residential - OP,S35343,MILL HOUSE,Third Party Payments Purchase of RespiteCare,53666,21/03/2016,7310395455,650,,
Expenditure - Over 500,2015 12,Worcestershire County Council,Adult Services & Health,AC-PROFIT,LT Residential - OP,S35341,MINSTER GRANGE RESIDENTIAL HOME,Receipts Sales Long Term Residents,67047,21/03/2016,7310394537,1172.48,,
Expenditure - Over 500,2015 12,Worcestershire County Council,Adult Services & Health,AC-PROFIT,LT Residential - OP,S35341,MINSTER GRANGE RESIDENTIAL HOME,Third Party Payments Purchase of Long Term Care,53667,21/03/2016,7310394545,724.2,,
Expenditure - Over 500,2015 12,Worcestershire County Council,Adult Services & Health,AC-PROFIT,LT Residential - OP,S35341,MINSTER GRANGE RESIDENTIAL HOME,Third Party Payments Purchase of Long Term Care,53667,21/03/2016,7310394639,1230.4,,
Expenditure - Over 500,2015 12,Worcestershire County Council,Adult Services & Health,AC-PROFIT,LT Residential - OP,S35341,MINSTER GRANGE RESIDENTIAL HOME,Receipts Sales Long Term Residents,67047,21/03/2016,7310394665,1162.8,,
Expenditure - Over 500,2015 12,Worcestershire County Council,Adult Services & Health,AC-PROFIT,Residential - MH,S35641,MINSTER GRANGE RESIDENTIAL HOME,Receipts Sales Long Term Residents,67047,21/03/2016,7310394681,-1224.84,,
Expenditure - Over 500,2015 12,Worcestershire County Council,Adult Services & Health,AC-PROFIT,COP Property Temporary Code,S35397,MINSTER GRANGE RESIDENTIAL HOME,Third Party Payments Purchase of Long Term Care,53667,21/03/2016,7310394713,1668,,
Expenditure - Over 500,2015 12,Worcestershire County Council,Adult Services & Health,AC-PROFIT,LT Residential - OP,S35341,MINSTER GRANGE RESIDENTIAL HOME,Third Party Payments Purchase of Long Term Care,53667,21/03/2016,7310394761,1264.36,,
Expenditure - Over 500,2015 12,Worcestershire County Council,Adult Services & Health,AC-PROFIT,LT Residential - OP,S35341,MINSTER GRANGE RESIDENTIAL HOME,Third Party Payments Purchase of Long Term Care,53667,21/03/2016,7310394781,1668,,
Expenditure - Over 500,2015 12,Worcestershire County Council,Adult Services & Health,AC-PROFIT,LT Residential - OP,S35341,MINSTER GRANGE RESIDENTIAL HOME,Receipts Sales Long Term Residents,67047,21/03/2016,7310394815,1044.88,,
